Workbook

Sheet uniq boules
C1: boule_1 | D1: boule_2 | E1: boule_3 | F1: boule_4 | G1: boule_5 | H1: numero_chance | I1: combinaison_gagnante_en_ordre_croissant
B2: 1 | C2: 15 | D2: 42 | E2: 41 | F2: 44 | G2: 8 | H2: 10 | I2: 8-15-41-42-44+10 | M2: ='[1]loto aout'!D74 -> 0 | N2: ='[1]loto aout'!E74 -> 0 | O2: ='[1]loto aout'!F74 -> 0 | P2: ='[1]loto aout'!G74 -> 0 | Q2: ='[1]loto aout'!H74 -> 0 | S2: 1 | T2: =M2 -> 0 | U2: 11 | V2: =M4 -> 0 | W2: 21 | X2: =M6 -> 21 | Y2: 31 | Z2: =M8 -> 31 | AA2: 41 | AB2: =M10 -> 41
B3: =1+B2 -> 2 | C3: 16 | D3: 6 | E3: 36 | F3: 5 | G3: 3 | H3: 10 | I3: 3-5-6-16-36+10 | M3: ='[1]loto aout'!I74 -> 0 | N3: ='[1]loto aout'!J74 -> 0 | O3: ='[1]loto aout'!K74 -> 0 | P3: ='[1]loto aout'!L74 -> 0 | Q3: ='[1]loto aout'!M74 -> 0 | S3: 2 | T3: =N2 -> 0 | U3: =U2+1 -> 12 | V3: =N4 -> 0 | W3: =W2+1 -> 22 | X3: =N6 -> 22 | Y3: =Y2+1 -> 32 | Z3: =N8 -> 32 | AA3: =AA2+1 -> 42 | AB3: =N10 -> 42
B4: =1+B3 -> 3 | C4: 42 | D4: 35 | E4: 31 | F4: 32 | G4: 13 | H4: 5 | I4: 13-31-32-35-42+5 | M4: ='[1]loto aout'!N74 -> 0 | N4: ='[1]loto aout'!O74 -> 0 | O4: ='[1]loto aout'!P74 -> 0 | P4: ='[1]loto aout'!Q74 -> 0 | Q4: ='[1]loto aout'!R74 -> 0 | S4: 3 | T4: =O2 -> 0 | U4: =U3+1 -> 13 | V4: =O4 -> 0 | W4: =W3+1 -> 23 | X4: =O6 -> 23 | Y4: =Y3+1 -> 33 | Z4: =O8 -> 33 | AA4: 43 | AB4: =O10 -> 43
B5: 4 | C5: 28 | D5: 23 | E5: 18 | F5: 26 | G5: 19 | H5: 9 | I5: 18-19-23-26-28+9 | M5: ='[1]loto aout'!S74 -> 0 | N5: ='[1]loto aout'!T74 -> 0 | O5: ='[1]loto aout'!U74 -> 0 | P5: ='[1]loto aout'!V74 -> 0 | Q5: ='[1]loto aout'!W74 -> 20 | S5: =S4+1 -> 4 | T5: =P2 -> 0 | U5: 14 | V5: =P4 -> 0 | W5: 24 | X5: =P6 -> 24 | Y5: 34 | Z5: =P8 -> 34 | AA5: 44 | AB5: =P10 -> 44
B6: 5 | C6: 35 | D6: 19 | E6: 6 | F6: 27 | G6: 14 | H6: 10 | I6: 6-14-19-27-35+10 | M6: ='[1]loto aout'!X74 -> 21 | N6: ='[1]loto aout'!Y74 -> 22 | O6: ='[1]loto aout'!Z74 -> 23 | P6: ='[1]loto aout'!AA74 -> 24 | Q6: ='[1]loto aout'!AB74 -> 25 | S6: =S5+1 -> 5 | T6: =Q2 -> 0 | U6: 15 | V6: =Q4 -> 0 | W6: 25 | X6: =Q6 -> 25 | Y6: 35 | Z6: =Q8 -> 35 | AA6: 45 | AB6: =Q10 -> 45
B7: 6 | C7: 42 | D7: 2 | E7: 44 | F7: 28 | G7: 5 | H7: 8 | I7: 2-5-28-42-44+8 | M7: ='[1]loto aout'!AC74 -> 26 | N7: ='[1]loto aout'!AD74 -> 27 | O7: ='[1]loto aout'!AE74 -> 28 | P7: ='[1]loto aout'!AF74 -> n | Q7: ='[1]loto aout'!AG74 -> n | S7: 6 | T7: =M3 -> 0 | U7: 16 | V7: =M5 -> 0 | W7: 26 | X7: =M7 -> 26 | Y7: 36 | Z7: =M9 -> n | AA7: 46 | AB7: =M11 -> 46
B8: 7 | C8: 16 | D8: 12 | E8: 27 | F8: 30 | G8: 2 | H8: 2 | I8: 2-12-16-27-30+2 | M8: ='[1]loto aout'!AH74 -> 31 | N8: ='[1]loto aout'!AI74 -> 32 | O8: ='[1]loto aout'!AJ74 -> 33 | P8: ='[1]loto aout'!AK74 -> 34 | Q8: ='[1]loto aout'!AL74 -> 35 | S8: 7 | T8: =N3 -> 0 | U8: 17 | V8: =N5 -> 0 | W8: 27 | X8: =N7 -> 27 | Y8: 37 | Z8: =N9 -> n | AA8: 47 | AB8: =N11 -> 47
B9: 8 | C9: 25 | D9: 2 | E9: 4 | F9: 7 | G9: 35 | H9: 3 | I9: 2-4-7-25-35+3 | M9: ='[1]loto aout'!AM74 -> n | N9: ='[1]loto aout'!AN74 -> n | O9: ='[1]loto aout'!AO74 -> n | P9: ='[1]loto aout'!AP74 -> n | Q9: ='[1]loto aout'!AQ74 -> 40 | S9: 8 | T9: =O3 -> 0 | U9: 18 | V9: =O5 -> 0 | W9: 28 | X9: =O7 -> 28 | Y9: 38 | Z9: =O9 -> n | AA9: 48 | AB9: 48
B10: 9 | C10: 6 | D10: 2 | E10: 44 | F10: 33 | G10: 21 | H10: 4 | I10: 2-6-21-33-44+4 | M10: ='[1]loto aout'!AR74 -> 41 | N10: ='[1]loto aout'!AS74 -> 42 | O10: ='[1]loto aout'!AT74 -> 43 | P10: ='[1]loto aout'!AU74 -> 44 | Q10: ='[1]loto aout'!AV74 -> 45 | S10: 9 | T10: =P4 -> 0 | U10: 19 | V10: =P5 -> 0 | W10: 29 | X10: =P7 -> n | Y10: 39 | Z10: =P9 -> n | AA10: 49 | AB10: =P11 -> 49
A11: 2019-09-02 | B11: 10 | C11: 47 | D11: 21 | E11: 25 | F11: 19 | G11: 38 | H11: 4 | I11: 19-21-25-38-47+4 | M11: ='[1]loto aout'!AW74 -> 46 | N11: ='[1]loto aout'!AX74 -> 47 | O11: ='[1]loto aout'!AY74 -> 48 | P11: ='[1]loto aout'!AZ74 -> 49 | Q11: ='[1]loto aout'!BA74 -> 0 | S11: =S10+1 -> 10 | T11: =Q3 -> 0 | U11: =U10+1 -> 20 | V11: =Q5 -> 20 | W11: =W10+1 -> 30 | X11: =Q7 -> n | Y11: =Y10+1 -> 40 | Z11: =Q9 -> 40
B12: 11 | C12: 14 | D12: 25 | E12: 47 | F12: 7 | G12: 42 | H12: 5 | I12: 7-14-25-42-47+5
B13: =1+B12 -> 12 | C13: 4 | D13: 21 | E13: 46 | F13: 27 | G13: 47 | H13: 6 | I13: 4-21-27-46-47+6
B14: 13 | C14: 23 | D14: 31 | E14: 15 | F14: 38 | G14: 17 | H14: 4 | I14: 15-17-23-31-38+4
B15: 14 | C15: 17 | D15: 3 | E15: 38 | F15: 1 | G15: 25 | H15: 8 | I15: 1-3-17-25-38+8
B16: 15 | C16: 14 | D16: 31 | E16: 7 | F16: 28 | G16: 2 | H16: 3 | I16: 2-7-14-28-31+3
B17: 16 | C17: 1 | D17: 21 | E17: 28 | F17: 8 | G17: 37 | H17: 2 | I17: 1-8-21-28-37+2
B18: 17 | C18: 45 | D18: 17 | E18: 27 | F18: 48 | G18: 34 | H18: 2 | I18: 17-27-34-45-48+2
B19: 18 | C19: 31 | D19: 30 | E19: 9 | F19: 20 | G19: 34 | H19: 10 | I19: 9-20-30-31-34+10
B20: 19 | C20: 37 | D20: 4 | E20: 12 | F20: 9 | G20: 18 | H20: 3 | I20: 4-9-12-18-37+3
B21: 20 | C21: 26 | D21: 28 | E21: 36 | F21: 29 | G21: 5 | H21: 4 | I21: 5-26-28-29-36+4
B22: 21 | C22: 5 | D22: 45 | E22: 22 | F22: 26 | G22: 33 | H22: 9 | I22: 5-22-26-33-45+9
B23: 22 | C23: 10 | D23: 4 | E23: 5 | F23: 23 | G23: 7 | H23: 4 | I23: 4-5-7-10-23+4
B24: 23 | C24: 32 | D24: 18 | E24: 8 | F24: 36 | G24: 30 | H24: 5 | I24: 8-18-30-32-36+5
B25: 24 | C25: 6 | D25: 29 | E25: 3 | F25: 47 | G25: 21 | H25: 3 | I25: 3-6-21-29-47+3
B26: 25 | C26: 25 | D26: 28 | E26: 39 | F26: 47 | G26: 31 | H26: 8 | I26: 25-28-31-39-47+8
B27: 26 | C27: 39 | D27: 25 | E27: 10 | F27: 32 | G27: 40 | H27: 10 | I27: 10-25-32-39-40+10
B28: 27 | C28: 28 | D28: 37 | E28: 44 | F28: 11 | G28: 7 | H28: 3 | I28: 7-11-28-37-44+3
B29: 28 | C29: 21 | D29: 17 | E29: 29 | F29: 35 | G29: 18 | H29: 6 | I29: 17-18-21-29-35+6
B30: 29 | C30: 26 | D30: 4 | E30: 27 | F30: 47 | G30: 28 | H30: 8 | I30: 4-26-27-28-47+8
B31: 30 | C31: 10 | D31: 1 | E31: 19 | F31: 13 | G31: 3 | H31: 4 | I31: 1-3-10-13-19+4
B32: 31 | C32: 27 | D32: 18 | E32: 49 | F32: 37 | G32: 48 | H32: 10 | I32: 18-27-37-48-49+10
B33: 32 | C33: 7 | D33: 21 | E33: 29 | F33: 35 | G33: 47 | H33: 6 | I33: 7-21-29-35-47+6
B34: 33 | C34: 26 | D34: 11 | E34: 38 | F34: 20 | G34: 33 | H34: 10 | I34: 11-20-26-33-38+10
B35: 34 | C35: 13 | D35: 6 | E35: 2 | F35: 27 | G35: 12 | H35: 10 | I35: 2-6-12-13-27+10
B36: 35 | C36: 39 | D36: 38 | E36: 8 | F36: 31 | G36: 45 | H36: 8 | I36: 8-31-38-39-45+8
B37: 36 | C37: 38 | D37: 23 | E37: 41 | F37: 3 | G37: 17 | H37: 3 | I37: 3-17-23-38-41+3
B38: 37 | C38: 46 | D38: 42 | E38: 1 | F38: 4 | G38: 3 | H38: 3 | I38: 1-3-4-42-46+3
B39: 38 | C39: 4 | D39: 47 | E39: 43 | F39: 30 | G39: 7 | H39: 10 | I39: 4-7-30-43-47+10
B40: 39 | C40: 33 | D40: 16 | E40: 1 | F40: 32 | G40: 45 | H40: 6 | I40: 1-16-32-33-45+6
B41: 40 | C41: 13 | D41: 20 | E41: 10 | F41: 25 | G41: 27 | H41: 2 | I41: 10-13-20-25-27+2
B42: 41 | C42: 45 | D42: 46 | E42: 4 | F42: 36 | G42: 18 | H42: 5 | I42: 4-18-36-45-46+5
B43: 42 | C43: 20 | D43: 49 | E43: 31 | F43: 12 | G43: 13 | H43: 2 | I43: 12-13-20-31-49+2
B44: 43 | C44: 2 | D44: 13 | E44: 20 | F44: 30 | G44: 37 | H44: 6 | I44: 2-13-20-30-37+6
B45: 44 | C45: 25 | D45: 31 | E45: 45 | F45: 38 | G45: 3 | H45: 9 | I45: 3-25-31-38-45+9
B46: 45 | C46: 9 | D46: 24 | E46: 18 | F46: 49 | G46: 39 | H46: 8 | I46: 9-18-24-39-49+8
B47: 46 | C47: 14 | D47: 41 | E47: 9 | F47: 10 | G47: 45 | H47: 1 | I47: 9-10-14-41-45+1
B48: 47 | C48: 28 | D48: 47 | E48: 26 | F48: 38 | G48: 17 | H48: 7 | I48: 17-26-28-38-47+7
B49: 48 | C49: 42 | D49: 12 | E49: 9 | F49: 41 | G49: 33 | H49: 1 | I49: 9-12-33-41-42+1
B50: 49 | C50: 35 | D50: 26 | E50: 13 | F50: 45 | G50: 20 | H50: 3 | I50: 13-20-26-35-45+3
B51: 50 | C51: 36 | D51: 48 | E51: 14 | F51: 13 | G51: 6 | H51: 2 | I51: 6-13-14-36-48+2
B52: 51 | C52: 33 | D52: 13 | E52: 28 | F52: 18 | G52: 42 | H52: 9 | I52: 13-18-28-33-42+9
B53: 52 | C53: 42 | D53: 47 | E53: 2 | F53: 13 | G53: 43 | H53: 10 | I53: 2-13-42-43-47+10
B54: 53 | C54: 1 | D54: 48 | E54: 27 | F54: 49 | G54: 37 | H54: 1 | I54: 1-27-37-48-49+1
B55: 54 | C55: 32 | D55: 14 | E55: 43 | F55: 29 | G55: 41 | H55: 1 | I55: 14-29-32-41-43+1
B56: 55 | C56: 19 | D56: 4 | E56: 10 | F56: 42 | G56: 46 | H56: 5 | I56: 4-10-19-42-46+5
B57: 56 | C57: 38 | D57: 44 | E57: 46 | F57: 27 | G57: 42 | H57: 1 | I57: 27-38-42-44-46+1
B58: 57 | C58: 15 | D58: 24 | E58: 37 | F58: 40 | G58: 41 | H58: 4 | I58: 15-24-37-40-41+4
B59: 58 | C59: 24 | D59: 44 | E59: 34 | F59: 19 | G59: 45 | H59: 2 | I59: 19-24-34-44-45+2
B60: 59 | C60: 2 | D60: 16 | E60: 4 | F60: 20 | G60: 35 | H60: 5 | I60: 2-4-16-20-35+5
B61: 60 | C61: 23 | D61: 38 | E61: 5 | F61: 24 | G61: 35 | H61: 3 | I61: 5-23-24-35-38+3
B62: 61 | C62: 38 | D62: 18 | E62: 3 | F62: 24 | G62: 29 | H62: 9 | I62: 3-18-24-29-38+9
B63: 62 | C63: 26 | D63: 48 | E63: 25 | F63: 16 | G63: 34 | H63: 8 | I63: 16-25-26-34-48+8
B64: 63 | C64: 33 | D64: 43 | E64: 39 | F64: 6 | G64: 29 | H64: 2 | I64: 6-29-33-39-43+2
B65: 64 | C65: 27 | D65: 17 | E65: 26 | F65: 25 | G65: 33 | H65: 2 | I65: 17-25-26-27-33+2
B66: 65 | C66: 3 | D66: 11 | E66: 35 | F66: 13 | G66: 15 | H66: 3 | I66: 3-11-13-15-35+3
B67: 66 | C67: 39 | D67: 7 | E67: 21 | F67: 29 | G67: 5 | H67: 7 | I67: 5-7-21-29-39+7
B68: 67 | C68: 4 | D68: 30 | E68: 15 | F68: 49 | G68: 45 | H68: 3 | I68: 4-15-30-45-49+3
B69: 68 | C69: 29 | D69: 17 | E69: 34 | F69: 48 | G69: 8 | H69: 3 | I69: 8-17-29-34-48+3
B70: 69 | C70: 32 | D70: 44 | E70: 40 | F70: 17 | G70: 38 | H70: 6 | I70: 17-32-38-40-44+6
B71: 70 | C71: 17 | D71: 9 | E71: 1 | F71: 24 | G71: 46 | H71: 8 | I71: 1-9-17-24-46+8
B72: 71 | C72: 22 | D72: 23 | E72: 14 | F72: 42 | G72: 16 | H72: 5 | I72: 14-16-22-23-42+5
B73: 72 | C73: 24 | D73: 9 | E73: 26 | F73: 15 | G73: 13 | H73: 9 | I73: 9-13-15-24-26+9
B74: 73 | C74: 19 | D74: 26 | E74: 13 | F74: 27 | G74: 24 | H74: 7 | I74: 13-19-24-26-27+7
B75: 74 | C75: 16 | D75: 38 | E75: 18 | F75: 45 | G75: 10 | H75: 3 | I75: 10-16-18-38-45+3
B76: 75 | C76: 32 | D76: 14 | E76: 35 | F76: 46 | G76: 11 | H76: 10 | I76: 11-14-32-35-46+10
B77: =1+B76 -> 76 | C77: 15 | D77: 44 | E77: 41 | F77: 3 | G77: 2 | H77: 3 | I77: 2-3-15-41-44+3
B78: 77 | C78: 49 | D78: 45 | E78: 25 | F78: 10 | G78: 19 | H78: 1 | I78: 10-19-25-45-49+1
B79: 78 | C79: 46 | D79: 47 | E79: 23 | F79: 22 | G79: 24 | H79: 2 | I79: 22-23-24-46-47+2
B80: 79 | C80: 12 | D80: 1 | E80: 40 | F80: 28 | G80: 26 | H80: 6 | I80: 1-12-26-28-40+6
B81: 80 | C81: 13 | D81: 3 | E81: 21 | F81: 2 | G81: 40 | H81: 8 | I81: 2-3-13-21-40+8
B82: 81 | C82: 38 | D82: 23 | E82: 45 | F82: 24 | G82: 44 | H82: 6 | I82: 23-24-38-44-45+6
B83: 82 | C83: 33 | D83: 19 | E83: 1 | F83: 31 | G83: 22 | H83: 1 | I83: 1-19-22-31-33+1
B84: 83 | C84: 29 | D84: 5 | E84: 20 | F84: 8 | G84: 32 | H84: 3 | I84: 5-8-20-29-32+3
B85: 84 | C85: 25 | D85: 24 | E85: 16 | F85: 6 | G85: 5 | H85: 1 | I85: 5-6-16-24-25+1
B86: 85 | C86: 32 | D86: 47 | E86: 43 | F86: 35 | G86: 15 | H86: 10 | I86: 15-32-35-43-47+10
B87: 86 | C87: 14 | D87: 23 | E87: 15 | F87: 44 | G87: 46 | H87: 5 | I87: 14-15-23-44-46+5
B88: 87 | C88: 4 | D88: 15 | E88: 11 | F88: 36 | G88: 33 | H88: 2 | I88: 4-11-15-33-36+2
B89: 88 | C89: 46 | D89: 42 | E89: 38 | F89: 25 | G89: 16 | H89: 9 | I89: 16-25-38-42-46+9
B90: 89 | C90: 14 | D90: 1 | E90: 34 | F90: 19 | G90: 4 | H90: 2 | I90: 1-4-14-19-34+2
B91: 90 | C91: 7 | D91: 44 | E91: 37 | F91: 48 | G91: 38 | H91: 7 | I91: 7-37-38-44-48+7
A92: 2019-02-25 | B92: 91 | C92: 3 | D92: 45 | E92: 13 | F92: 4 | G92: 44 | H92: 5 | I92: 3-4-13-44-45+5
B93: 92 | C93: 25 | D93: 29 | E93: 8 | F93: 34 | G93: 15 | H93: 1 | I93: 8-15-25-29-34+1
B94: 93 | C94: 18 | D94: 9 | E94: 11 | F94: 33 | G94: 7 | H94: 9 | I94: 7-9-11-18-33+9
B95: =1+B94 -> 94 | C95: 8 | D95: 7 | E95: 25 | F95: 11 | G95: 46 | H95: 7 | I95: 7-8-11-25-46+7
B96: 95 | C96: 43 | D96: 41 | E96: 29 | F96: 14 | G96: 7 | H96: 3 | I96: 7-14-29-41-43+3
B97: 96 | C97: 43 | D97: 15 | E97: 13 | F97: 48 | G97: 25 | H97: 5 | I97: 13-15-25-43-48+5
B98: 97 | C98: 47 | D98: 40 | E98: 45 | F98: 42 | G98: 3 | H98: 9 | I98: 3-40-42-45-47+9
B99: 98 | C99: 4 | D99: 15 | E99: 21 | F99: 26 | G99: 22 | H99: 10 | I99: 4-15-21-22-26+10
B100: 99 | C100: 40 | D100: 12 | E100: 37 | F100: 24 | G100: 42 | H100: 1 | I100: 12-24-37-40-42+1
B101: 100 | C101: 32 | D101: 27 | E101: 5 | F101: 7 | G101: 35 | H101: 3 | I101: 5-7-27-32-35+3
B102: 101 | C102: 20 | D102: 47 | E102: 15 | F102: 11 | G102: 30 | H102: 9 | I102: 11-15-20-30-47+9
B103: 102 | C103: 37 | D103: 15 | E103: 30 | F103: 6 | G103: 47 | H103: 6 | I103: 6-15-30-37-47+6
B104: 103 | C104: 30 | D104: 14 | E104: 12 | F104: 16 | G104: 42 | H104: 2 | I104: 12-14-16-30-42+2
B105: 104 | C105: 25 | D105: 17 | E105: 41 | F105: 24 | G105: 38 | H105: 10 | I105: 17-24-25-38-41+10
B106: 105 | C106: 17 | D106: 26 | E106: 30 | F106: 47 | G106: 20 | H106: 6 | I106: 17-20-26-30-47+6
B107: 106 | C107: 37 | D107: 10 | E107: 39 | F107: 16 | G107: 34 | H107: 7 | I107: 10-16-34-37-39+7
B108: 107 | C108: 15 | D108: 11 | E108: 10 | F108: 1 | G108: 31 | H108: 3 | I108: 1-10-11-15-31+3
B109: 108 | C109: 35 | D109: 33 | E109: 44 | F109: 1 | G109: 11 | H109: 10 | I109: 1-11-33-35-44+10
B110: 109 | C110: 19 | D110: 24 | E110: 11 | F110: 34 | G110: 25 | H110: 8 | I110: 11-19-24-25-34+8
B111: 110 | C111: 6 | D111: 19 | E111: 46 | F111: 21 | G111: 15 | H111: 10 | I111: 6-15-19-21-46+10
B112: 111 | C112: 1 | D112: 19 | E112: 12 | F112: 31 | G112: 7 | H112: 10 | I112: 1-7-12-19-31+10
B113: 112 | C113: 48 | D113: 18 | E113: 40 | F113: 7 | G113: 6 | H113: 7 | I113: 6-7-18-40-48+7
B114: 113 | C114: 36 | D114: 12 | E114: 29 | F114: 2 | G114: 26 | H114: 7 | I114: 2-12-26-29-36+7
B115: 114 | C115: 43 | D115: 24 | E115: 34 | F115: 27 | G115: 14 | H115: 10 | I115: 14-24-27-34-43+10
B116: 115 | C116: 26 | D116: 30 | E116: 42 | F116: 38 | G116: 12 | H116: 5 | I116: 12-26-30-38-42+5
B117: 116 | C117: 45 | D117: 9 | E117: 5 | F117: 24 | G117: 11 | H117: 10 | I117: 5-9-11-24-45+10
B118: 117 | C118: 10 | D118: 22 | E118: 34 | F118: 43 | G118: 46 | H118: 2 | I118: 10-22-34-43-46+2
B119: 118 | C119: 44 | D119: 46 | E119: 31 | F119: 11 | G119: 22 | H119: 5 | I119: 11-22-31-44-46+5
B120: 119 | C120: 21 | D120: 3 | E120: 25 | F120: 10 | G120: 11 | H120: 3 | I120: 3-10-11-21-25+3
B121: 120 | C121: 2 | D121: 9 | E121: 25 | F121: 35 | G121: 30 | H121: 9 | I121: 2-9-25-30-35+9
B122: 121 | C122: 38 | D122: 1 | E122: 3 | F122: 32 | G122: 30 | H122: 6 | I122: 1-3-30-32-38+6
B123: 122 | C123: 39 | D123: 21 | E123: 45 | F123: 12 | G123: 44 | H123: 5 | I123: 12-21-39-44-45+5
B124: 123 | C124: 8 | D124: 34 | E124: 16 | F124: 13 | G124: 37 | H124: 10 | I124: 8-13-16-34-37+10
B125: 124 | C125: 25 | D125: 38 | E125: 11 | F125: 29 | G125: 14 | H125: 8 | I125: 11-14-25-29-38+8
B126: 125 | C126: 6 | D126: 19 | E126: 41 | F126: 17 | G126: 18 | H126: 9 | I126: 6-17-18-19-41+9
B127: 126 | C127: 1 | D127: 15 | E127: 9 | F127: 19 | G127: 39 | H127: 5 | I127: 1-9-15-19-39+5
B128: 127 | C128: 15 | D128: 6 | E128: 3 | F128: 23 | G128: 39 | H128: 2 | I128: 3-6-15-23-39+2
B129: 128 | C129: 3 | D129: 38 | E129: 30 | F129: 10 | G129: 15 | H129: 6 | I129: 3-10-15-30-38+6
B130: 129 | C130: 36 | D130: 30 | E130: 34 | F130: 14 | G130: 21 | H130: 2 | I130: 14-21-30-34-36+2
B131: 130 | C131: 15 | D131: 11 | E131: 5 | F131: 22 | G131: 10 | H131: 5 | I131: 5-10-11-15-22+5
B132: 131 | C132: 22 | D132: 45 | E132: 20 | F132: 21 | G132: 23 | H132: 10 | I132: 20-21-22-23-45+10
B133: 132 | C133: 33 | D133: 46 | E133: 21 | F133: 20 | G133: 28 | H133: 7 | I133: 20-21-28-33-46+7
B134: 133 | C134: 42 | D134: 20 | E134: 27 | F134: 22 | G134: 12 | H134: 7 | I134: 12-20-22-27-42+7
B135: 134 | C135: 36 | D135: 41 | E135: 15 | F135: 49 | G135: 48 | H135: 5 | I135: 15-36-41-48-49+5
B136: 135 | C136: 13 | D136: 14 | E136: 37 | F136: 21 | G136: 15 | H136: 7 | I136: 13-14-15-21-37+7
B137: 136 | C137: 20 | D137: 43 | E137: 18 | F137: 44 | G137: 30 | H137: 7 | I137: 18-20-30-43-44+7
B138: 137 | C138: 33 | D138: 27 | E138: 3 | F138: 20 | G138: 6 | H138: 8 | I138: 3-6-20-27-33+8
B139: 138 | C139: 9 | D139: 11 | E139: 39 | F139: 29 | G139: 32 | H139: 8 | I139: 9-11-29-32-39+8
B140: 139 | C140: 6 | D140: 29 | E140: 8 | F140: 9 | G140: 39 | H140: 2 | I140: 6-8-9-29-39+2
B141: 140 | C141: 34 | D141: 14 | E141: 2 | F141: 28 | G141: 38 | H141: 4 | I141: 2-14-28-34-38+4
B142: 141 | C142: 9 | D142: 42 | E142: 24 | F142: 43 | G142: 22 | H142: 7 | I142: 9-22-24-42-43+7
B143: 142 | C143: 26 | D143: 21 | E143: 36 | F143: 29 | G143: 35 | H143: 9 | I143: 21-26-29-35-36+9
B144: 143 | C144: 28 | D144: 45 | E144: 34 | F144: 36 | G144: 9 | H144: 6 | I144: 9-28-34-36-45+6
B145: 144 | C145: 10 | D145: 4 | E145: 29 | F145: 19 | G145: 47 | H145: 6 | I145: 4-10-19-29-47+6
B146: 145 | C146: 7 | D146: 17 | E146: 31 | F146: 12 | G146: 48 | H146: 8 | I146: 7-12-17-31-48+8
B147: 146 | C147: 33 | D147: 13 | E147: 7 | F147: 2 | G147: 41 | H147: 1 | I147: 2-7-13-33-41+1
B148: 147 | C148: 8 | D148: 14 | E148: 25 | F148: 19 | G148: 49 | H148: 5 | I148: 8-14-19-25-49+5
B149: 148 | C149: 1 | D149: 36 | E149: 45 | F149: 4 | G149: 22 | H149: 8 | I149: 1-4-22-36-45+8
B150: 149 | C150: 5 | D150: 24 | E150: 38 | F150: 29 | G150: 4 | H150: 3 | I150: 4-5-24-29-38+3
B151: 150 | C151: 46 | D151: 1 | E151: 4 | F151: 23 | G151: 24 | H151: 2 | I151: 1-4-23-24-46+2
B152: 151 | C152: 49 | D152: 39 | E152: 8 | F152: 48 | G152: 1 | H152: 9 | I152: 1-8-39-48-49+9
B153: 152 | C153: 31 | D153: 24 | E153: 11 | F153: 20 | G153: 32 | H153: 8 | I153: 11-20-24-31-32+8
B154: 153 | C154: 6 | D154: 1 | E154: 40 | F154: 7 | G154: 2 | H154: 4 | I154: 1-2-6-7-40+4
B155: 154 | C155: 31 | D155: 7 | E155: 15 | F155: 10 | G155: 17 | H155: 4 | I155: 7-10-15-17-31+4
B156: 155 | C156: 40 | D156: 18 | E156: 15 | F156: 36 | G156: 10 | H156: 3 | I156: 10-15-18-36-40+3
B157: 156 | C157: 12 | D157: 30 | E157: 17 | F157: 8 | G157: 6 | H157: 3 | I157: 6-8-12-17-30+3
B158: =1+B157 -> 157 | C158: 14 | D158: 37 | E158: 39 | F158: 18 | G158: 38 | H158: 9 | I158: 14-18-37-38-39+9
B159: 158 | C159: 15 | D159: 42 | E159: 4 | F159: 27 | G159: 25 | H159: 5 | I159: 4-15-25-27-42+5
B160: 159 | C160: 43 | D160: 42 | E160: 8 | F160: 15 | G160: 26 | H160: 5 | I160: 8-15-26-42-43+5
B161: 160 | C161: 11 | D161: 26 | E161: 1 | F161: 46 | G161: 13 | H161: 5 | I161: 1-11-13-26-46+5
B162: 161 | C162: 11 | D162: 33 | E162: 24 | F162: 35 | G162: 4 | H162: 9 | I162: 4-11-24-33-35+9
B163: 162 | C163: 27 | D163: 20 | E163: 19 | F163: 46 | G163: 38 | H163: 10 | I163: 19-20-27-38-46+10
B164: 163 | C164: 6 | D164: 19 | E164: 22 | F164: 34 | G164: 20 | H164: 10 | I164: 6-19-20-22-34+10
B165: 164 | C165: 7 | D165: 39 | E165: 34 | F165: 6 | G165: 15 | H165: 1 | I165: 6-7-15-34-39+1
B166: 165 | C166: 18 | D166: 2 | E166: 15 | F166: 1 | G166: 41 | H166: 10 | I166: 1-2-15-18-41+10
B167: 166 | C167: 32 | D167: 35 | E167: 11 | F167: 41 | G167: 42 | H167: 6 | I167: 11-32-35-41-42+6
B168: 167 | C168: 17 | D168: 45 | E168: 19 | F168: 40 | G168: 31 | H168: 1 | I168: 17-19-31-40-45+1
B169: 168 | C169: 40 | D169: 17 | E169: 24 | F169: 18 | G169: 10 | H169: 2 | I169: 10-17-18-24-40+2
B170: 169 | C170: 29 | D170: 6 | E170: 15 | F170: 44 | G170: 16 | H170: 3 | I170: 6-15-16-29-44+3
B171: 170 | C171: 16 | D171: 42 | E171: 12 | F171: 6 | G171: 40 | H171: 3 | I171: 6-12-16-40-42+3
B172: 171 | C172: 15 | D172: 48 | E172: 42 | F172: 18 | G172: 40 | H172: 10 | I172: 15-18-40-42-48+10
B173: 172 | C173: 33 | D173: 37 | E173: 31 | F173: 16 | G173: 49 | H173: 8 | I173: 16-31-33-37-49+8
B174: 173 | C174: 40 | D174: 21 | E174: 47 | F174: 27 | G174: 6 | H174: 8 | I174: 6-21-27-40-47+8
B175: 174 | C175: 10 | D175: 19 | E175: 21 | F175: 2 | G175: 40 | H175: 6 | I175: 2-10-19-21-40+6
B176: 175 | C176: 41 | D176: 27 | E176: 44 | F176: 46 | G176: 14 | H176: 5 | I176: 14-27-41-44-46+5
B177: 176 | C177: 5 | D177: 19 | E177: 29 | F177: 15 | G177: 24 | H177: 8 | I177: 5-15-19-24-29+8
B178: 177 | C178: 30 | D178: 4 | E178: 37 | F178: 32 | G178: 23 | H178: 6 | I178: 4-23-30-32-37+6
B179: 178 | C179: 41 | D179: 23 | E179: 9 | F179: 32 | G179: 38 | H179: 3 | I179: 9-23-32-38-41+3
B180: 179 | C180: 47 | D180: 15 | E180: 45 | F180: 35 | G180: 17 | H180: 4 | I180: 15-17-35-45-47+4
B181: 180 | C181: 33 | D181: 7 | E181: 13 | F181: 41 | G181: 43 | H181: 2 | I181: 7-13-33-41-43+2
B182: 181 | C182: 7 | D182: 23 | E182: 13 | F182: 18 | G182: 21 | H182: 10 | I182: 7-13-18-21-23+10
B183: 182 | C183: 35 | D183: 27 | E183: 22 | F183: 20 | G183: 30 | H183: 3 | I183: 20-22-27-30-35+3
B184: 183 | C184: 7 | D184: 20 | E184: 41 | F184: 40 | G184: 11 | H184: 6 | I184: 7-11-20-40-41+6
B185: 184 | C185: 44 | D185: 18 | E185: 9 | F185: 28 | G185: 1 | H185: 10 | I185: 1-9-18-28-44+10
B186: 185 | C186: 18 | D186: 26 | E186: 27 | F186: 43 | G186: 35 | H186: 7 | I186: 18-26-27-35-43+7
B187: 186 | C187: 36 | D187: 31 | E187: 9 | F187: 16 | G187: 3 | H187: 1 | I187: 3-9-16-31-36+1
B188: 187 | C188: 47 | D188: 37 | E188: 45 | F188: 3 | G188: 20 | H188: 3 | I188: 3-20-37-45-47+3
B189: 188 | C189: 11 | D189: 46 | E189: 1 | F189: 22 | G189: 42 | H189: 4 | I189: 1-11-22-42-46+4
B190: 189 | C190: 9 | D190: 21 | E190: 19 | F190: 36 | G190: 40 | H190: 1 | I190: 9-19-21-36-40+1
B191: 190 | C191: 41 | D191: 3 | E191: 34 | F191: 11 | G191: 10 | H191: 10 | I191: 3-10-11-34-41+10
B192: 191 | C192: 41 | D192: 23 | E192: 16 | F192: 20 | G192: 45 | H192: 5 | I192: 16-20-23-41-45+5
B193: 192 | C193: 48 | D193: 38 | E193: 36 | F193: 45 | G193: 16 | H193: 8 | I193: 16-36-38-45-48+8
B194: 193 | C194: 5 | D194: 36 | E194: 23 | F194: 29 | G194: 45 | H194: 7 | I194: 5-23-29-36-45+7
B195: 194 | C195: 26 | D195: 11 | E195: 9 | F195: 41 | G195: 8 | H195: 10 | I195: 8-9-11-26-41+10
B196: 195 | C196: 14 | D196: 9 | E196: 21 | F196: 13 | G196: 32 | H196: 5 | I196: 9-13-14-21-32+5
B197: 196 | C197: 41 | D197: 32 | E197: 49 | F197: 10 | G197: 36 | H197: 10 | I197: 10-32-36-41-49+10
B198: 197 | C198: 43 | D198: 33 | E198: 8 | F198: 30 | G198: 6 | H198: 3 | I198: 6-8-30-33-43+3
B199: 198 | C199: 34 | D199: 2 | E199: 7 | F199: 13 | G199: 44 | H199: 8 | I199: 2-7-13-34-44+8
B200: 199 | C200: 35 | D200: 17 | E200: 8 | F200: 43 | G200: 19 | H200: 9 | I200: 8-17-19-35-43+9
... 1518 more rows

Sheet numeros comp
C1: numero_chance
D2: 1 | E2: =D2+1 -> 2 | F2: =E2+1 -> 3 | G2: 4 | H2: 5 | I2: 6 | J2: 7 | K2: 8 | L2: 9 | M2: =L2+1 -> 10
B3: 1 | C3: 10 | M3: 1
B4: =B3+1 -> 2 | C4: 10 | M4: 1
B5: =B4+1 -> 3 | C5: 5 | H5: 1
B6: 4 | C6: 9 | L6: 1
B7: 5 | C7: 10 | M7: 1
B8: 6 | C8: 8 | K8: 1
B9: 7 | C9: 2
B10: 8 | C10: 3
B11: 9 | C11: 4 | G11: 1
B12: 10 | C12: 4 | G12: 1
A13: 10 derniers | D13: 0 | G13: 2 | H13: 1 | K13: 1 | L13: 1 | M13: 3
C14: rang | G14: 2 | M14: 1
B15: =B12+1 -> 11 | C15: 5 | H15: 1
B16: 12 | C16: 6 | I16: 1
B17: 13 | C17: 4 | G17: 1
B18: 14 | C18: 8 | K18: 1
B19: 15 | C19: 3 | F19: 1
B20: 16 | C20: 2 | E20: 1
B21: 17 | C21: 2 | E21: 1
B22: 18 | C22: 10 | M22: 1
B23: 19 | C23: 3 | F23: 1
B24: 20 | C24: 4 | G24: 1
A25: 20 derniers | E25: 2 | F25: 2 | G25: 4 | H25: 2 | I25: 1 | K25: 2 | L25: 1 | M25: 4
E26: 3 | F26: 3 | G26: 1 | H26: 3 | K26: 3 | M26: 1
A27: tous les tirages | C27: rang | D27: 3 | E27: 10 | F27: 5 | G27: 6 | H27: 2 | I27: 9 | J27: 1 | K27: 8 | L27: 7 | M27: 4
B28: =B24+1 -> 21 | C28: 9 | L28: 1
B29: 22 | C29: 4 | G29: 1
B30: 23 | C30: 5 | H30: 1
B31: 24 | C31: 3 | F31: 1
B32: 25 | C32: 8 | K32: 1
B33: 26 | C33: 10 | M33: 1
B34: 27 | C34: 3 | F34: 1
B35: 28 | C35: 6 | I35: 1
B36: 29 | C36: 8 | K36: 1
B37: 30 | C37: 4 | G37: 1
B38: 31 | C38: 10 | M38: 1
B39: 32 | C39: 6 | I39: 1
B40: 33 | C40: 10 | M40: 1
B41: 34 | C41: 10 | M41: 1
B42: 35 | C42: 8 | K42: 1
B43: 36 | C43: 3 | F43: 1
B44: 37 | C44: 3 | F44: 1
B45: 38 | C45: 10 | M45: 1
B46: 39 | C46: 6 | I46: 1
B47: 40 | C47: 2 | E47: 1
B48: 41 | C48: 5 | H48: 1
B49: 42 | C49: 2 | E49: 1
B50: 43 | C50: 6 | I50: 1
B51: 44 | C51: 9 | L51: 1
B52: 45 | C52: 8 | K52: 1
B53: 46 | C53: 1 | D53: 1
B54: 47 | C54: 7
B55: 48 | C55: 1 | D55: 1 | J55: 1
B56: 49 | C56: 3 | F56: 1
B57: 50 | C57: 2 | E57: 1
B58: 51 | C58: 9 | L58: 1
B59: 52 | C59: 10 | M59: 1
B60: 53 | C60: 1 | D60: 1
B61: 54 | C61: 1 | D61: 1
B62: 55 | C62: 5 | H62: 1
B63: 56 | C63: 1 | D63: 1
B64: 57 | C64: 4 | G64: 1
B65: 58 | C65: 2 | E65: 1
B66: 59 | C66: 5 | H66: 1
B67: 60 | C67: 3 | F67: 1
B68: 61 | C68: 9 | L68: 1
B69: 62 | C69: 8 | K69: 1
B70: 63 | C70: 2 | E70: 1
B71: 64 | C71: 2 | E71: 1
B72: 65 | C72: 3 | F72: 1
B73: 66 | C73: 7 | J73: 1
B74: =B73+1 -> 67 | C74: 3 | F74: 1
B75: 68 | C75: 3 | F75: 1
B76: 69 | C76: 6 | I76: 1
B77: 70 | C77: 8 | K77: 1
B78: 71 | C78: 5 | H78: 1
B79: 72 | C79: 9 | L79: 1
B80: 73 | C80: 7 | J80: 1
B81: 74 | C81: 3 | F81: 1
B82: 75 | C82: 10 | M82: 1
B83: 76 | C83: 3 | F83: 1
B84: 77 | C84: 1 | D84: 1
B85: 78 | C85: 2 | E85: 1
B86: 79 | C86: 6 | I86: 1
B87: 80 | C87: 8 | K87: 1
B88: 81 | C88: 6 | I88: 1
B89: 82 | C89: 1 | D89: 1
B90: 83 | C90: 3 | F90: 1
B91: 84 | C91: 1 | D91: 1
B92: 85 | C92: 10 | M92: 1
B93: 86 | C93: 5 | H93: 1
B94: 87 | C94: 2 | E94: 1
B95: 88 | C95: 9 | L95: 1
B96: 89 | C96: 2 | E96: 1
B97: 90 | C97: 7 | J97: 1
B98: 91 | C98: 5 | H98: 1
B99: 92 | C99: 1 | D99: 1
B100: 93 | C100: 9 | L100: 1
B101: 94 | C101: 7 | J101: 1
B102: 95 | C102: 3 | F102: 1
B103: 96 | C103: 5 | H103: 1
B104: 97 | C104: 9 | L104: 1
B105: 98 | C105: 10 | M105: 1
B106: 99 | C106: 1 | D106: 1
B107: 100 | C107: 3 | F107: 1
B108: 101 | C108: 9 | L108: 1
B109: 102 | C109: 6 | I109: 1
B110: 103 | C110: 2 | E110: 1
B111: 104 | C111: 10 | M111: 1
B112: 105 | C112: 6 | I112: 1
B113: 106 | C113: 7 | J113: 1
B114: 107 | C114: 3 | F114: 1
B115: 108 | C115: 10 | M115: 1
B116: 109 | C116: 8 | K116: 1
B117: 110 | C117: 10 | M117: 1
B118: 111 | C118: 10 | M118: 1
B119: 112 | C119: 7 | J119: 1
B120: 113 | C120: 7 | J120: 7
B121: 114 | C121: 10 | M121: 1
B122: 115 | C122: 5 | H122: 1
B123: 116 | C123: 10 | M123: 1
B124: 117 | C124: 2 | E124: 1
B125: 118 | C125: 5 | H125: 1
B126: 119 | C126: 3 | F126: 1
B127: 120 | C127: 9 | L127: 1
B128: 121 | C128: 6 | I128: 1
B129: 122 | C129: 5 | H129: 1
B130: 123 | C130: 10 | M130: 1
B131: 124 | C131: 8 | K131: 1
B132: 125 | C132: 9 | L132: 1
B133: 126 | C133: 5 | H133: 1
B134: 127 | C134: 2 | E134: 1
B135: 128 | C135: 6 | I135: 1
B136: 129 | C136: 2 | E136: 1
B137: 130 | C137: 5 | H137: 1
B138: =B137+1 -> 131 | C138: 10 | M138: 1
B139: 132 | C139: 7 | J139: 1
B140: 133 | C140: 7 | J140: 1
B141: 134 | C141: 5 | H141: 1
B142: 135 | C142: 7 | J142: 7
B143: 136 | C143: 7 | J143: 7
B144: 137 | C144: 8 | K144: 1
B145: 138 | C145: 8 | K145: 1
B146: 139 | C146: 2 | E146: 1
B147: 140 | C147: 4 | G147: 1
B148: 141 | C148: 7 | J148: 1
B149: 142 | C149: 9 | L149: 1
B150: 143 | C150: 6 | I150: 1
B151: 144 | C151: 6 | I151: 1
B152: 145 | C152: 8 | K152: 1
B153: 146 | C153: 1 | D153: 1
B154: 147 | C154: 5 | H154: 1
B155: 148 | C155: 8 | K155: 1
B156: 149 | C156: 3 | F156: 1
B157: 150 | C157: 2 | E157: 1
B158: 151 | C158: 9 | L158: 1
B159: 152 | C159: 8 | K159: 1
B160: 153 | C160: 4 | G160: 1
B161: 154 | C161: 4 | G161: 1
B162: 155 | C162: 3 | F162: 1
B163: 156 | C163: 3 | F163: 1
B164: 157 | C164: 9 | L164: 1
B165: 158 | C165: 5 | H165: 1
B166: 159 | C166: 5 | H166: 1
B167: 160 | C167: 5 | H167: 1
B168: 161 | C168: 9 | L168: 1
B169: 162 | C169: 10 | M169: 1
B170: 163 | C170: 10 | M170: 1
B171: 164 | C171: 1 | D171: 1
B172: 165 | C172: 10 | M172: 1
B173: 166 | C173: 6 | I173: 1
B174: 167 | C174: 1 | D174: 1
B175: 168 | C175: 2 | E175: 1
B176: 169 | C176: 3 | F176: 1
B177: 170 | C177: 3 | F177: 1
B178: 171 | C178: 10 | M178: 1
B179: 172 | C179: 8 | K179: 1
B180: 173 | C180: 8 | K180: 1
B181: 174 | C181: 6 | I181: 1
B182: 175 | C182: 5 | H182: 1
B183: 176 | C183: 8 | K183: 1
B184: 177 | C184: 6 | I184: 1
B185: 178 | C185: 3 | F185: 1
B186: 179 | C186: 4 | G186: 1
B187: 180 | C187: 2 | E187: 1
B188: 181 | C188: 10 | M188: 1
B189: 182 | C189: 3 | F189: 1
B190: 183 | C190: 6 | I190: 1
B191: 184 | C191: 10 | M191: 1
B192: 185 | C192: 7 | J192: 1
B193: 186 | C193: 1 | D193: 1
B194: 187 | C194: 3 | F194: 1
B195: 188 | C195: 4 | G195: 1
B196: 189 | C196: 1 | D196: 1
B197: 190 | C197: 10 | M197: 1
B198: 191 | C198: 5 | H198: 1
B199: 192 | C199: 8 | K199: 1
B200: 193 | C200: 7 | J200: 1
... 1554 more rows

Sheet réduit
C1: date_de_tirage | D1: boule_1 | E1: boule_2 | F1: boule_3 | G1: boule_4 | H1: boule_5 | I1: numero_chance | J1: combinaison_gagnante_en_ordre_croissant | K1: nombre_de_gagnant_au_rang1
C2: 2019-09-02 | D2: 6 | E2: 2 | F2: 44 | G2: 33 | H2: 21 | I2: 4 | J2: 2-6-21-33-44+4 | K2: 0 | L2: 3000000 | M2: 1
C3: 2019-08-31 | D3: 47 | E3: 21 | F3: 25 | G3: 19 | H3: 38 | I3: 4 | J3: 19-21-25-38-47+4 | K3: 0 | L3: 2000000 | M3: 2
C4: 2019-08-28 | D4: 14 | E4: 25 | F4: 47 | G4: 7 | H4: 42 | I4: 5 | J4: 7-14-25-42-47+5 | K4: 1 | L4: 3000000 | M4: 3
C5: 2019-08-26 | D5: 4 | E5: 21 | F5: 46 | G5: 27 | H5: 47 | I5: 6 | J5: 4-21-27-46-47+6 | K5: 0 | L5: 2000000 | M5: 0
C6: 2019-08-24 | D6: 23 | E6: 31 | F6: 15 | G6: 38 | H6: 17 | I6: 4 | J6: 15-17-23-31-38+4 | K6: 1 | L6: 2000000 | M6: 5
C7: 2019-08-21 | D7: 17 | E7: 3 | F7: 38 | G7: 1 | H7: 25 | I7: 8 | J7: 1-3-17-25-38+8 | K7: 1 | L7: 9000000 | M7: 3
C8: 2019-08-19 | D8: 14 | E8: 31 | F8: 7 | G8: 28 | H8: 2 | I8: 3 | J8: 2-7-14-28-31+3 | K8: 0 | L8: 8000000 | M8: 7
C9: 2019-08-17 | D9: 1 | E9: 21 | F9: 28 | G9: 8 | H9: 37 | I9: 2 | J9: 1-8-21-28-37+2 | K9: 0 | L9: 7000000 | M9: 0
C10: 2019-08-14 | D10: 45 | E10: 17 | F10: 27 | G10: 48 | H10: 34 | I10: 2 | J10: 17-27-34-45-48+2 | K10: 0 | L10: 6000000 | M10: 1
C11: 2019-08-12 | D11: 31 | E11: 30 | F11: 9 | G11: 20 | H11: 34 | I11: 10 | J11: 9-20-30-31-34+10 | K11: 0 | L11: 5000000 | M11: 0
C12: 2019-08-10 | D12: 37 | E12: 4 | F12: 12 | G12: 9 | H12: 18 | I12: 3 | J12: 4-9-12-18-37+3 | K12: 0 | L12: 4000000 | M12: 4
C13: 2019-08-07 | D13: 26 | E13: 28 | F13: 36 | G13: 29 | H13: 5 | I13: 4 | J13: 5-26-28-29-36+4 | K13: 0 | L13: 3000000 | M13: 2
C14: 2019-08-05 | D14: 5 | E14: 45 | F14: 22 | G14: 26 | H14: 33 | I14: 9 | J14: 5-22-26-33-45+9 | K14: 0 | L14: 2000000 | M14: 0
C15: 2019-08-03 | D15: 10 | E15: 4 | F15: 5 | G15: 23 | H15: 7 | I15: 4 | J15: 4-5-7-10-23+4 | K15: 2 | L15: 1000000 | M15: 5
C16: 2019-07-31 | D16: 32 | E16: 18 | F16: 8 | G16: 36 | H16: 30 | I16: 5 | J16: 8-18-30-32-36+5 | K16: 1 | L16: 3000000 | M16: 0
C17: 2019-07-29 | D17: 6 | E17: 29 | F17: 3 | G17: 47 | H17: 21 | I17: 3 | J17: 3-6-21-29-47+3 | K17: 0 | L17: 2000000 | M17: 0
C18: 2019-07-27 | D18: 25 | E18: 28 | F18: 39 | G18: 47 | H18: 31 | I18: 8 | J18: 25-28-31-39-47+8 | K18: 1 | L18: 3000000 | M18: 2
C19: 2019-07-24 | D19: 39 | E19: 25 | F19: 10 | G19: 32 | H19: 40 | I19: 10 | J19: 10-25-32-39-40+10 | K19: 0 | L19: 2000000 | M19: 0
C20: 2019-07-22 | D20: 28 | E20: 37 | F20: 44 | G20: 11 | H20: 7 | I20: 3 | J20: 7-11-28-37-44+3 | K20: 1 | L20: 4000000 | M20: 4
C21: 2019-07-20 | D21: 21 | E21: 17 | F21: 29 | G21: 35 | H21: 18 | I21: 6 | J21: 17-18-21-29-35+6 | K21: 0 | L21: 3000000 | M21: 1
C22: 2019-07-17 | D22: 26 | E22: 4 | F22: 27 | G22: 47 | H22: 28 | I22: 8 | J22: 4-26-27-28-47+8 | K22: 0 | L22: 2000000 | M22: 1
C23: 2019-07-15 | D23: 10 | E23: 1 | F23: 19 | G23: 13 | H23: 3 | I23: 4 | J23: 1-3-10-13-19+4 | K23: 2 | L23: 7000000 | M23: 8
C24: 2019-07-13 | D24: 27 | E24: 18 | F24: 49 | G24: 37 | H24: 48 | I24: 10 | J24: 18-27-37-48-49+10 | K24: 0 | L24: 2000000 | M24: 0
C25: 2019-07-10 | D25: 7 | E25: 21 | F25: 29 | G25: 35 | H25: 47 | I25: 6 | J25: 7-21-29-35-47+6 | K25: 1 | L25: 3000000 | M25: 2
C26: 2019-07-08 | D26: 26 | E26: 11 | F26: 38 | G26: 20 | H26: 33 | I26: 10 | J26: 11-20-26-33-38+10 | K26: 0 | L26: 2000000 | M26: 1
C27: 2019-07-06 | D27: 13 | E27: 6 | F27: 2 | G27: 27 | H27: 12 | I27: 10 | J27: 2-6-12-13-27+10 | K27: 1 | L27: 11000000 | M27: 12
C28: 2019-07-03 | D28: 39 | E28: 38 | F28: 8 | G28: 31 | H28: 45 | I28: 8 | J28: 8-31-38-39-45+8 | K28: 0 | L28: 10000000 | M28: 0
C29: 2019-07-01 | D29: 38 | E29: 23 | F29: 41 | G29: 3 | H29: 17 | I29: 3 | J29: 3-17-23-38-41+3 | K29: 0 | L29: 9000000 | M29: 1
C30: 2019-06-29 | D30: 46 | E30: 42 | F30: 1 | G30: 4 | H30: 3 | I30: 3 | J30: 1-3-4-42-46+3 | K30: 0 | L30: 8000000 | M30: 0
C31: 2019-06-26 | D31: 4 | E31: 47 | F31: 43 | G31: 30 | H31: 7 | I31: 10 | J31: 4-7-30-43-47+10 | K31: 0 | L31: 7000000 | M31: 1
C32: 2019-06-24 | D32: 33 | E32: 16 | F32: 1 | G32: 32 | H32: 45 | I32: 6 | J32: 1-16-32-33-45+6 | K32: 0 | L32: 6000000 | M32: 0
C33: 2019-06-22 | D33: 13 | E33: 20 | F33: 10 | G33: 25 | H33: 27 | I33: 2 | J33: 10-13-20-25-27+2 | K33: 0 | L33: 5000000 | M33: 7
C34: 2019-06-19 | D34: 45 | E34: 46 | F34: 4 | G34: 36 | H34: 18 | I34: 5 | J34: 4-18-36-45-46+5 | K34: 0 | L34: 4000000 | M34: 0
C35: 2019-06-17 | D35: 20 | E35: 49 | F35: 31 | G35: 12 | H35: 13 | I35: 2 | J35: 12-13-20-31-49+2 | K35: 0 | L35: 3000000 | M35: 1
C36: 2019-06-15 | D36: 2 | E36: 13 | F36: 20 | G36: 30 | H36: 37 | I36: 6 | J36: 2-13-20-30-37+6 | K36: 0 | L36: 2000000 | M36: 0
C37: 2019-06-12 | D37: 25 | E37: 31 | F37: 45 | G37: 38 | H37: 3 | I37: 9 | J37: 3-25-31-38-45+9 | K37: 1 | L37: 7000000 | M37: 0
C38: 2019-06-10 | D38: 9 | E38: 24 | F38: 18 | G38: 49 | H38: 39 | I38: 8 | J38: 9-18-24-39-49+8 | K38: 0 | L38: 6000000 | M38: 2
C39: 2019-06-08 | D39: 14 | E39: 41 | F39: 9 | G39: 10 | H39: 45 | I39: 1 | J39: 9-10-14-41-45+1 | K39: 0 | L39: 5000000 | M39: 2
C40: 2019-06-05 | D40: 28 | E40: 47 | F40: 26 | G40: 38 | H40: 17 | I40: 7 | J40: 17-26-28-38-47+7 | K40: 0 | L40: 4000000 | M40: 1
C41: 2019-06-03 | D41: 42 | E41: 12 | F41: 9 | G41: 41 | H41: 33 | I41: 1 | J41: 9-12-33-41-42+1 | K41: 0 | L41: 3000000 | M41: 3
C42: 2019-06-01 | D42: 35 | E42: 26 | F42: 13 | G42: 45 | H42: 20 | I42: 3 | J42: 13-20-26-35-45+3 | K42: 0 | L42: 2000000 | M42: 1
C43: 2019-05-29 | D43: 36 | E43: 48 | F43: 14 | G43: 13 | H43: 6 | I43: 2 | J43: 6-13-14-36-48+2 | K43: 1 | L43: 12000000 | M43: 2
C44: 2019-05-27 | D44: 33 | E44: 13 | F44: 28 | G44: 18 | H44: 42 | I44: 9 | J44: 13-18-28-33-42+9 | K44: 0 | L44: 11000000 | M44: 1
C45: 2019-05-25 | D45: 42 | E45: 47 | F45: 2 | G45: 13 | H45: 43 | I45: 10 | J45: 2-13-42-43-47+10 | K45: 0 | L45: 10000000 | M45: 0
C46: 2019-05-22 | D46: 1 | E46: 48 | F46: 27 | G46: 49 | H46: 37 | I46: 1 | J46: 1-27-37-48-49+1 | K46: 0 | L46: 4000000 | M46: 0
C47: 2019-05-20 | D47: 32 | E47: 14 | F47: 43 | G47: 29 | H47: 41 | I47: 1 | J47: 14-29-32-41-43+1 | K47: 0 | L47: 3000000 | M47: 0
C48: 2019-05-18 | D48: 19 | E48: 4 | F48: 10 | G48: 42 | H48: 46 | I48: 5 | J48: 4-10-19-42-46+5 | K48: 0 | L48: 2000000 | M48: 0
C49: 2019-05-15 | D49: 38 | E49: 44 | F49: 46 | G49: 27 | H49: 42 | I49: 1 | J49: 27-38-42-44-46+1 | K49: 1 | L49: 21000000 | M49: 0
C50: 2019-05-13 | D50: 15 | E50: 24 | F50: 37 | G50: 40 | H50: 41 | I50: 4 | J50: 15-24-37-40-41+4 | K50: 0 | L50: 20000000 | M50: 1
C51: 2019-05-11 | D51: 24 | E51: 44 | F51: 34 | G51: 19 | H51: 45 | I51: 2 | J51: 19-24-34-44-45+2 | K51: 0 | L51: 19000000 | M51: 3
C52: 2019-05-08 | D52: 2 | E52: 16 | F52: 4 | G52: 20 | H52: 35 | I52: 5 | J52: 2-4-16-20-35+5 | K52: 0 | L52: 18000000 | M52: 1
C53: 2019-05-06 | D53: 23 | E53: 38 | F53: 5 | G53: 24 | H53: 35 | I53: 3 | J53: 5-23-24-35-38+3 | K53: 0 | L53: 17000000 | M53: 1
C54: 2019-05-04 | D54: 38 | E54: 18 | F54: 3 | G54: 24 | H54: 29 | I54: 9 | J54: 3-18-24-29-38+9 | K54: 0 | L54: 16000000 | M54: 2
C55: 2019-05-01 | D55: 26 | E55: 48 | F55: 25 | G55: 16 | H55: 34 | I55: 8 | J55: 16-25-26-34-48+8 | K55: 0 | L55: 15000000 | M55: 2
C56: 2019-04-29 | D56: 33 | E56: 43 | F56: 39 | G56: 6 | H56: 29 | I56: 2 | J56: 6-29-33-39-43+2 | K56: 0 | L56: 14000000 | M56: 0
C57: 2019-04-27 | D57: 27 | E57: 17 | F57: 26 | G57: 25 | H57: 33 | I57: 2 | J57: 17-25-26-27-33+2 | K57: 0 | L57: 13000000 | M57: 5
C58: 2019-04-24 | D58: 3 | E58: 11 | F58: 35 | G58: 13 | H58: 15 | I58: 3 | J58: 3-11-13-15-35+3 | K58: 0 | L58: 12000000 | M58: 1
C59: 2019-04-22 | D59: 39 | E59: 7 | F59: 21 | G59: 29 | H59: 5 | I59: 7 | J59: 5-7-21-29-39+7 | K59: 0 | L59: 11000000 | M59: 1
C60: 2019-04-20 | D60: 4 | E60: 30 | F60: 15 | G60: 49 | H60: 45 | I60: 3 | J60: 4-15-30-45-49+3 | K60: 0 | L60: 10000000 | M60: 6
C61: 2019-04-17 | D61: 29 | E61: 17 | F61: 34 | G61: 48 | H61: 8 | I61: 3 | J61: 8-17-29-34-48+3 | K61: 0 | L61: 2000000 | M61: 2
C62: 2019-04-15 | D62: 32 | E62: 44 | F62: 40 | G62: 17 | H62: 38 | I62: 6 | J62: 17-32-38-40-44+6 | K62: 1 | L62: 3000000 | M62: 1
C63: 2019-04-13 | D63: 17 | E63: 9 | F63: 1 | G63: 24 | H63: 46 | I63: 8 | J63: 1-9-17-24-46+8 | K63: 0 | L63: 2000000 | M63: 1
C64: 2019-04-10 | D64: 22 | E64: 23 | F64: 14 | G64: 42 | H64: 16 | I64: 5 | J64: 14-16-22-23-42+5 | K64: 1 | L64: 2000000 | M64: 2
C65: 2019-04-08 | D65: 24 | E65: 9 | F65: 26 | G65: 15 | H65: 13 | I65: 9 | J65: 9-13-15-24-26+9 | K65: 1 | L65: 2000000 | M65: 8
C66: 2019-04-06 | D66: 19 | E66: 26 | F66: 13 | G66: 27 | H66: 24 | I66: 7 | J66: 13-19-24-26-27+7 | K66: 1 | L66: 9000000 | M66: 5
C67: 2019-04-03 | D67: 16 | E67: 38 | F67: 18 | G67: 45 | H67: 10 | I67: 3 | J67: 10-16-18-38-45+3 | K67: 0 | L67: 8000000 | M67: 1
C68: 2019-04-01 | D68: 32 | E68: 14 | F68: 35 | G68: 46 | H68: 11 | I68: 10 | J68: 11-14-32-35-46+10 | K68: 0 | L68: 7000000 | M68: 0
C69: 2019-03-30 | D69: 15 | E69: 44 | F69: 41 | G69: 3 | H69: 2 | I69: 3 | J69: 2-3-15-41-44+3 | K69: 0 | L69: 6000000 | M69: 3
C70: 2019-03-27 | D70: 49 | E70: 45 | F70: 25 | G70: 10 | H70: 19 | I70: 1 | J70: 10-19-25-45-49+1 | K70: 0 | L70: 5000000 | M70: 3
C71: 2019-03-25 | D71: 46 | E71: 47 | F71: 23 | G71: 22 | H71: 24 | I71: 2 | J71: 22-23-24-46-47+2 | K71: 0 | L71: 4000000 | M71: 1
C72: 2019-03-23 | D72: 12 | E72: 1 | F72: 40 | G72: 28 | H72: 26 | I72: 6 | J72: 1-12-26-28-40+6 | K72: 0 | L72: 3000000 | M72: 4
C73: 2019-03-20 | D73: 13 | E73: 3 | F73: 21 | G73: 2 | H73: 40 | I73: 8 | J73: 2-3-13-21-40+8 | K73: 0 | L73: 2000000 | M73: 0
C74: 2019-03-18 | D74: 38 | E74: 23 | F74: 45 | G74: 24 | H74: 44 | I74: 6 | J74: 23-24-38-44-45+6 | K74: 1 | L74: 2000000 | M74: 0
C75: 2019-03-16 | D75: 33 | E75: 19 | F75: 1 | G75: 31 | H75: 22 | I75: 1 | J75: 1-19-22-31-33+1 | K75: 1 | L75: 6000000 | M75: 4
C76: 2019-03-13 | D76: 29 | E76: 5 | F76: 20 | G76: 8 | H76: 32 | I76: 3 | J76: 5-8-20-29-32+3 | K76: 0 | L76: 5000000 | M76: 3
C77: 2019-03-11 | D77: 25 | E77: 24 | F77: 16 | G77: 6 | H77: 5 | I77: 1 | J77: 5-6-16-24-25+1 | K77: 0 | L77: 4000000 | M77: 4
C78: 2019-03-09 | D78: 32 | E78: 47 | F78: 43 | G78: 35 | H78: 15 | I78: 10 | J78: 15-32-35-43-47+10 | K78: 0 | L78: 3000000 | M78: 2
C79: 2019-03-06 | D79: 14 | E79: 23 | F79: 15 | G79: 44 | H79: 46 | I79: 5 | J79: 14-15-23-44-46+5 | K79: 0 | L79: 2000000 | M79: 0
C80: 2019-03-04 | D80: 4 | E80: 15 | F80: 11 | G80: 36 | H80: 33 | I80: 2 | J80: 4-11-15-33-36+2 | K80: 1 | L80: 7000000 | M80: 1
C81: 2019-03-02 | D81: 46 | E81: 42 | F81: 38 | G81: 25 | H81: 16 | I81: 9 | J81: 16-25-38-42-46+9 | K81: 0 | L81: 6000000 | M81: 2
C82: 2019-02-27 | D82: 14 | E82: 1 | F82: 34 | G82: 19 | H82: 4 | I82: 2 | J82: 1-4-14-19-34+2 | K82: 0 | L82: 5000000 | M82: 0
C83: 2019-02-25 | D83: 7 | E83: 44 | F83: 37 | G83: 48 | H83: 38 | I83: 7 | J83: 7-37-38-44-48+7 | K83: 0
C84: 2019-02-23 | D84: 3 | E84: 45 | F84: 13 | G84: 4 | H84: 44 | I84: 5 | J84: 3-4-13-44-45+5 | K84: 0
C85: 2019-02-20 | D85: 25 | E85: 29 | F85: 8 | G85: 34 | H85: 15 | I85: 1 | J85: 8-15-25-29-34+1 | K85: 0
C86: 2019-02-18 | D86: 18 | E86: 9 | F86: 11 | G86: 33 | H86: 7 | I86: 9 | J86: 7-9-11-18-33+9 | K86: 1
C87: 2019-02-16 | D87: 8 | E87: 7 | F87: 25 | G87: 11 | H87: 46 | I87: 7 | J87: 7-8-11-25-46+7 | K87: 1
C88: 2019-02-13 | D88: 43 | E88: 41 | F88: 29 | G88: 14 | H88: 7 | I88: 3 | J88: 7-14-29-41-43+3 | K88: 0
C89: 2019-02-11 | D89: 43 | E89: 15 | F89: 13 | G89: 48 | H89: 25 | I89: 5 | J89: 13-15-25-43-48+5 | K89: 0
C90: 2019-02-09 | D90: 47 | E90: 40 | F90: 45 | G90: 42 | H90: 3 | I90: 9 | J90: 3-40-42-45-47+9 | K90: 0
C91: 2019-02-06 | D91: 4 | E91: 15 | F91: 21 | G91: 26 | H91: 22 | I91: 10 | J91: 4-15-21-22-26+10 | K91: 0
C92: 2019-02-04 | D92: 40 | E92: 12 | F92: 37 | G92: 24 | H92: 42 | I92: 1 | J92: 12-24-37-40-42+1 | K92: 0
C93: 2019-02-02 | D93: 32 | E93: 27 | F93: 5 | G93: 7 | H93: 35 | I93: 3 | J93: 5-7-27-32-35+3 | K93: 0
C94: 2019-01-30 | D94: 20 | E94: 47 | F94: 15 | G94: 11 | H94: 30 | I94: 9 | J94: 11-15-20-30-47+9 | K94: 0
C95: 2019-01-28 | D95: 37 | E95: 15 | F95: 30 | G95: 6 | H95: 47 | I95: 6 | J95: 6-15-30-37-47+6 | K95: 0
C96: 2019-01-26 | D96: 30 | E96: 14 | F96: 12 | G96: 16 | H96: 42 | I96: 2 | J96: 12-14-16-30-42+2 | K96: 0
C97: 2019-01-23 | D97: 25 | E97: 17 | F97: 41 | G97: 24 | H97: 38 | I97: 10 | J97: 17-24-25-38-41+10 | K97: 0
C98: 2019-01-21 | D98: 17 | E98: 26 | F98: 30 | G98: 47 | H98: 20 | I98: 6 | J98: 17-20-26-30-47+6 | K98: 0
C99: 2019-01-19 | D99: 37 | E99: 10 | F99: 39 | G99: 16 | H99: 34 | I99: 7 | J99: 10-16-34-37-39+7 | K99: 0
C100: 2019-01-16 | D100: 15 | E100: 11 | F100: 10 | G100: 1 | H100: 31 | I100: 3 | J100: 1-10-11-15-31+3 | K100: 1
C101: 2019-01-14 | D101: 35 | E101: 33 | F101: 44 | G101: 1 | H101: 11 | I101: 10 | J101: 1-11-33-35-44+10 | K101: 0
C102: 2019-01-12 | D102: 19 | E102: 24 | F102: 11 | G102: 34 | H102: 25 | I102: 8 | J102: 11-19-24-25-34+8 | K102: 0
C103: 2019-01-09 | D103: 6 | E103: 19 | F103: 46 | G103: 21 | H103: 15 | I103: 10 | J103: 6-15-19-21-46+10 | K103: 0
C104: 2019-01-07 | D104: 1 | E104: 19 | F104: 12 | G104: 31 | H104: 7 | I104: 10 | J104: 1-7-12-19-31+10 | K104: 1
C105: 2019-01-05 | D105: 48 | E105: 18 | F105: 40 | G105: 7 | H105: 6 | I105: 7 | J105: 6-7-18-40-48+7 | K105: 0
C106: 2019-01-02 | D106: 36 | E106: 12 | F106: 29 | G106: 2 | H106: 26 | I106: 7 | J106: 2-12-26-29-36+7 | K106: 1
C107: 2018-12-31 | D107: 43 | E107: 24 | F107: 34 | G107: 27 | H107: 14 | I107: 10 | J107: 14-24-27-34-43+10 | K107: 0
C108: 2018-12-29 | D108: 26 | E108: 30 | F108: 42 | G108: 38 | H108: 12 | I108: 5 | J108: 12-26-30-38-42+5 | K108: 0
C109: 2018-12-26 | D109: 45 | E109: 9 | F109: 5 | G109: 24 | H109: 11 | I109: 10 | J109: 5-9-11-24-45+10 | K109: 2
C110: 2018-12-24 | D110: 10 | E110: 22 | F110: 34 | G110: 43 | H110: 46 | I110: 2 | J110: 10-22-34-43-46+2 | K110: 0
C111: 2018-12-22 | D111: 44 | E111: 46 | F111: 31 | G111: 11 | H111: 22 | I111: 5 | J111: 11-22-31-44-46+5 | K111: 1
C112: 2018-12-19 | D112: 21 | E112: 3 | F112: 25 | G112: 10 | H112: 11 | I112: 3 | J112: 3-10-11-21-25+3 | K112: 1
C113: 2018-12-17 | D113: 2 | E113: 9 | F113: 25 | G113: 35 | H113: 30 | I113: 9 | J113: 2-9-25-30-35+9 | K113: 0
C114: 2018-12-15 | D114: 38 | E114: 1 | F114: 3 | G114: 32 | H114: 30 | I114: 6 | J114: 1-3-30-32-38+6 | K114: 0
C115: 2018-12-12 | D115: 39 | E115: 21 | F115: 45 | G115: 12 | H115: 44 | I115: 5 | J115: 12-21-39-44-45+5 | K115: 0
C116: 2018-12-10 | D116: 8 | E116: 34 | F116: 16 | G116: 13 | H116: 37 | I116: 10 | J116: 8-13-16-34-37+10 | K116: 0
C117: 2018-12-08 | D117: 25 | E117: 38 | F117: 11 | G117: 29 | H117: 14 | I117: 8 | J117: 11-14-25-29-38+8 | K117: 0
C118: 2018-12-05 | D118: 6 | E118: 19 | F118: 41 | G118: 17 | H118: 18 | I118: 9 | J118: 6-17-18-19-41+9 | K118: 0
C119: 2018-12-03 | D119: 1 | E119: 15 | F119: 9 | G119: 19 | H119: 39 | I119: 5 | J119: 1-9-15-19-39+5 | K119: 1
C120: 2018-12-01 | D120: 15 | E120: 6 | F120: 3 | G120: 23 | H120: 39 | I120: 2 | J120: 3-6-15-23-39+2 | K120: 0
C121: 2018-11-28 | D121: 3 | E121: 38 | F121: 30 | G121: 10 | H121: 15 | I121: 6 | J121: 3-10-15-30-38+6 | K121: 0
C122: 2018-11-26 | D122: 36 | E122: 30 | F122: 34 | G122: 14 | H122: 21 | I122: 2 | J122: 14-21-30-34-36+2 | K122: 0
C123: 2018-11-24 | D123: 15 | E123: 11 | F123: 5 | G123: 22 | H123: 10 | I123: 5 | J123: 5-10-11-15-22+5 | K123: 3
C124: 2018-11-21 | D124: 22 | E124: 45 | F124: 20 | G124: 21 | H124: 23 | I124: 10 | J124: 20-21-22-23-45+10 | K124: 0
C125: 2018-11-19 | D125: 33 | E125: 46 | F125: 21 | G125: 20 | H125: 28 | I125: 7 | J125: 20-21-28-33-46+7 | K125: 0
C126: 2018-11-17 | D126: 42 | E126: 20 | F126: 27 | G126: 22 | H126: 12 | I126: 7 | J126: 12-20-22-27-42+7 | K126: 0
C127: 2018-11-14 | D127: 36 | E127: 41 | F127: 15 | G127: 49 | H127: 48 | I127: 5 | J127: 15-36-41-48-49+5 | K127: 0
C128: 2018-11-12 | D128: 13 | E128: 14 | F128: 37 | G128: 21 | H128: 15 | I128: 7 | J128: 13-14-15-21-37+7 | K128: 0
C129: 2018-11-10 | D129: 20 | E129: 43 | F129: 18 | G129: 44 | H129: 30 | I129: 7 | J129: 18-20-30-43-44+7 | K129: 0
C130: 2018-11-07 | D130: 33 | E130: 27 | F130: 3 | G130: 20 | H130: 6 | I130: 8 | J130: 3-6-20-27-33+8 | K130: 0
C131: 2018-11-05 | D131: 9 | E131: 11 | F131: 39 | G131: 29 | H131: 32 | I131: 8 | J131: 9-11-29-32-39+8 | K131: 0
C132: 2018-11-03 | D132: 6 | E132: 29 | F132: 8 | G132: 9 | H132: 39 | I132: 2 | J132: 6-8-9-29-39+2 | K132: 0
C133: 2018-10-31 | D133: 34 | E133: 14 | F133: 2 | G133: 28 | H133: 38 | I133: 4 | J133: 2-14-28-34-38+4 | K133: 0
C134: 2018-10-29 | D134: 9 | E134: 42 | F134: 24 | G134: 43 | H134: 22 | I134: 7 | J134: 9-22-24-42-43+7 | K134: 1
C135: 2018-10-27 | D135: 26 | E135: 21 | F135: 36 | G135: 29 | H135: 35 | I135: 9 | J135: 21-26-29-35-36+9 | K135: 0
C136: 2018-10-24 | D136: 28 | E136: 45 | F136: 34 | G136: 36 | H136: 9 | I136: 6 | J136: 9-28-34-36-45+6 | K136: 0
C137: 2018-10-22 | D137: 10 | E137: 4 | F137: 29 | G137: 19 | H137: 47 | I137: 6 | J137: 4-10-19-29-47+6 | K137: 0
C138: 2018-10-20 | D138: 7 | E138: 17 | F138: 31 | G138: 12 | H138: 48 | I138: 8 | J138: 7-12-17-31-48+8 | K138: 1
C139: 2018-10-17 | D139: 33 | E139: 13 | F139: 7 | G139: 2 | H139: 41 | I139: 1 | J139: 2-7-13-33-41+1 | K139: 0
C140: 2018-10-15 | D140: 8 | E140: 14 | F140: 25 | G140: 19 | H140: 49 | I140: 5 | J140: 8-14-19-25-49+5 | K140: 0
C141: 2018-10-13 | D141: 1 | E141: 36 | F141: 45 | G141: 4 | H141: 22 | I141: 8 | J141: 1-4-22-36-45+8 | K141: 0
C142: 2018-10-10 | D142: 5 | E142: 24 | F142: 38 | G142: 29 | H142: 4 | I142: 3 | J142: 4-5-24-29-38+3 | K142: 0
C143: 2018-10-08 | D143: 46 | E143: 1 | F143: 4 | G143: 23 | H143: 24 | I143: 2 | J143: 1-4-23-24-46+2 | K143: 0
C144: 2018-10-06 | D144: 49 | E144: 39 | F144: 8 | G144: 48 | H144: 1 | I144: 9 | J144: 1-8-39-48-49+9 | K144: 0
C145: 2018-10-03 | D145: 31 | E145: 24 | F145: 11 | G145: 20 | H145: 32 | I145: 8 | J145: 11-20-24-31-32+8 | K145: 0
C146: 2018-10-01 | D146: 6 | E146: 1 | F146: 40 | G146: 7 | H146: 2 | I146: 4 | J146: 1-2-6-7-40+4 | K146: 1
C147: 2018-09-29 | D147: 31 | E147: 7 | F147: 15 | G147: 10 | H147: 17 | I147: 4 | J147: 7-10-15-17-31+4 | K147: 1
C148: 2018-09-26 | D148: 40 | E148: 18 | F148: 15 | G148: 36 | H148: 10 | I148: 3 | J148: 10-15-18-36-40+3 | K148: 0
C149: 2018-09-24 | D149: 12 | E149: 30 | F149: 17 | G149: 8 | H149: 6 | I149: 3 | J149: 6-8-12-17-30+3 | K149: 0
C150: 2018-09-22 | D150: 14 | E150: 37 | F150: 39 | G150: 18 | H150: 38 | I150: 9 | J150: 14-18-37-38-39+9 | K150: 1
C151: 2018-09-19 | D151: 15 | E151: 42 | F151: 4 | G151: 27 | H151: 25 | I151: 5 | J151: 4-15-25-27-42+5 | K151: 0
C152: 2018-09-17 | D152: 43 | E152: 42 | F152: 8 | G152: 15 | H152: 26 | I152: 5 | J152: 8-15-26-42-43+5 | K152: 0
C153: 2018-09-15 | D153: 11 | E153: 26 | F153: 1 | G153: 46 | H153: 13 | I153: 5 | J153: 1-11-13-26-46+5 | K153: 1
C154: 2018-09-12 | D154: 11 | E154: 33 | F154: 24 | G154: 35 | H154: 4 | I154: 9 | J154: 4-11-24-33-35+9 | K154: 0
C155: 2018-09-10 | D155: 27 | E155: 20 | F155: 19 | G155: 46 | H155: 38 | I155: 10 | J155: 19-20-27-38-46+10 | K155: 0
C156: 2018-09-08 | D156: 6 | E156: 19 | F156: 22 | G156: 34 | H156: 20 | I156: 10 | J156: 6-19-20-22-34+10 | K156: 0
C157: 2018-09-05 | D157: 7 | E157: 39 | F157: 34 | G157: 6 | H157: 15 | I157: 1 | J157: 6-7-15-34-39+1 | K157: 0
C158: 2018-09-03 | D158: 18 | E158: 2 | F158: 15 | G158: 1 | H158: 41 | I158: 10 | J158: 1-2-15-18-41+10 | K158: 0
C159: 2018-09-01 | D159: 32 | E159: 35 | F159: 11 | G159: 41 | H159: 42 | I159: 6 | J159: 11-32-35-41-42+6 | K159: 0
C160: 2018-08-29 | D160: 17 | E160: 45 | F160: 19 | G160: 40 | H160: 31 | I160: 1 | J160: 17-19-31-40-45+1 | K160: 0
C161: 2018-08-27 | D161: 40 | E161: 17 | F161: 24 | G161: 18 | H161: 10 | I161: 2 | J161: 10-17-18-24-40+2 | K161: 0
C162: 2018-08-25 | D162: 29 | E162: 6 | F162: 15 | G162: 44 | H162: 16 | I162: 3 | J162: 6-15-16-29-44+3 | K162: 1
C163: 2018-08-22 | D163: 16 | E163: 42 | F163: 12 | G163: 6 | H163: 40 | I163: 3 | J163: 6-12-16-40-42+3 | K163: 1
C164: 2018-08-20 | D164: 15 | E164: 48 | F164: 42 | G164: 18 | H164: 40 | I164: 10 | J164: 15-18-40-42-48+10 | K164: 0
C165: 2018-08-18 | D165: 33 | E165: 37 | F165: 31 | G165: 16 | H165: 49 | I165: 8 | J165: 16-31-33-37-49+8 | K165: 0
C166: 2018-08-15 | D166: 40 | E166: 21 | F166: 47 | G166: 27 | H166: 6 | I166: 8 | J166: 6-21-27-40-47+8 | K166: 0
C167: 2018-08-13 | D167: 10 | E167: 19 | F167: 21 | G167: 2 | H167: 40 | I167: 6 | J167: 2-10-19-21-40+6 | K167: 1
C168: 2018-08-11 | D168: 41 | E168: 27 | F168: 44 | G168: 46 | H168: 14 | I168: 5 | J168: 14-27-41-44-46+5 | K168: 0
C169: 2018-08-08 | D169: 5 | E169: 19 | F169: 29 | G169: 15 | H169: 24 | I169: 8 | J169: 5-15-19-24-29+8 | K169: 0
C170: 2018-08-06 | D170: 30 | E170: 4 | F170: 37 | G170: 32 | H170: 23 | I170: 6 | J170: 4-23-30-32-37+6 | K170: 0
C171: 2018-08-04 | D171: 41 | E171: 23 | F171: 9 | G171: 32 | H171: 38 | I171: 3 | J171: 9-23-32-38-41+3 | K171: 0
C172: 2018-08-01 | D172: 47 | E172: 15 | F172: 45 | G172: 35 | H172: 17 | I172: 4 | J172: 15-17-35-45-47+4 | K172: 0
C173: 2018-07-30 | D173: 33 | E173: 7 | F173: 13 | G173: 41 | H173: 43 | I173: 2 | J173: 7-13-33-41-43+2 | K173: 0
C174: 2018-07-28 | D174: 7 | E174: 23 | F174: 13 | G174: 18 | H174: 21 | I174: 10 | J174: 7-13-18-21-23+10 | K174: 0
C175: 2018-07-25 | D175: 35 | E175: 27 | F175: 22 | G175: 20 | H175: 30 | I175: 3 | J175: 20-22-27-30-35+3 | K175: 0
C176: 2018-07-23 | D176: 7 | E176: 20 | F176: 41 | G176: 40 | H176: 11 | I176: 6 | J176: 7-11-20-40-41+6 | K176: 0
C177: 2018-07-21 | D177: 44 | E177: 18 | F177: 9 | G177: 28 | H177: 1 | I177: 10 | J177: 1-9-18-28-44+10 | K177: 2
C178: 2018-07-18 | D178: 18 | E178: 26 | F178: 27 | G178: 43 | H178: 35 | I178: 7 | J178: 18-26-27-35-43+7 | K178: 0
C179: 2018-07-16 | D179: 36 | E179: 31 | F179: 9 | G179: 16 | H179: 3 | I179: 1 | J179: 3-9-16-31-36+1 | K179: 0
C180: 2018-07-14 | D180: 47 | E180: 37 | F180: 45 | G180: 3 | H180: 20 | I180: 3 | J180: 3-20-37-45-47+3 | K180: 0
C181: 2018-07-11 | D181: 11 | E181: 46 | F181: 1 | G181: 22 | H181: 42 | I181: 4 | J181: 1-11-22-42-46+4 | K181: 0
C182: 2018-07-09 | D182: 9 | E182: 21 | F182: 19 | G182: 36 | H182: 40 | I182: 1 | J182: 9-19-21-36-40+1 | K182: 0
C183: 2018-07-07 | D183: 41 | E183: 3 | F183: 34 | G183: 11 | H183: 10 | I183: 10 | J183: 3-10-11-34-41+10 | K183: 0
C184: 2018-07-04 | D184: 41 | E184: 23 | F184: 16 | G184: 20 | H184: 45 | I184: 5 | J184: 16-20-23-41-45+5 | K184: 0
C185: 2018-07-02 | D185: 48 | E185: 38 | F185: 36 | G185: 45 | H185: 16 | I185: 8 | J185: 16-36-38-45-48+8 | K185: 0
C186: 2018-06-30 | D186: 5 | E186: 36 | F186: 23 | G186: 29 | H186: 45 | I186: 7 | J186: 5-23-29-36-45+7 | K186: 0
C187: 2018-06-27 | D187: 26 | E187: 11 | F187: 9 | G187: 41 | H187: 8 | I187: 10 | J187: 8-9-11-26-41+10 | K187: 0
C188: 2018-06-25 | D188: 14 | E188: 9 | F188: 21 | G188: 13 | H188: 32 | I188: 5 | J188: 9-13-14-21-32+5 | K188: 2
C189: 2018-06-23 | D189: 41 | E189: 32 | F189: 49 | G189: 10 | H189: 36 | I189: 10 | J189: 10-32-36-41-49+10 | K189: 0
C190: 2018-06-20 | D190: 43 | E190: 33 | F190: 8 | G190: 30 | H190: 6 | I190: 3 | J190: 6-8-30-33-43+3 | K190: 0
C191: 2018-06-18 | D191: 34 | E191: 2 | F191: 7 | G191: 13 | H191: 44 | I191: 8 | J191: 2-7-13-34-44+8 | K191: 1
C192: 2018-06-16 | D192: 35 | E192: 17 | F192: 8 | G192: 43 | H192: 19 | I192: 9 | J192: 8-17-19-35-43+9 | K192: 1
C193: 2018-06-13 | D193: 20 | E193: 48 | F193: 15 | G193: 29 | H193: 49 | I193: 1 | J193: 15-20-29-48-49+1 | K193: 0
C194: 2018-06-11 | D194: 44 | E194: 41 | F194: 49 | G194: 25 | H194: 14 | I194: 4 | J194: 14-25-41-44-49+4 | K194: 0
C195: 2018-06-09 | D195: 7 | E195: 16 | F195: 5 | G195: 9 | H195: 12 | I195: 10 | J195: 5-7-9-12-16+10 | K195: 1
C196: 2018-06-06 | D196: 43 | E196: 5 | F196: 33 | G196: 6 | H196: 47 | I196: 2 | J196: 5-6-33-43-47+2 | K196: 0
C197: 2018-06-04 | D197: 8 | E197: 38 | F197: 48 | G197: 16 | H197: 35 | I197: 2 | J197: 8-16-35-38-48+2 | K197: 0
C198: 2018-06-02 | D198: 18 | E198: 13 | F198: 31 | G198: 7 | H198: 35 | I198: 4 | J198: 7-13-18-31-35+4 | K198: 0
C199: 2018-05-30 | D199: 4 | E199: 44 | F199: 41 | G199: 36 | H199: 33 | I199: 6 | J199: 4-33-36-41-44+6 | K199: 1
C200: 2018-05-28 | D200: 35 | E200: 10 | F200: 25 | G200: 21 | H200: 23 | I200: 10 | J200: 10-21-23-25-35+10 | K200: 0
... 1509 more rows

Sheet loto2017
A1: annee_numero_de_tirage | B1: jour_de_tirage | C1: date_de_tirage | D1: date_de_forclusion | E1: boule_1 | F1: boule_2 | G1: boule_3 | H1: boule_4 | I1: boule_5 | J1: numero_chance | K1: combinaison_gagnante_en_ordre_croissant | L1: nombre_de_gagnant_au_rang1 | M1: rapport_du_rang1 | N1: nombre_de_gagnant_au_rang2 | O1: rapport_du_rang2 | P1: nombre_de_gagnant_au_rang3 | Q1: rapport_du_rang3 | R1: nombre_de_gagnant_au_rang4 | S1: rapport_du_rang4 | T1: nombre_de_gagnant_au_rang5 | U1: rapport_du_rang5 | V1: nombre_de_gagnant_au_rang6 | W1: rapport_du_rang6 | X1: nombre_de_gagnant_au_rang7 | Y1: rapport_du_rang7 | Z1: nombre_de_gagnant_au_rang8 | AA1: rapport_du_rang8 | AB1: nombre_de_gagnant_au_rang9 | AC1: rapport_du_rang9 | AD1: nombre_de_codes_gagnants | AE1: rapport_codes_gagnants | AF1: codes_gagnants | AG1: numero_jokerplus | AH1: devise
A3: 2019113 | B3: SAMEDI | C3: 2019-09-21 | D3: 2019-11-21 | E3: 15 | F3: 42 | G3: 41 | H3: 44 | I3: 8 | J3: 10 | K3: 8-15-41-42-44+10 | L3: 0 | M3: 17000000 | N3: 3 | O3: 100000 | P3: 43 | Q3: 1000 | R3: 404 | S3: 500 | T3: 2015 | U3: 50 | V3: 22352 | W3: 20 | X3: 30668 | Y3: 10 | Z3: 348386 | AA3: 5 | AB3: 462035 | AC3: 2.2 | AD3: 10 | AE3: 20000 | AF3: A 7015 5395,I 1075 9426,L 2853 3832,D 3927 2134,J 3633 2629,N 2812 5750,Q 9858 7930,F 6210 4020,I 8576 5761,J 9635 8777 | AG3: 2474644 | AH3: eur
A4: 2019112 | B4: MERCREDI | C4: 2019-09-18 | D4: 2019-11-18 | E4: 16 | F4: 6 | G4: 36 | H4: 5 | I4: 3 | J4: 10 | K4: 3-5-6-16-36+10 | L4: 0 | M4: 16000000 | N4: 3 | O4: 100000 | P4: 48 | Q4: 1000 | R4: 485 | S4: 500 | T4: 2020 | U4: 50 | V4: 23715 | W4: 20 | X4: 27709 | Y4: 10 | Z4: 326795 | AA4: 5 | AB4: 342710 | AC4: 2.2 | AD4: 10 | AE4: 20000 | AF4: D 2554 5562,A 3378 7208,A 9623 9752,I 0450 3346,O 6242 9681,O 3045 1908,B 1434 3967,E 1073 6448,D 3881 4897,R 1627 1729 | AG4: 0 560 191 | AH4: eur
A5: 2019111 | B5: LUNDI | C5: 2019-09-16 | D5: 2019-11-16 | E5: 42 | F5: 35 | G5: 31 | H5: 32 | I5: 13 | J5: 5 | K5: 13-31-32-35-42+5 | L5: 0 | M5: 15000000 | N5: 1 | O5: 100000 | P5: 29 | Q5: 1000 | R5: 306 | S5: 500 | T5: 1650 | U5: 50 | V5: 13304 | W5: 20 | X5: 25190 | Y5: 10 | Z5: 201812 | AA5: 5 | AB5: 405327 | AC5: 2.2 | AD5: 10 | AE5: 20000 | AF5: C 4004 0218,A 4424 2937,G 9580 6347,B 5681 5039,M 4684 8983,L 3792 6773,N 5446 5371,B 3204 4165,H 9270 4672,C 5311 7788 | AG5: 2766592 | AH5: eur
A6: 2019110 | B6: SAMEDI | C6: 2019-09-14 | D6: 2019-11-14 | E6: 28 | F6: 23 | G6: 18 | H6: 26 | I6: 19 | J6: 9 | K6: 18-19-23-26-28+9 | L6: 0 | M6: 14000000 | N6: 2 | O6: 100000 | P6: 82 | Q6: 1000 | R6: 710 | S6: 500 | T6: 3197 | U6: 50 | V6: 28885 | W6: 20 | X6: 43101 | Y6: 10 | Z6: 399161 | AA6: 5 | AB6: 507956 | AC6: 2.2 | AD6: 10 | AE6: 20000 | AF6: C 7365 0918,P 9190 4474,A 2660 2485,I 3995 7464,H 8284 0831,F 9672 8802,H 8920 2392,B 2754 2880,L 5134 6980,U 3900 6429 | AG6: 6126912 | AH6: eur
A7: 2019109 | B7: MERCREDI | C7: 2019-09-11 | D7: 2019-11-11 | E7: 35 | F7: 19 | G7: 6 | H7: 27 | I7: 14 | J7: 10 | K7: 6-14-19-27-35+10 | L7: 0 | M7: 3000000 | N7: 3 | O7: 100000 | P7: 31 | Q7: 1000 | R7: 470 | S7: 500 | T7: 1487 | U7: 50 | V7: 19611 | W7: 20 | X7: 20653 | Y7: 10 | Z7: 255996 | AA7: 5 | AB7: 256015 | AC7: 2.2 | AD7: 10 | AE7: 20000 | AF7: B 5787 2146,L 6296 8852,G 6902 1138,D 5770 3044,K 8384 3933,D 2225 6759,N 5156 1461,C 3035 4949,G 2270 4623,W 1727 4921 | AG7: 7918790 | AH7: eur
A8: 2019108 | B8: LUNDI | C8: 2019-09-09 | D8: 2019-11-09 | E8: 42 | F8: 2 | G8: 44 | H8: 28 | I8: 5 | J8: 8 | K8: 2-5-28-42-44+8 | L8: 0 | M8: 2000000 | N8: 1 | O8: 100000 | P8: 24 | Q8: 1000 | R8: 200 | S8: 500 | T8: 1383 | U8: 50 | V8: 11775 | W8: 20 | X8: 20652 | Y8: 10 | Z8: 179309 | AA8: 5 | AB8: 270522 | AC8: 2.2 | AD8: 10 | AE8: 20000 | AF8: F 0046 6549,Q 2730 0514,T 2524 6829,U 8938 5620,H 6102 0920,A 6104 6071,B 9888 8833,O 2718 9764,T 9976 9554,A 4875 4966 | AG8: 0 223 025 | AH8: eur
A9: 2019107 | B9: SAMEDI | C9: 2019-09-07 | D9: 2019-11-07 | E9: 16 | F9: 12 | G9: 27 | H9: 30 | I9: 2 | J9: 2 | K9: 2-12-16-27-30+2 | L9: 1 | M9: 5000000 | N9: 9 | O9: 100000 | P9: 83 | Q9: 1000 | R9: 924 | S9: 500 | T9: 3275 | U9: 50 | V9: 32185 | W9: 20 | X9: 38061 | Y9: 10 | Z9: 386465 | AA9: 5 | AB9: 401800 | AC9: 2.2 | AD9: 10 | AE9: 20000 | AF9: S 6524 5605,C 1350 0383,A 7084 1647,B 8614 1198,F 4091 2450,S 3607 2863,M 0738 3761,I 4662 4101,Q 7133 4123,P 4958 5439 | AG9: 2995637 | AH9: eur
A10: 2019106 | B10: MERCREDI | C10: 2019-09-04 | D10: 2019-11-04 | E10: 25 | F10: 2 | G10: 4 | H10: 7 | I10: 35 | J10: 3 | K10: 2-4-7-25-35+3 | L10: 0 | M10: 4000000 | N10: 1 | O10: 100000 | P10: 34 | Q10: 1000 | R10: 404 | S10: 500 | T10: 2150 | U10: 50 | V10: 19812 | W10: 20 | X10: 29658 | Y10: 10 | Z10: 263733 | AA10: 5 | AB10: 365129 | AC10: 2.2 | AD10: 10 | AE10: 20000 | AF10: L 9533 5827,M 0564 9244,K 5516 8814,P 6236 9249,W 1695 9357,M 0372 2125,P 4797 8729,O 9922 9845,G 9188 0302,W 1705 1341 | AG10: 6167872 | AH10: eur
A11: 2019105 | B11: LUNDI | C11: 2019-09-02 | D11: 2019-11-02 | E11: 6 | F11: 2 | G11: 44 | H11: 33 | I11: 21 | J11: 4 | K11: 2-6-21-33-44+4 | L11: 0 | M11: 3000000 | N11: 1 | O11: 100000 | P11: 26 | Q11: 1000 | R11: 227 | S11: 500 | T11: 1199 | U11: 50 | V11: 12066 | W11: 20 | X11: 18583 | Y11: 10 | Z11: 179783 | AA11: 5 | AB11: 260433 | AC11: 2.2 | AD11: 10 | AE11: 20000 | AF11: O 4417 3687,B 8533 5255,F 2723 1253,L 6475 1738,H 4682 0885,E 0383 8707,D 0703 5626,M 2537 7015,L 2319 0175,N 7518 3651 | AG11: 4976033 | AH11: eur
A12: 2019104 | B12: SAMEDI | C12: 2019-08-31 | D12: 2019-10-31 | E12: 47 | F12: 21 | G12: 25 | H12: 19 | I12: 38 | J12: 4 | K12: 19-21-25-38-47+4 | L12: 0 | M12: 2000000 | N12: 2 | O12: 100000 | P12: 41 | Q12: 1000 | R12: 426 | S12: 500 | T12: 1985 | U12: 50 | V12: 18881 | W12: 20 | X12: 29891 | Y12: 10 | Z12: 280914 | AA12: 5 | AB12: 434269 | AC12: 2.2 | AD12: 10 | AE12: 20000 | AF12: F 4952 7994,T 6495 6639,F 2354 3400,R 8351 9854,T 0015 8585,J 0190 5343,U 9189 3878,T 9636 6551,V 1620 8523,J 8502 4463 | AG12: 9701556 | AH12: eur
A13: 2019103 | B13: MERCREDI | C13: 2019-08-28 | D13: 2019-10-28 | E13: 14 | F13: 25 | G13: 47 | H13: 7 | I13: 42 | J13: 5 | K13: 7-14-25-42-47+5 | L13: 1 | M13: 3000000 | N13: 3 | O13: 100000 | P13: 52 | Q13: 1000 | R13: 398 | S13: 500 | T13: 2213 | U13: 50 | V13: 16251 | W13: 20 | X13: 29489 | Y13: 10 | Z13: 225793 | AA13: 5 | AB13: 383239 | AC13: 2.2 | AD13: 10 | AE13: 20000 | AF13: G 9695 7590,H 6279 8110,I 1892 3352,Q 2649 8806,K 9863 0413,O 2202 0328,T 6007 1227,Q 8605 2274,D 4372 1711,Q 5362 6015 | AG13: 7329345 | AH13: eur
A14: 2019102 | B14: LUNDI | C14: 2019-08-26 | D14: 2019-10-26 | E14: 4 | F14: 21 | G14: 46 | H14: 27 | I14: 47 | J14: 6 | K14: 4-21-27-46-47+6 | L14: 0 | M14: 2000000 | N14: 0 | O14: 100000 | P14: 34 | Q14: 1000 | R14: 216 | S14: 500 | T14: 1090 | U14: 50 | V14: 10075 | W14: 20 | X14: 16765 | Y14: 10 | Z14: 157788 | AA14: 5 | AB14: 237594 | AC14: 2.2 | AD14: 10 | AE14: 20000 | AF14: E 4399 9722,Q 4245 3154,D 4943 7882,J 3833 9598,A 0754 1206,I 0383 0028,W 1679 0048,I 7011 1862,U 2893 5373,R 0915 6574 | AG14: 7120788 | AH14: eur
A15: 2019101 | B15: SAMEDI | C15: 2019-08-24 | D15: 2019-10-24 | E15: 23 | F15: 31 | G15: 15 | H15: 38 | I15: 17 | J15: 4 | K15: 15-17-23-31-38+4 | L15: 1 | M15: 2000000 | N15: 5 | O15: 100000 | P15: 61 | Q15: 1000 | R15: 517 | S15: 500 | T15: 2376 | U15: 50 | V15: 21842 | W15: 20 | X15: 30953 | Y15: 10 | Z15: 292231 | AA15: 5 | AB15: 416198 | AC15: 2.2 | AD15: 10 | AE15: 20000 | AF15: K 4114 2924,I 6826 0732,W 1669 2259,E 0528 3146,T 7285 0006,L 1219 6245,J 2869 5841,H 1529 0838,W 1672 1951,L 3424 3524 | AG15: 8821719 | AH15: eur
A16: 2019100 | B16: MERCREDI | C16: 2019-08-21 | D16: 2019-10-21 | E16: 17 | F16: 3 | G16: 38 | H16: 1 | I16: 25 | J16: 8 | K16: 1-3-17-25-38+8 | L16: 1 | M16: 9000000 | N16: 3 | O16: 100000 | P16: 34 | Q16: 1000 | R16: 462 | S16: 500 | T16: 2237 | U16: 50 | V16: 19013 | W16: 20 | X16: 29483 | Y16: 10 | Z16: 261111 | AA16: 5 | AB16: 365856 | AC16: 2.2 | AD16: 10 | AE16: 20000 | AF16: B 6714 8415,Q 7281 8358,R 1737 7411,F 9060 8419,B 7476 0322,T 8640 6028,K 4079 1043,E 8675 2680,V 5085 3786,K 4551 7037 | AG16: 2559190 | AH16: eur
A17: 2019099 | B17: LUNDI | C17: 2019-08-19 | D17: 2019-10-19 | E17: 14 | F17: 31 | G17: 7 | H17: 28 | I17: 2 | J17: 3 | K17: 2-7-14-28-31+3 | L17: 0 | M17: 8000000 | N17: 7 | O17: 100000 | P17: 63 | Q17: 1000 | R17: 661 | S17: 500 | T17: 2431 | U17: 50 | V17: 20147 | W17: 20 | X17: 26753 | Y17: 10 | Z17: 229956 | AA17: 5 | AB17: 304217 | AC17: 2.2 | AD17: 10 | AE17: 20000 | AF17: L 6517 2288,A 5712 1981,Q 9575 3462,D 4670 3751,D 7232 9835,S 5753 1340,A 1559 2170,B 0074 8881,W 1658 4974,D 9830 7623 | AG17: 4636620 | AH17: eur
A18: 2019098 | B18: SAMEDI | C18: 2019-08-17 | D18: 2019-10-17 | E18: 1 | F18: 21 | G18: 28 | H18: 8 | I18: 37 | J18: 2 | K18: 1-8-21-28-37+2 | L18: 0 | M18: 7000000 | N18: 0 | O18: 100000 | P18: 47 | Q18: 1000 | R18: 532 | S18: 500 | T18: 2173 | U18: 50 | V18: 23531 | W18: 20 | X18: 29181 | Y18: 10 | Z18: 332185 | AA18: 5 | AB18: 375100 | AC18: 2.2 | AD18: 10 | AE18: 20000 | AF18: C 8203 7446,K 9836 1575,J 6956 2492,N 5929 5568,W 1648 5914,D 5327 4526,N 9414 9120,I 6215 6668,O 6395 1848,B 5218 6003 | AG18: 4972962 | AH18: eur
A19: 2019097 | B19: MERCREDI | C19: 2019-08-14 | D19: 2019-10-14 | E19: 45 | F19: 17 | G19: 27 | H19: 48 | I19: 34 | J19: 2 | K19: 17-27-34-45-48+2 | L19: 0 | M19: 6000000 | N19: 1 | O19: 100000 | P19: 26 | Q19: 1000 | R19: 305 | S19: 500 | T19: 1304 | U19: 50 | V19: 14096 | W19: 20 | X19: 19304 | Y19: 10 | Z19: 212627 | AA19: 5 | AB19: 298378 | AC19: 2.2 | AD19: 10 | AE19: 20000 | AF19: G 0680 2349,A 6252 7841,J 2288 7628,H 9340 7531,O 0174 3926,E 5554 2254,D 8807 1743,T 0618 3882,O 5648 4460,V 5508 9149 | AG19: 3164663 | AH19: eur
A20: 2019096 | B20: LUNDI | C20: 2019-08-12 | D20: 2019-10-12 | E20: 31 | F20: 30 | G20: 9 | H20: 20 | I20: 34 | J20: 10 | K20: 9-20-30-31-34+10 | L20: 0 | M20: 5000000 | N20: 0 | O20: 100000 | P20: 24 | Q20: 1000 | R20: 226 | S20: 500 | T20: 1029 | U20: 50 | V20: 11730 | W20: 20 | X20: 15434 | Y20: 10 | Z20: 183552 | AA20: 5 | AB20: 217489 | AC20: 2.2 | AD20: 10 | AE20: 20000 | AF20: B 6598 5330,U 8025 1824,A 2586 0268,C 9279 4407,B 6941 3521,M 7103 5324,G 1291 2229,C 8552 9461,B 5045 4816,C 8411 0650 | AG20: 3112114 | AH20: eur
A21: 2019095 | B21: SAMEDI | C21: 2019-08-10 | D21: 2019-10-10 | E21: 37 | F21: 4 | G21: 12 | H21: 9 | I21: 18 | J21: 3 | K21: 4-9-12-18-37+3 | L21: 0 | M21: 4000000 | N21: 4 | O21: 100000 | P21: 87 | Q21: 1000 | R21: 717 | S21: 500 | T21: 3614 | U21: 50 | V21: 30578 | W21: 20 | X21: 43754 | Y21: 10 | Z21: 375029 | AA21: 5 | AB21: 471701 | AC21: 2.2 | AD21: 10 | AE21: 20000 | AF21: N 1181 7464,P 0357 1467,H 5609 4191,I 3137 6589,H 2720 6934,S 3587 2183,Q 3519 8195,T 9794 6389,D 4867 5856,N 4674 1360 | AG21: 1344882 | AH21: eur
A22: 2019094 | B22: MERCREDI | C22: 2019-08-07 | D22: 2019-10-07 | E22: 26 | F22: 28 | G22: 36 | H22: 29 | I22: 5 | J22: 4 | K22: 5-26-28-29-36+4 | L22: 0 | M22: 3000000 | N22: 2 | O22: 100000 | P22: 23 | Q22: 1000 | R22: 247 | S22: 500 | T22: 1496 | U22: 50 | V22: 14542 | W22: 20 | X22: 23602 | Y22: 10 | Z22: 224743 | AA22: 5 | AB22: 318780 | AC22: 2.2 | AD22: 10 | AE22: 20000 | AF22: F 6861 7845,S 0849 2822,Q 6710 8397,V 6210 1306,L 4878 8621,E 6483 0352,E 7169 7586,L 5500 9416,P 1311 6897,U 6232 0193 | AG22: 0 527 710 | AH22: eur
A23: 2019093 | B23: LUNDI | C23: 2019-08-05 | D23: 2019-10-05 | E23: 5 | F23: 45 | G23: 22 | H23: 26 | I23: 33 | J23: 9 | K23: 5-22-26-33-45+9 | L23: 0 | M23: 2000000 | N23: 0 | O23: 100000 | P23: 29 | Q23: 1000 | R23: 305 | S23: 500 | T23: 1337 | U23: 50 | V23: 12658 | W23: 20 | X23: 19485 | Y23: 10 | Z23: 181438 | AA23: 5 | AB23: 252861 | AC23: 2.2 | AD23: 10 | AE23: 20000 | AF23: P 9216 3441,B 8124 1059,S 6939 6461,L 5336 2822,W 1604 7137,H 3057 5518,U 5958 1989,A 2083 6363,F 6884 3870,G 9002 0164 | AG23: 5658433 | AH23: eur
A24: 2019092 | B24: SAMEDI | C24: 2019-08-03 | D24: 2019-10-03 | E24: 10 | F24: 4 | G24: 5 | H24: 23 | I24: 7 | J24: 4 | K24: 4-5-7-10-23+4 | L24: 2 | M24: 1000000 | N24: 5 | O24: 100000 | P24: 141 | Q24: 1000 | R24: 1381 | S24: 500 | T24: 4805 | U24: 50 | V24: 42390 | W24: 20 | X24: 46908 | Y24: 10 | Z24: 428364 | AA24: 5 | AB24: 413895 | AC24: 2.2 | AD24: 10 | AE24: 20000 | AF24: L 7152 7355,H 1840 4158,Q 3349 3959,F 3374 6986,I 8838 9713,S 9454 0035,E 4802 5191,K 1120 8167,L 1618 1978,C 4184 4296 | AG24: 4236596 | AH24: eur
A25: 2019091 | B25: MERCREDI | C25: 2019-07-31 | D25: 2019-09-30 | E25: 32 | F25: 18 | G25: 8 | H25: 36 | I25: 30 | J25: 5 | K25: 8-18-30-32-36+5 | L25: 1 | M25: 3000000 | N25: 0 | O25: 100000 | P25: 23 | Q25: 1000 | R25: 287 | S25: 500 | T25: 1726 | U25: 50 | V25: 13120 | W25: 20 | X25: 26178 | Y25: 10 | Z25: 198541 | AA25: 5 | AB25: 396910 | AC25: 2.2 | AD25: 10 | AE25: 20000 | AF25: S 2637 6076,H 9135 1156,E 7558 2208,V 4491 1929,G 6063 6954,M 6226 6712,G 3364 0553,V 1607 1729,K 4233 0634,M 0576 9077 | AG25: 9240144 | AH25: eur
A26: 2019090 | B26: LUNDI | C26: 2019-07-29 | D26: 2019-09-28 | E26: 6 | F26: 29 | G26: 3 | H26: 47 | I26: 21 | J26: 3 | K26: 3-6-21-29-47+3 | L26: 0 | M26: 2000000 | N26: 0 | O26: 100000 | P26: 51 | Q26: 1000 | R26: 307 | S26: 500 | T26: 1774 | U26: 50 | V26: 13555 | W26: 20 | X26: 23634 | Y26: 10 | Z26: 182790 | AA26: 5 | AB26: 270961 | AC26: 2.2 | AD26: 10 | AE26: 20000 | AF26: P 2913 6241,H 7021 8671,I 2485 3228,U 5127 1733,J 7481 1313,K 6696 3400,I 5209 6292,G 9796 5313,G 0994 7950,V 4781 2880 | AG26: 1378477 | AH26: eur
A27: 2019089 | B27: SAMEDI | C27: 2019-07-27 | D27: 2019-09-26 | E27: 25 | F27: 28 | G27: 39 | H27: 47 | I27: 31 | J27: 8 | K27: 25-28-31-39-47+8 | L27: 1 | M27: 3000000 | N27: 2 | O27: 100000 | P27: 37 | Q27: 1000 | R27: 382 | S27: 500 | T27: 1954 | U27: 50 | V27: 15972 | W27: 20 | X27: 29512 | Y27: 10 | Z27: 249223 | AA27: 5 | AB27: 462652 | AC27: 2.2 | AD27: 10 | AE27: 20000 | AF27: S 2277 4807,K 7711 8423,M 8056 2225,G 4141 9552,M 3415 7902,L 2462 0819,U 1433 7262,S 8835 4497,G 3058 5603,T 5528 6732 | AG27: 7140557 | AH27: eur
A28: 2019088 | B28: MERCREDI | C28: 2019-07-24 | D28: 2019-09-23 | E28: 39 | F28: 25 | G28: 10 | H28: 32 | I28: 40 | J28: 10 | K28: 10-25-32-39-40+10 | L28: 0 | M28: 2000000 | N28: 0 | O28: 100000 | P28: 14 | Q28: 1000 | R28: 230 | S28: 500 | T28: 1022 | U28: 50 | V28: 11247 | W28: 20 | X28: 15864 | Y28: 10 | Z28: 178553 | AA28: 5 | AB28: 246425 | AC28: 2.2 | AD28: 10 | AE28: 20000 | AF28: J 1146 6720,A 7509 6943,N 9107 8073,A 0494 1606,H 2594 8377,V 8181 7883,U 4034 0266,F 0795 4517,G 0483 6491,S 5778 8469 | AG28: 6116229 | AH28: eur
A29: 2019087 | B29: LUNDI | C29: 2019-07-22 | D29: 2019-09-21 | E29: 28 | F29: 37 | G29: 44 | H29: 11 | I29: 7 | J29: 3 | K29: 7-11-28-37-44+3 | L29: 1 | M29: 4000000 | N29: 4 | O29: 100000 | P29: 51 | Q29: 1000 | R29: 403 | S29: 500 | T29: 1927 | U29: 50 | V29: 15368 | W29: 20 | X29: 24404 | Y29: 10 | Z29: 203570 | AA29: 5 | AB29: 281712 | AC29: 2.2 | AD29: 10 | AE29: 20000 | AF29: U 4310 8244,H 0403 1348,R 0509 0680,J 2829 6494,A 4815 9682,Q 0345 8374,T 6789 9857,H 9553 1042,I 3917 2743,N 4466 5055 | AG29: 7481767 | AH29: eur
A30: 2019086 | B30: SAMEDI | C30: 2019-07-20 | D30: 2019-09-19 | E30: 21 | F30: 17 | G30: 29 | H30: 35 | I30: 18 | J30: 6 | K30: 17-18-21-29-35+6 | L30: 0 | M30: 3000000 | N30: 1 | O30: 100000 | P30: 42 | Q30: 1000 | R30: 413 | S30: 500 | T30: 2202 | U30: 50 | V30: 20936 | W30: 20 | X30: 31144 | Y30: 10 | Z30: 308081 | AA30: 5 | AB30: 415450 | AC30: 2.2 | AD30: 10 | AE30: 20000 | AF30: C 0083 1084,D 3967 9440,I 3182 0245,I 5423 8775,V 6209 7116,S 1497 8947,M 7069 7399,L 6786 5857,G 4789 4876,F 0684 6087 | AG30: 8072717 | AH30: eur
A31: 2019085 | B31: MERCREDI | C31: 2019-07-17 | D31: 2019-09-16 | E31: 26 | F31: 4 | G31: 27 | H31: 47 | I31: 28 | J31: 8 | K31: 4-26-27-28-47+8 | L31: 0 | M31: 2000000 | N31: 1 | O31: 100000 | P31: 20 | Q31: 1000 | R31: 257 | S31: 500 | T31: 1535 | U31: 50 | V31: 13978 | W31: 20 | X31: 24693 | Y31: 10 | Z31: 217986 | AA31: 5 | AB31: 335196 | AC31: 2.2 | AD31: 10 | AE31: 20000 | AF31: O 2037 7636,M 9582 3471,I 0108 6791,M 4886 7194,P 0266 6104,T 4029 8967,R 5615 3642,G 9864 4232,Q 1921 4658,V 0258 0546 | AG31: 0 163 673 | AH31: eur
A32: 2019084 | B32: LUNDI | C32: 2019-07-15 | D32: 2019-09-14 | E32: 10 | F32: 1 | G32: 19 | H32: 13 | I32: 3 | J32: 4 | K32: 1-3-10-13-19+4 | L32: 2 | M32: 7000000 | N32: 8 | O32: 100000 | P32: 90 | Q32: 1000 | R32: 1066 | S32: 500 | T32: 2825 | U32: 50 | V32: 30170 | W32: 20 | X32: 30086 | Y32: 10 | Z32: 291325 | AA32: 5 | AB32: 297892 | AC32: 2.2 | AD32: 10 | AE32: 20000 | AF32: N 8968 7997,J 9412 0928,K 4169 6512,F 0595 1317,C 4418 7925,O 3841 2617,I 2127 0124,S 5997 3545,R 5887 7476,D 5916 5825 | AG32: 0 701 598 | AH32: eur
A33: 2019083 | B33: SAMEDI | C33: 2019-07-13 | D33: 2019-09-12 | E33: 27 | F33: 18 | G33: 49 | H33: 37 | I33: 48 | J33: 10 | K33: 18-27-37-48-49+10 | L33: 0 | M33: 2000000 | N33: 0 | O33: 100000 | P33: 32 | Q33: 1000 | R33: 440 | S33: 500 | T33: 1672 | U33: 50 | V33: 18875 | W33: 20 | X33: 24840 | Y33: 10 | Z33: 282093 | AA33: 5 | AB33: 353554 | AC33: 2.2 | AD33: 10 | AE33: 20000 | AF33: B 7361 8459,T 5459 4561,O 6838 8769,E 1988 4793,Q 7573 5235,G 7155 1450,K 7426 2662,E 3646 2472,L 8105 6723,I 4272 3349 | AG33: 8639972 | AH33: eur
A34: 2019082 | B34: MERCREDI | C34: 2019-07-10 | D34: 2019-09-09 | E34: 7 | F34: 21 | G34: 29 | H34: 35 | I34: 47 | J34: 6 | K34: 7-21-29-35-47+6 | L34: 1 | M34: 3000000 | N34: 2 | O34: 100000 | P34: 42 | Q34: 1000 | R34: 390 | S34: 500 | T34: 1587 | U34: 50 | V34: 16221 | W34: 20 | X34: 21958 | Y34: 10 | Z34: 226464 | AA34: 5 | AB34: 310321 | AC34: 2.2 | AD34: 10 | AE34: 20000 | AF34: F 9247 0390,L 7040 3145,M 1497 9183,O 0632 1314,C 5653 7052,V 1640 7652,C 5986 2625,L 7977 2349,D 3788 6003,V 4087 2739 | AG34: 6116911 | AH34: eur
A35: 2019081 | B35: LUNDI | C35: 2019-07-08 | D35: 2019-09-07 | E35: 26 | F35: 11 | G35: 38 | H35: 20 | I35: 33 | J35: 10 | K35: 11-20-26-33-38+10 | L35: 0 | M35: 2000000 | N35: 1 | O35: 100000 | P35: 22 | Q35: 1000 | R35: 245 | S35: 500 | T35: 922 | U35: 50 | V35: 12375 | W35: 20 | X35: 14426 | Y35: 10 | Z35: 182414 | AA35: 5 | AB35: 201303 | AC35: 2.2 | AD35: 10 | AE35: 20000 | AF35: W 1525 7457,K 4114 9771,F 3769 8040,N 3027 6109,G 6380 1497,U 1915 2435,Q 5635 1453,P 6347 2104,I 6510 4523,H 8613 8642 | AG35: 5930666 | AH35: eur
A36: 2019080 | B36: SAMEDI | C36: 2019-07-06 | D36: 2019-09-05 | E36: 13 | F36: 6 | G36: 2 | H36: 27 | I36: 12 | J36: 10 | K36: 2-6-12-13-27+10 | L36: 1 | M36: 11000000 | N36: 12 | O36: 100000 | P36: 92 | Q36: 1000 | R36: 1429 | S36: 500 | T36: 3331 | U36: 50 | V36: 45608 | W36: 20 | X36: 38272 | Y36: 10 | Z36: 483501 | AA36: 5 | AB36: 393501 | AC36: 2.2 | AD36: 10 | AE36: 20000 | AF36: J 7414 8112,E 4073 6988,D 1554 5969,B 7668 7368,N 0134 6509,A 6795 7406,N 2944 3413,P 3102 5055,V 5735 8034,J 2337 8149 | AG36: 0 942 420 | AH36: eur
A37: 2019079 | B37: MERCREDI | C37: 2019-07-03 | D37: 2019-09-02 | E37: 39 | F37: 38 | G37: 8 | H37: 31 | I37: 45 | J37: 8 | K37: 8-31-38-39-45+8 | L37: 0 | M37: 10000000 | N37: 0 | O37: 100000 | P37: 27 | Q37: 1000 | R37: 278 | S37: 500 | T37: 1661 | U37: 50 | V37: 12918 | W37: 20 | X37: 25508 | Y37: 10 | Z37: 205911 | AA37: 5 | AB37: 388645 | AC37: 2.2 | AD37: 10 | AE37: 20000 | AF37: D 8390 8445,S 0941 3050,R 7876 9048,D 0301 3361,H 4839 2609,R 5384 5589,K 0570 3816,J 5255 1589,B 0930 8249,S 9222 1488 | AG37: 0 211 392 | AH37: eur
A38: 2019078 | B38: LUNDI | C38: 2019-07-01 | D38: 2019-08-31 | E38: 38 | F38: 23 | G38: 41 | H38: 3 | I38: 17 | J38: 3 | K38: 3-17-23-38-41+3 | L38: 0 | M38: 9000000 | N38: 1 | O38: 100000 | P38: 42 | Q38: 1000 | R38: 304 | S38: 500 | T38: 1819 | U38: 50 | V38: 14055 | W38: 20 | X38: 24492 | Y38: 10 | Z38: 195074 | AA38: 5 | AB38: 313459 | AC38: 2.2 | AD38: 10 | AE38: 20000 | AF38: I 6380 7210,R 5962 6453,Q 6213 6343,H 4962 3772,M 0817 7268,B 8334 4590,C 4929 3905,T 5385 6030,A 1357 8930,C 1757 0200 | AG38: 7718534 | AH38: eur
A39: 2019077 | B39: SAMEDI | C39: 2019-06-29 | D39: 2019-08-29 | E39: 46 | F39: 42 | G39: 1 | H39: 4 | I39: 3 | J39: 3 | K39: 1-3-4-42-46+3 | L39: 0 | M39: 8000000 | N39: 0 | O39: 100000 | P39: 38 | Q39: 1000 | R39: 314 | S39: 500 | T39: 2162 | U39: 50 | V39: 18172 | W39: 20 | X39: 36601 | Y39: 10 | Z39: 302878 | AA39: 5 | AB39: 513305 | AC39: 2.2 | AD39: 10 | AE39: 20000 | AF39: B 0258 2340,K 8594 8228,Q 9705 5982,U 3319 5822,E 3783 1272,B 4670 4368,B 8297 9809,M 7163 5057,T 7607 0493,U 2644 1264 | AG39: 8248382 | AH39: eur
A40: 2019076 | B40: MERCREDI | C40: 2019-06-26 | D40: 2019-08-26 | E40: 4 | F40: 47 | G40: 43 | H40: 30 | I40: 7 | J40: 10 | K40: 4-7-30-43-47+10 | L40: 0 | M40: 7000000 | N40: 1 | O40: 100000 | P40: 28 | Q40: 1000 | R40: 379 | S40: 500 | T40: 1374 | U40: 50 | V40: 15889 | W40: 20 | X40: 20348 | Y40: 10 | Z40: 238816 | AA40: 5 | AB40: 270892 | AC40: 2.2 | AD40: 10 | AE40: 20000 | AF40: L 9056 5984,B 1029 7764,P 3221 0415,P 9491 7020,T 1117 6897,H 1121 9345,M 0685 1093,U 8279 6942,B 4923 9516,R 2773 0922 | AG40: 6366172 | AH40: eur
A41: 2019075 | B41: LUNDI | C41: 2019-06-24 | D41: 2019-08-24 | E41: 33 | F41: 16 | G41: 1 | H41: 32 | I41: 45 | J41: 6 | K41: 1-16-32-33-45+6 | L41: 0 | M41: 6000000 | N41: 0 | O41: 100000 | P41: 20 | Q41: 1000 | R41: 208 | S41: 500 | T41: 1040 | U41: 50 | V41: 9799 | W41: 20 | X41: 16128 | Y41: 10 | Z41: 159517 | AA41: 5 | AB41: 265979 | AC41: 2.2 | AD41: 10 | AE41: 20000 | AF41: K 5287 7661,H 3357 0406,B 3043 4747,M 8457 2327,V 1897 3331,M 1616 7198,Q 5776 3774,G 2757 8806,O 3296 3431,R 4534 0893 | AG41: 2111368 | AH41: eur
A42: 2019074 | B42: SAMEDI | C42: 2019-06-22 | D42: 2019-08-22 | E42: 13 | F42: 20 | G42: 10 | H42: 25 | I42: 27 | J42: 2 | K42: 10-13-20-25-27+2 | L42: 0 | M42: 5000000 | N42: 7 | O42: 100000 | P42: 96 | Q42: 1000 | R42: 1090 | S42: 500 | T42: 3237 | U42: 50 | V42: 37389 | W42: 20 | X42: 37443 | Y42: 10 | Z42: 419409 | AA42: 5 | AB42: 389201 | AC42: 2.2 | AD42: 10 | AE42: 20000 | AF42: B 5086 8642,O 8267 8332,R 8632 3826,G 3587 2109,L 4480 1590,F 9105 9689,G 6375 9310,P 3915 2795,B 6122 1149,P 9174 7092 | AG42: 3221726 | AH42: eur
A43: 2019073 | B43: MERCREDI | C43: 2019-06-19 | D43: 2019-08-19 | E43: 45 | F43: 46 | G43: 4 | H43: 36 | I43: 18 | J43: 5 | K43: 4-18-36-45-46+5 | L43: 0 | M43: 4000000 | N43: 0 | O43: 100000 | P43: 31 | Q43: 1000 | R43: 228 | S43: 500 | T43: 1562 | U43: 50 | V43: 12281 | W43: 20 | X43: 23843 | Y43: 10 | Z43: 188801 | AA43: 5 | AB43: 421155 | AC43: 2.2 | AD43: 10 | AE43: 20000 | AF43: O 3830 5430,J 4718 4573,Q 5575 8943,E 0307 2426,T 0804 5171,J 3643 1667,L 3387 4830,N 9469 2120,K 7285 1659,D 9465 0734 | AG43: 8583986 | AH43: eur
A44: 2019072 | B44: LUNDI | C44: 2019-06-17 | D44: 2019-08-17 | E44: 20 | F44: 49 | G44: 31 | H44: 12 | I44: 13 | J44: 2 | K44: 12-13-20-31-49+2 | L44: 0 | M44: 3000000 | N44: 1 | O44: 100000 | P44: 39 | Q44: 1000 | R44: 361 | S44: 500 | T44: 1402 | U44: 50 | V44: 16429 | W44: 20 | X44: 19804 | Y44: 10 | Z44: 221684 | AA44: 5 | AB44: 230049 | AC44: 2.2 | AD44: 10 | AE44: 20000 | AF44: D 1783 4745,V 8168 0179,G 2174 3995,Q 1750 4915,U 5740 0500,D 8269 3616,M 9239 4419,J 8800 0174,Q 6000 5837,T 0133 2951 | AG44: 0 062 009 | AH44: eur
A45: 2019071 | B45: SAMEDI | C45: 2019-06-15 | D45: 2019-08-15 | E45: 2 | F45: 13 | G45: 20 | H45: 30 | I45: 37 | J45: 6 | K45: 2-13-20-30-37+6 | L45: 0 | M45: 2000000 | N45: 0 | O45: 100000 | P45: 49 | Q45: 1000 | R45: 562 | S45: 500 | T45: 2450 | U45: 50 | V45: 24514 | W45: 20 | X45: 34656 | Y45: 10 | Z45: 340906 | AA45: 5 | AB45: 448338 | AC45: 2.2 | AD45: 10 | AE45: 20000 | AF45: U 8024 2742,T 6587 4934,T 6528 0507,N 8454 1879,N 7128 8060,M 5134 2093,M 8518 6680,B 5950 5329,C 1636 4114,T 1255 0718 | AG45: 6442007 | AH45: eur
A46: 2019070 | B46: MERCREDI | C46: 2019-06-12 | D46: 2019-08-12 | E46: 25 | F46: 31 | G46: 45 | H46: 38 | I46: 3 | J46: 9 | K46: 3-25-31-38-45+9 | L46: 1 | M46: 7000000 | N46: 0 | O46: 100000 | P46: 33 | Q46: 1000 | R46: 343 | S46: 500 | T46: 1659 | U46: 50 | V46: 15250 | W46: 20 | X46: 24846 | Y46: 10 | Z46: 232369 | AA46: 5 | AB46: 370287 | AC46: 2.2 | AD46: 10 | AE46: 20000 | AF46: T 8159 3883,Q 9520 7900,R 7749 4580,B 9016 5310,P 3060 4207,P 0334 4569,A 8023 3998,F 4497 8969,O 5991 1005,C 5274 6112 | AG46: 0 833 191 | AH46: eur
A47: 2019069 | B47: LUNDI | C47: 2019-06-10 | D47: 2019-08-10 | E47: 9 | F47: 24 | G47: 18 | H47: 49 | I47: 39 | J47: 8 | K47: 9-18-24-39-49+8 | L47: 0 | M47: 6000000 | N47: 2 | O47: 100000 | P47: 40 | Q47: 1000 | R47: 360 | S47: 500 | T47: 1410 | U47: 50 | V47: 13089 | W47: 20 | X47: 20056 | Y47: 10 | Z47: 181879 | AA47: 5 | AB47: 270019 | AC47: 2.2 | AD47: 10 | AE47: 20000 | AF47: S 0177 2985,N 6172 8280,J 1181 1663,R 6586 1796,W 1412 0749,R 6549 4410,D 8696 7654,W 1400 8871,W 1407 5856,V 6387 6950 | AG47: 9003651 | AH47: eur
A48: 2019068 | B48: SAMEDI | C48: 2019-06-08 | D48: 2019-08-08 | E48: 14 | F48: 41 | G48: 9 | H48: 10 | I48: 45 | J48: 1 | K48: 9-10-14-41-45+1 | L48: 0 | M48: 5000000 | N48: 2 | O48: 100000 | P48: 54 | Q48: 1000 | R48: 423 | S48: 500 | T48: 1963 | U48: 50 | V48: 22493 | W48: 20 | X48: 30007 | Y48: 10 | Z48: 352864 | AA48: 5 | AB48: 388749 | AC48: 2.2 | AD48: 10 | AE48: 20000 | AF48: A 5578 4813,C 9652 7951,U 9181 0981,B 1090 7550,E 8333 8266,T 9315 3435,M 1418 9905,M 0925 4444,H 2458 8277,R 8201 1353 | AG48: 7972704 | AH48: eur
A49: 2019067 | B49: MERCREDI | C49: 2019-06-05 | D49: 2019-08-05 | E49: 28 | F49: 47 | G49: 26 | H49: 38 | I49: 17 | J49: 7 | K49: 17-26-28-38-47+7 | L49: 0 | M49: 4000000 | N49: 1 | O49: 100000 | P49: 43 | Q49: 1000 | R49: 335 | S49: 500 | T49: 2464 | U49: 50 | V49: 14056 | W49: 20 | X49: 37486 | Y49: 10 | Z49: 207807 | AA49: 5 | AB49: 537195 | AC49: 2.2 | AD49: 10 | AE49: 20000 | AF49: S 6405 5727,P 9071 2786,A 7126 8910,T 4302 6783,O 1858 3200,M 0070 2822,R 9644 6209,W 1391 8465,C 1306 6788,U 9556 2225 | AG49: 0 372 859 | AH49: eur
A50: 2019066 | B50: LUNDI | C50: 2019-06-03 | D50: 2019-08-03 | E50: 42 | F50: 12 | G50: 9 | H50: 41 | I50: 33 | J50: 1 | K50: 9-12-33-41-42+1 | L50: 0 | M50: 3000000 | N50: 3 | O50: 100000 | P50: 19 | Q50: 1000 | R50: 318 | S50: 500 | T50: 971 | U50: 50 | V50: 12493 | W50: 20 | X50: 15609 | Y50: 10 | Z50: 190235 | AA50: 5 | AB50: 211640 | AC50: 2.2 | AD50: 10 | AE50: 20000 | AF50: A 5428 0086,B 2800 4205,E 4063 9752,V 0658 0218,D 4576 1656,B 9717 2270,H 5110 7898,B 5169 2301,F 6594 3039,U 7038 5772 | AG50: 7193080 | AH50: eur
A51: 2019065 | B51: SAMEDI | C51: 2019-06-01 | D51: 2019-08-01 | E51: 35 | F51: 26 | G51: 13 | H51: 45 | I51: 20 | J51: 3 | K51: 13-20-26-35-45+3 | L51: 0 | M51: 2000000 | N51: 1 | O51: 100000 | P51: 48 | Q51: 1000 | R51: 446 | S51: 500 | T51: 2284 | U51: 50 | V51: 20005 | W51: 20 | X51: 34887 | Y51: 10 | Z51: 296202 | AA51: 5 | AB51: 485439 | AC51: 2.2 | AD51: 10 | AE51: 20000 | AF51: J 3667 4088,M 9031 7414,T 0047 2016,H 3527 0860,G 5118 2972,I 7391 5229,F 5401 0027,I 5907 3859,G 2613 6693,K 3338 3641 | AG51: 7773118 | AH51: eur
A52: 2019064 | B52: MERCREDI | C52: 2019-05-29 | D52: 2019-07-29 | E52: 36 | F52: 48 | G52: 14 | H52: 13 | I52: 6 | J52: 2 | K52: 6-13-14-36-48+2 | L52: 1 | M52: 12000000 | N52: 2 | O52: 100000 | P52: 30 | Q52: 1000 | R52: 370 | S52: 500 | T52: 1695 | U52: 50 | V52: 18079 | W52: 20 | X52: 25710 | Y52: 10 | Z52: 283491 | AA52: 5 | AB52: 352581 | AC52: 2.2 | AD52: 10 | AE52: 20000 | AF52: J 8565 8157,U 3670 2112,R 8003 9417,C 7049 4102,O 2541 0167,U 9079 8292,H 5217 1797,V 2868 2803,I 0217 1844,J 9402 9629 | AG52: 5682214 | AH52: eur
A53: 2019063 | B53: LUNDI | C53: 2019-05-27 | D53: 2019-07-27 | E53: 33 | F53: 13 | G53: 28 | H53: 18 | I53: 42 | J53: 9 | K53: 13-18-28-33-42+9 | L53: 0 | M53: 11000000 | N53: 1 | O53: 100000 | P53: 23 | Q53: 1000 | R53: 456 | S53: 500 | T53: 1789 | U53: 50 | V53: 17445 | W53: 20 | X53: 25552 | Y53: 10 | Z53: 238956 | AA53: 5 | AB53: 317553 | AC53: 2.2 | AD53: 10 | AE53: 20000 | AF53: A 6212 6913,F 8645 6468,H 1571 6118,U 0464 5428,J 4313 4919,R 2016 9245,C 6782 8464,U 2057 2020,P 5683 6675,B 8531 1401 | AG53: 8850305 | AH53: eur
A54: 2019062 | B54: SAMEDI | C54: 2019-05-25 | D54: 2019-07-25 | E54: 42 | F54: 47 | G54: 2 | H54: 13 | I54: 43 | J54: 10 | K54: 2-13-42-43-47+10 | L54: 0 | M54: 10000000 | N54: 0 | O54: 100000 | P54: 42 | Q54: 1000 | R54: 436 | S54: 500 | T54: 2260 | U54: 50 | V54: 24120 | W54: 20 | X54: 34681 | Y54: 10 | Z54: 387323 | AA54: 5 | AB54: 509636 | AC54: 2.2 | AD54: 10 | AE54: 20000 | AF54: F 6901 2518,U 3972 1550,T 4562 5063,L 5538 5688,Q 8199 8789,F 9661 3080,W 1332 0630,H 0774 5513,K 0642 2020,I 6284 3150 | AG54: 6655258 | AH54: eur
A55: 2019061 | B55: MERCREDI | C55: 2019-05-22 | D55: 2019-07-22 | E55: 1 | F55: 48 | G55: 27 | H55: 49 | I55: 37 | J55: 1 | K55: 1-27-37-48-49+1 | L55: 0 | M55: 4000000 | N55: 0 | O55: 100000 | P55: 35 | Q55: 1000 | R55: 285 | S55: 500 | T55: 1473 | U55: 50 | V55: 14480 | W55: 20 | X55: 19071 | Y55: 10 | Z55: 212479 | AA55: 5 | AB55: 262661 | AC55: 2.2 | AD55: 10 | AE55: 20000 | AF55: A 3857 2082,P 9132 6685,K 9256 0068,W 1325 2087,M 1962 7552,V 6642 8508,W 1328 4000,V 6040 7642,E 0710 1019,W 1329 0224 | AG55: 9037970 | AH55: eur
A56: 2019060 | B56: LUNDI | C56: 2019-05-20 | D56: 2019-07-20 | E56: 32 | F56: 14 | G56: 43 | H56: 29 | I56: 41 | J56: 1 | K56: 14-29-32-41-43+1 | L56: 0 | M56: 3000000 | N56: 0 | O56: 100000 | P56: 21 | Q56: 1000 | R56: 302 | S56: 500 | T56: 883 | U56: 50 | V56: 10793 | W56: 20 | X56: 12700 | Y56: 10 | Z56: 155821 | AA56: 5 | AB56: 212084 | AC56: 2.2 | AD56: 10 | AE56: 20000 | AF56: Q 4799 6330,B 6989 1889,E 3773 4292,P 7044 9420,W 1288 2344,I 6264 4724,N 5949 7829,K 9142 0865,S 0641 7944,P 8544 6764 | AG56: 2441067 | AH56: eur
A57: 2019059 | B57: SAMEDI | C57: 2019-05-18 | D57: 2019-07-18 | E57: 19 | F57: 4 | G57: 10 | H57: 42 | I57: 46 | J57: 5 | K57: 4-10-19-42-46+5 | L57: 0 | M57: 2000000 | N57: 0 | O57: 100000 | P57: 73 | Q57: 1000 | R57: 530 | S57: 500 | T57: 2858 | U57: 50 | V57: 22604 | W57: 20 | X57: 41278 | Y57: 10 | Z57: 324840 | AA57: 5 | AB57: 554897 | AC57: 2.2 | AD57: 10 | AE57: 20000 | AF57: N 0811 3406,B 4306 6849,H 5491 8532,I 5115 7864,P 3249 5267,F 7024 6549,B 5923 9884,I 6160 2134,J 3228 3680,I 2364 0346 | AG57: 9026936 | AH57: eur
A58: 2019058 | B58: MERCREDI | C58: 2019-05-15 | D58: 2019-07-15 | E58: 38 | F58: 44 | G58: 46 | H58: 27 | I58: 42 | J58: 1 | K58: 27-38-42-44-46+1 | L58: 1 | M58: 21000000 | N58: 0 | O58: 100000 | P58: 48 | Q58: 1000 | R58: 560 | S58: 500 | T58: 1549 | U58: 50 | V58: 19528 | W58: 20 | X58: 21854 | Y58: 10 | Z58: 261043 | AA58: 5 | AB58: 375916 | AC58: 2.2 | AD58: 10 | AE58: 20000 | AF58: I 1394 8619,C 8582 4615,P 1100 5732,R 4704 8561,M 9970 6248,L 5495 0835,V 5408 5314,T 7220 7808,W 1305 4773,T 4791 9110 | AG58: 3260735 | AH58: eur
A59: 2019057 | B59: LUNDI | C59: 2019-05-13 | D59: 2019-07-13 | E59: 15 | F59: 24 | G59: 37 | H59: 40 | I59: 41 | J59: 4 | K59: 15-24-37-40-41+4 | L59: 0 | M59: 20000000 | N59: 1 | O59: 100000 | P59: 43 | Q59: 1000 | R59: 323 | S59: 500 | T59: 1893 | U59: 50 | V59: 14394 | W59: 20 | X59: 28535 | Y59: 10 | Z59: 225657 | AA59: 5 | AB59: 422437 | AC59: 2.2 | AD59: 10 | AE59: 20000 | AF59: O 8363 2957,U 4047 9239,Q 5741 2084,W 1285 8354,C 6349 4816,E 0294 0718,K 2203 1766,G 3725 2419,L 2519 0770,L 9806 0376 | AG59: 7509133 | AH59: eur
A60: 2019056 | B60: SAMEDI | C60: 2019-05-11 | D60: 2019-07-11 | E60: 24 | F60: 44 | G60: 34 | H60: 19 | I60: 45 | J60: 2 | K60: 19-24-34-44-45+2 | L60: 0 | M60: 19000000 | N60: 3 | O60: 100000 | P60: 40 | Q60: 1000 | R60: 601 | S60: 500 | T60: 2287 | U60: 50 | V60: 25095 | W60: 20 | X60: 35331 | Y60: 10 | Z60: 379451 | AA60: 5 | AB60: 525388 | AC60: 2.2 | AD60: 10 | AE60: 20000 | AF60: G 4925 7682,J 2167 1352,R 6270 8263,K 5729 0931,N 7012 4013,L 6826 5993,B 2540 7411,V 3993 6903,G 0659 7979,B 7557 3033 | AG60: 2281937 | AH60: eur
A61: 2019055 | B61: MERCREDI | C61: 2019-05-08 | D61: 2019-07-08 | E61: 2 | F61: 16 | G61: 4 | H61: 20 | I61: 35 | J61: 5 | K61: 2-4-16-20-35+5 | L61: 0 | M61: 18000000 | N61: 1 | O61: 100000 | P61: 54 | Q61: 1000 | R61: 425 | S61: 500 | T61: 2417 | U61: 50 | V61: 19358 | W61: 20 | X61: 34769 | Y61: 10 | Z61: 268798 | AA61: 5 | AB61: 483454 | AC61: 2.2 | AD61: 10 | AE61: 20000 | AF61: F 8358 9650,N 2944 1403,I 2715 7044,N 6362 1366,U 7681 4011,T 5631 2226,W 1233 2959,L 3363 4103,U 1034 8745,P 8087 9564 | AG61: 9848749 | AH61: eur
A62: 2019054 | B62: LUNDI | C62: 2019-05-06 | D62: 2019-07-06 | E62: 23 | F62: 38 | G62: 5 | H62: 24 | I62: 35 | J62: 3 | K62: 5-23-24-35-38+3 | L62: 0 | M62: 17000000 | N62: 1 | O62: 100000 | P62: 26 | Q62: 1000 | R62: 289 | S62: 500 | T62: 1768 | U62: 50 | V62: 14348 | W62: 20 | X62: 26882 | Y62: 10 | Z62: 226673 | AA62: 5 | AB62: 366150 | AC62: 2.2 | AD62: 10 | AE62: 20000 | AF62: S 5974 3701,T 1822 1640,P 9158 1128,T 0666 8942,V 5262 6861,T 1523 6691,R 2208 1717,V 3338 1817,T 0852 2883,Q 5357 4127 | AG62: 4384632 | AH62: eur
A63: 2019053 | B63: SAMEDI | C63: 2019-05-04 | D63: 2019-07-04 | E63: 38 | F63: 18 | G63: 3 | H63: 24 | I63: 29 | J63: 9 | K63: 3-18-24-29-38+9 | L63: 0 | M63: 16000000 | N63: 2 | O63: 100000 | P63: 87 | Q63: 1000 | R63: 651 | S63: 500 | T63: 3325 | U63: 50 | V63: 29007 | W63: 20 | X63: 44095 | Y63: 10 | Z63: 404035 | AA63: 5 | AB63: 562366 | AC63: 2.2 | AD63: 10 | AE63: 20000 | AF63: A 7552 5830,E 5628 9680,R 1571 5132,P 7293 9154,A 1606 2058,M 5918 0576,P 4241 1752,K 0013 9782,D 2097 7978,V 7460 9142 | AG63: 5866422 | AH63: eur
A64: 2019052 | B64: MERCREDI | C64: 2019-05-01 | D64: 2019-07-01 | E64: 26 | F64: 48 | G64: 25 | H64: 16 | I64: 34 | J64: 8 | K64: 16-25-26-34-48+8 | L64: 0 | M64: 15000000 | N64: 2 | O64: 100000 | P64: 27 | Q64: 1000 | R64: 260 | S64: 500 | T64: 1725 | U64: 50 | V64: 14097 | W64: 20 | X64: 24788 | Y64: 10 | Z64: 215394 | AA64: 5 | AB64: 379556 | AC64: 2.2 | AD64: 10 | AE64: 20000 | AF64: R 4977 2530,M 9188 0592,F 9434 4003,O 0240 3314,W 1182 9217,F 8705 9751,H 5220 3344,N 9479 1542,V 7424 7666,N 4844 7046 | AG64: 1811975 | AH64: eur
A65: 2019051 | B65: LUNDI | C65: 2019-04-29 | D65: 2019-06-29 | E65: 33 | F65: 43 | G65: 39 | H65: 6 | I65: 29 | J65: 2 | K65: 6-29-33-39-43+2 | L65: 0 | M65: 14000000 | N65: 0 | O65: 100000 | P65: 33 | Q65: 1000 | R65: 278 | S65: 500 | T65: 1114 | U65: 50 | V65: 12589 | W65: 20 | X65: 17853 | Y65: 10 | Z65: 199031 | AA65: 5 | AB65: 281151 | AC65: 2.2 | AD65: 10 | AE65: 20000 | AF65: N 0296 5204,S 5966 5923,D 7379 5214,T 8977 7858,L 8512 5961,E 6273 0102,S 5088 7063,N 3645 8471,U 1756 4046,V 8191 5422 | AG65: 7672978 | AH65: eur
A66: 2019050 | B66: SAMEDI | C66: 2019-04-27 | D66: 2019-06-27 | E66: 27 | F66: 17 | G66: 26 | H66: 25 | I66: 33 | J66: 2 | K66: 17-25-26-27-33+2 | L66: 0 | M66: 13000000 | N66: 5 | O66: 100000 | P66: 54 | Q66: 1000 | R66: 469 | S66: 500 | T66: 2366 | U66: 50 | V66: 26356 | W66: 20 | X66: 35538 | Y66: 10 | Z66: 390889 | AA66: 5 | AB66: 461685 | AC66: 2.2 | AD66: 10 | AE66: 20000 | AF66: O 8650 4046,B 8525 0153,M 4291 3011,Q 3658 9193,S 7185 5202,U 3359 9288,H 6473 4887,G 0403 0293,V 3252 1125,C 3772 4123 | AG66: 6289845 | AH66: eur
A67: 2019049 | B67: MERCREDI | C67: 2019-04-24 | D67: 2019-06-24 | E67: 3 | F67: 11 | G67: 35 | H67: 13 | I67: 15 | J67: 3 | K67: 3-11-13-15-35+3 | L67: 0 | M67: 12000000 | N67: 1 | O67: 100000 | P67: 105 | Q67: 1000 | R67: 589 | S67: 500 | T67: 3663 | U67: 50 | V67: 24503 | W67: 20 | X67: 41242 | Y67: 10 | Z67: 314142 | AA67: 5 | AB67: 394512 | AC67: 2.2 | AD67: 10 | AE67: 20000 | AF67: C 9169 2541,I 9979 7107,W 1142 2960,F 0553 0695,O 5659 5242,B 5118 1638,A 6370 5608,Q 0945 1571,O 2067 3025,B 9884 6020 | AG67: 1176101 | AH67: eur
A68: 2019048 | B68: LUNDI | C68: 2019-04-22 | D68: 2019-06-22 | E68: 39 | F68: 7 | G68: 21 | H68: 29 | I68: 5 | J68: 7 | K68: 5-7-21-29-39+7 | L68: 0 | M68: 11000000 | N68: 1 | O68: 100000 | P68: 62 | Q68: 1000 | R68: 357 | S68: 500 | T68: 2974 | U68: 50 | V68: 15870 | W68: 20 | X68: 38188 | Y68: 10 | Z68: 204380 | AA68: 5 | AB68: 402675 | AC68: 2.2 | AD68: 10 | AE68: 20000 | AF68: V 6078 8055,B 0123 1883,O 3823 8216,R 4507 9676,K 9125 0194,L 3126 8186,C 5440 8126,N 3213 2599,P 3564 0990,C 2313 4787 | AG68: 3505049 | AH68: eur
A69: 2019047 | B69: SAMEDI | C69: 2019-04-20 | D69: 2019-06-20 | E69: 4 | F69: 30 | G69: 15 | H69: 49 | I69: 45 | J69: 3 | K69: 4-15-30-45-49+3 | L69: 0 | M69: 10000000 | N69: 6 | O69: 100000 | P69: 59 | Q69: 1000 | R69: 605 | S69: 500 | T69: 2640 | U69: 50 | V69: 25562 | W69: 20 | X69: 40926 | Y69: 10 | Z69: 377564 | AA69: 5 | AB69: 613556 | AC69: 2.2 | AD69: 10 | AE69: 20000 | AF69: P 1438 1660,V 4287 9876,H 7827 9507,J 0104 8482,I 8886 5908,O 4888 6444,U 9668 4305,J 5423 7026,E 0380 4891,F 2845 9858 | AG69: 8512812 | AH69: eur
A70: 2019046 | B70: MERCREDI | C70: 2019-04-17 | D70: 2019-06-17 | E70: 29 | F70: 17 | G70: 34 | H70: 48 | I70: 8 | J70: 3 | K70: 8-17-29-34-48+3 | L70: 0 | M70: 2000000 | N70: 2 | O70: 100000 | P70: 44 | Q70: 1000 | R70: 359 | S70: 500 | T70: 1821 | U70: 50 | V70: 15172 | W70: 20 | X70: 25217 | Y70: 10 | Z70: 215199 | AA70: 5 | AB70: 355694 | AC70: 2.2 | AD70: 10 | AE70: 20000 | AF70: R 2381 8373,U 6436 8934,W 1096 5393,U 9950 5216,J 3543 3796,D 5825 7033,N 1305 4678,D 8155 9374,F 1998 6246,R 6688 4855 | AG70: 9484635 | AH70: eur
A71: 2019045 | B71: LUNDI | C71: 2019-04-15 | D71: 2019-06-15 | E71: 32 | F71: 44 | G71: 40 | H71: 17 | I71: 38 | J71: 6 | K71: 17-32-38-40-44+6 | L71: 1 | M71: 3000000 | N71: 1 | O71: 100000 | P71: 16 | Q71: 1000 | R71: 247 | S71: 500 | T71: 1050 | U71: 50 | V71: 10126 | W71: 20 | X71: 14950 | Y71: 10 | Z71: 143738 | AA71: 5 | AB71: 261074 | AC71: 2.2 | AD71: 10 | AE71: 20000 | AF71: S 2241 9886,T 5685 5048,M 5863 3986,T 6794 8271,M 6684 2168,E 8190 1910,P 2234 3232,P 2199 4274,L 3176 0795,L 2778 2788 | AG71: 8691645 | AH71: eur
A72: 2019044 | B72: SAMEDI | C72: 2019-04-13 | D72: 2019-06-13 | E72: 17 | F72: 9 | G72: 1 | H72: 24 | I72: 46 | J72: 8 | K72: 1-9-17-24-46+8 | L72: 0 | M72: 2000000 | N72: 1 | O72: 100000 | P72: 71 | Q72: 1000 | R72: 724 | S72: 500 | T72: 2928 | U72: 50 | V72: 27725 | W72: 20 | X72: 39532 | Y72: 10 | Z72: 361683 | AA72: 5 | AB72: 485529 | AC72: 2.2 | AD72: 10 | AE72: 20000 | AF72: Q 2046 7025,V 6586 8311,Q 6608 3739,W 1091 9424,H 5047 7046,K 8000 7623,F 0944 1399,I 4529 4761,O 3294 2769,V 1384 5180 | AG72: 9943715 | AH72: eur
A73: 2019043 | B73: MERCREDI | C73: 2019-04-10 | D73: 2019-06-10 | E73: 22 | F73: 23 | G73: 14 | H73: 42 | I73: 16 | J73: 5 | K73: 14-16-22-23-42+5 | L73: 1 | M73: 2000000 | N73: 2 | O73: 100000 | P73: 45 | Q73: 1000 | R73: 372 | S73: 500 | T73: 2347 | U73: 50 | V73: 16712 | W73: 20 | X73: 32529 | Y73: 10 | Z73: 237221 | AA73: 5 | AB73: 407648 | AC73: 2.2 | AD73: 10 | AE73: 20000 | AF73: O 9899 2683,U 5635 6307,F 5901 5400,R 8996 6122,G 8075 5245,Q 8983 5043,H 0056 0298,N 2849 0185,M 9277 1974,E 8805 9984 | AG73: 5086703 | AH73: eur
A74: 2019042 | B74: LUNDI | C74: 2019-04-08 | D74: 2019-06-08 | E74: 24 | F74: 9 | G74: 26 | H74: 15 | I74: 13 | J74: 9 | K74: 9-13-15-24-26+9 | L74: 1 | M74: 2000000 | N74: 8 | O74: 100000 | P74: 69 | Q74: 1000 | R74: 673 | S74: 500 | T74: 2264 | U74: 50 | V74: 21132 | W74: 20 | X74: 26228 | Y74: 10 | Z74: 240400 | AA74: 5 | AB74: 257210 | AC74: 2.2 | AD74: 10 | AE74: 20000 | AF74: I 7236 0936,W 1080 0252,N 5475 6574,R 2344 2550,O 4325 5766,W 1080 1228,A 7086 0692,Q 5602 5776,F 0760 8354,P 1237 3628 | AG74: 4164131 | AH74: eur
A75: 2019041 | B75: SAMEDI | C75: 2019-04-06 | D75: 2019-06-06 | E75: 19 | F75: 26 | G75: 13 | H75: 27 | I75: 24 | J75: 7 | K75: 13-19-24-26-27+7 | L75: 1 | M75: 9000000 | N75: 5 | O75: 100000 | P75: 132 | Q75: 1000 | R75: 787 | S75: 500 | T75: 6116 | U75: 50 | V75: 32739 | W75: 20 | X75: 74808 | Y75: 10 | Z75: 408272 | AA75: 5 | AB75: 746104 | AC75: 2.2 | AD75: 10 | AE75: 20000 | AF75: R 2317 6883,N 0487 6838,O 8276 4109,K 5890 8637,N 5310 4541,A 1513 5435,S 1939 7207,G 9581 0911,A 0469 1399,P 4156 9560 | AG75: 1190178 | AH75: eur
A76: 2019040 | B76: MERCREDI | C76: 2019-04-03 | D76: 2019-06-03 | E76: 16 | F76: 38 | G76: 18 | H76: 45 | I76: 10 | J76: 3 | K76: 10-16-18-38-45+3 | L76: 0 | M76: 8000000 | N76: 1 | O76: 100000 | P76: 37 | Q76: 1000 | R76: 384 | S76: 500 | T76: 1903 | U76: 50 | V76: 16512 | W76: 20 | X76: 28605 | Y76: 10 | Z76: 245025 | AA76: 5 | AB76: 396414 | AC76: 2.2 | AD76: 10 | AE76: 20000 | AF76: A 3413 6682,Q 6686 0256,G 8339 5369,E 5822 5326,O 6426 9621,P 4140 8602,L 5901 8691,F 5067 1333,H 1112 1347,L 3502 5154 | AG76: 8798381 | AH76: eur
A77: 2019039 | B77: LUNDI | C77: 2019-04-01 | D77: 2019-06-01 | E77: 32 | F77: 14 | G77: 35 | H77: 46 | I77: 11 | J77: 10 | K77: 11-14-32-35-46+10 | L77: 0 | M77: 7000000 | N77: 0 | O77: 100000 | P77: 22 | Q77: 1000 | R77: 207 | S77: 500 | T77: 988 | U77: 50 | V77: 10806 | W77: 20 | X77: 15342 | Y77: 10 | Z77: 175354 | AA77: 5 | AB77: 237355 | AC77: 2.2 | AD77: 10 | AE77: 20000 | AF77: J 5958 1709,Q 4748 5278,W 1052 0388,A 6840 6797,N 7856 8171,A 0099 0547,A 0299 0513,F 1519 8342,O 9434 4592,D 5715 5378 | AG77: 2119906 | AH77: eur
A78: 2019038 | B78: SAMEDI | C78: 2019-03-30 | D78: 2019-05-30 | E78: 15 | F78: 44 | G78: 41 | H78: 3 | I78: 2 | J78: 3 | K78: 2-3-15-41-44+3 | L78: 0 | M78: 6000000 | N78: 3 | O78: 100000 | P78: 34 | Q78: 1000 | R78: 346 | S78: 500 | T78: 2276 | U78: 50 | V78: 18225 | W78: 20 | X78: 37095 | Y78: 10 | Z78: 306820 | AA78: 5 | AB78: 518643 | AC78: 2.2 | AD78: 10 | AE78: 20000 | AF78: J 6220 5183,G 5721 4724,O 3056 4384,S 2155 1629,E 7603 4355,R 8498 2002,P 3939 6536,O 6837 3523,J 8686 3929,B 0787 9020 | AG78: 4470636 | AH78: eur
A79: 2019037 | B79: MERCREDI | C79: 2019-03-27 | D79: 2019-05-27 | E79: 49 | F79: 45 | G79: 25 | H79: 10 | I79: 19 | J79: 1 | K79: 10-19-25-45-49+1 | L79: 0 | M79: 5000000 | N79: 3 | O79: 100000 | P79: 36 | Q79: 1000 | R79: 474 | S79: 500 | T79: 1559 | U79: 50 | V79: 19245 | W79: 20 | X79: 21707 | Y79: 10 | Z79: 265750 | AA79: 5 | AB79: 263298 | AC79: 2.2 | AD79: 10 | AE79: 20000 | AF79: R 8413 5760,J 6814 1199,J 8262 5014,E 3021 5847,M 2929 1962,W 1031 3593,J 7166 4302,U 5831 5950,F 8645 2187,H 0624 3155 | AG79: 1047946 | AH79: eur
A80: 2019036 | B80: LUNDI | C80: 2019-03-25 | D80: 2019-05-25 | E80: 46 | F80: 47 | G80: 23 | H80: 22 | I80: 24 | J80: 2 | K80: 22-23-24-46-47+2 | L80: 0 | M80: 4000000 | N80: 1 | O80: 100000 | P80: 21 | Q80: 1000 | R80: 200 | S80: 500 | T80: 879 | U80: 50 | V80: 9285 | W80: 20 | X80: 14822 | Y80: 10 | Z80: 163388 | AA80: 5 | AB80: 229775 | AC80: 2.2 | AD80: 10 | AE80: 20000 | AF80: A 1743 2221,P 3262 3316,B 0889 7730,I 6858 0643,W 1025 5218,D 5658 8498,U 6014 0410,T 8659 7741,S 7956 9774,E 7185 9911 | AG80: 2137631 | AH80: eur
A81: 2019035 | B81: SAMEDI | C81: 2019-03-23 | D81: 2019-05-23 | E81: 12 | F81: 1 | G81: 40 | H81: 28 | I81: 26 | J81: 6 | K81: 1-12-26-28-40+6 | L81: 0 | M81: 3000000 | N81: 4 | O81: 100000 | P81: 55 | Q81: 1000 | R81: 566 | S81: 500 | T81: 2480 | U81: 50 | V81: 25041 | W81: 20 | X81: 34960 | Y81: 10 | Z81: 347501 | AA81: 5 | AB81: 427153 | AC81: 2.2 | AD81: 10 | AE81: 20000 | AF81: Q 5694 4987,M 8494 1893,E 4547 8813,S 1834 1602,U 9814 4016,L 9762 6437,V 6725 7948,O 6451 3495,Q 2222 4197,L 8875 3152 | AG81: 1547886 | AH81: eur
A82: 2019034 | B82: MERCREDI | C82: 2019-03-20 | D82: 2019-05-20 | E82: 13 | F82: 3 | G82: 21 | H82: 2 | I82: 40 | J82: 8 | K82: 2-3-13-21-40+8 | L82: 0 | M82: 2000000 | N82: 0 | O82: 100000 | P82: 47 | Q82: 1000 | R82: 394 | S82: 500 | T82: 2123 | U82: 50 | V82: 19188 | W82: 20 | X82: 28941 | Y82: 10 | Z82: 261020 | AA82: 5 | AB82: 347072 | AC82: 2.2 | AD82: 10 | AE82: 20000 | AF82: N 2860 2566,H 7232 2179,G 2465 7828,F 3650 0276,U 5405 5887,A 5536 7322,Q 6138 7829,W 1007 6593,B 0318 9102,T 6496 4481 | AG82: 6574057 | AH82: eur
A83: 2019033 | B83: LUNDI | C83: 2019-03-18 | D83: 2019-05-18 | E83: 38 | F83: 23 | G83: 45 | H83: 24 | I83: 44 | J83: 6 | K83: 23-24-38-44-45+6 | L83: 1 | M83: 2000000 | N83: 0 | O83: 100000 | P83: 28 | Q83: 1000 | R83: 176 | S83: 500 | T83: 1020 | U83: 50 | V83: 9312 | W83: 20 | X83: 16344 | Y83: 10 | Z83: 156947 | AA83: 5 | AB83: 255138 | AC83: 2.2 | AD83: 10 | AE83: 20000 | AF83: G 5077 0590,V 4639 7846,B 3522 5890,G 3804 0314,J 8557 1943,F 1401 6587,J 4724 6766,R 7166 4125,F 3030 7205,N 1299 9471 | AG83: 5194922 | AH83: eur
A84: 2019032 | B84: SAMEDI | C84: 2019-03-16 | D84: 2019-05-16 | E84: 33 | F84: 19 | G84: 1 | H84: 31 | I84: 22 | J84: 1 | K84: 1-19-22-31-33+1 | L84: 1 | M84: 6000000 | N84: 4 | O84: 100000 | P84: 54 | Q84: 1000 | R84: 604 | S84: 500 | T84: 2609 | U84: 50 | V84: 27333 | W84: 20 | X84: 32519 | Y84: 10 | Z84: 371477 | AA84: 5 | AB84: 372637 | AC84: 2.2 | AD84: 10 | AE84: 20000 | AF84: A 5871 3239,F 1886 0998,U 6570 2949,F 3478 2556,C 9973 0381,D 8651 5114,H 9063 8336,L 1419 1988,F 4533 4462,U 2810 9942 | AG84: 3107826 | AH84: eur
A85: 2019031 | B85: MERCREDI | C85: 2019-03-13 | D85: 2019-05-13 | E85: 29 | F85: 5 | G85: 20 | H85: 8 | I85: 32 | J85: 3 | K85: 5-8-20-29-32+3 | L85: 0 | M85: 5000000 | N85: 3 | O85: 100000 | P85: 57 | Q85: 1000 | R85: 501 | S85: 500 | T85: 2393 | U85: 50 | V85: 19902 | W85: 20 | X85: 32018 | Y85: 10 | Z85: 270465 | AA85: 5 | AB85: 389244 | AC85: 2.2 | AD85: 10 | AE85: 20000 | AF85: R 0161 5113,O 9936 5567,I 0546 0793,I 1326 1277,G 5067 2840,O 4036 0631,K 0036 0771,S 2569 4654,E 8146 0923,V 8107 2809 | AG85: 3999277 | AH85: eur
A86: 2019030 | B86: LUNDI | C86: 2019-03-11 | D86: 2019-05-11 | E86: 25 | F86: 24 | G86: 16 | H86: 6 | I86: 5 | J86: 1 | K86: 5-6-16-24-25+1 | L86: 0 | M86: 4000000 | N86: 4 | O86: 100000 | P86: 45 | Q86: 1000 | R86: 434 | S86: 500 | T86: 1571 | U86: 50 | V86: 18679 | W86: 20 | X86: 19633 | Y86: 10 | Z86: 241448 | AA86: 5 | AB86: 214798 | AC86: 2.2 | AD86: 10 | AE86: 20000 | AF86: F 4032 3418,P 1001 8557,H 9654 9447,T 4504 5491,A 2634 5105,G 0127 9174,T 4292 3656,S 5259 4164,A 3977 7383,D 1589 6516 | AG86: 7792233 | AH86: eur
A87: 2019029 | B87: SAMEDI | C87: 2019-03-09 | D87: 2019-05-09 | E87: 32 | F87: 47 | G87: 43 | H87: 35 | I87: 15 | J87: 10 | K87: 15-32-35-43-47+10 | L87: 0 | M87: 3000000 | N87: 2 | O87: 100000 | P87: 57 | Q87: 1000 | R87: 394 | S87: 500 | T87: 1578 | U87: 50 | V87: 17398 | W87: 20 | X87: 23930 | Y87: 10 | Z87: 258760 | AA87: 5 | AB87: 401165 | AC87: 2.2 | AD87: 10 | AE87: 20000 | AF87: K 3726 3369,L 3919 1977,O 7942 8914,Q 5087 3096,E 7363 2838,R 7468 2207,K 3789 7083,S 2502 4581,A 2596 1380,H 7984 0366 | AG87: 9943811 | AH87: eur
A88: 2019028 | B88: MERCREDI | C88: 2019-03-06 | D88: 2019-05-06 | E88: 14 | F88: 23 | G88: 15 | H88: 44 | I88: 46 | J88: 5 | K88: 14-15-23-44-46+5 | L88: 0 | M88: 2000000 | N88: 0 | O88: 100000 | P88: 33 | Q88: 1000 | R88: 230 | S88: 500 | T88: 1856 | U88: 50 | V88: 13210 | W88: 20 | X88: 29168 | Y88: 10 | Z88: 212573 | AA88: 5 | AB88: 414328 | AC88: 2.2 | AD88: 10 | AE88: 20000 | AF88: H 5464 7652,C 7943 9332,R 6418 7527,P 2298 0074,O 3742 5315,K 2625 2134,H 0502 1771,U 8653 5922,G 3496 7289,G 2716 9207 | AG88: 3025613 | AH88: eur
A89: 2019027 | B89: LUNDI | C89: 2019-03-04 | D89: 2019-05-04 | E89: 4 | F89: 15 | G89: 11 | H89: 36 | I89: 33 | J89: 2 | K89: 4-11-15-33-36+2 | L89: 1 | M89: 7000000 | N89: 1 | O89: 100000 | P89: 35 | Q89: 1000 | R89: 297 | S89: 500 | T89: 1346 | U89: 50 | V89: 14756 | W89: 20 | X89: 19136 | Y89: 10 | Z89: 219462 | AA89: 5 | AB89: 250715 | AC89: 2.2 | AD89: 10 | AE89: 20000 | AF89: B 7806 7662,S 7064 1060,F 8342 1119,D 3264 1718,Q 1499 2269,H 1615 5352,K 4834 8080,C 5926 6395,D 7647 9312,B 8771 1318 | AG89: 7247034 | AH89: eur
A90: 2019026 | B90: SAMEDI | C90: 2019-03-02 | D90: 2019-05-02 | E90: 46 | F90: 42 | G90: 38 | H90: 25 | I90: 16 | J90: 9 | K90: 16-25-38-42-46+9 | L90: 0 | M90: 6000000 | N90: 2 | O90: 100000 | P90: 47 | Q90: 1000 | R90: 425 | S90: 500 | T90: 2068 | U90: 50 | V90: 19176 | W90: 20 | X90: 30230 | Y90: 10 | Z90: 283722 | AA90: 5 | AB90: 512200 | AC90: 2.2 | AD90: 10 | AE90: 20000 | AF90: E 7273 7397,C 0682 3287,B 0645 4648,M 8540 2902,L 3650 5674,D 9614 8237,P 9392 4467,G 8988 1486,S 3851 8346,T 8172 5852 | AG90: 1672923 | AH90: eur
A91: 2019025 | B91: MERCREDI | C91: 2019-02-27 | D91: 2019-04-29 | E91: 14 | F91: 1 | G91: 34 | H91: 19 | I91: 4 | J91: 2 | K91: 1-4-14-19-34+2 | L91: 0 | M91: 5000000 | N91: 0 | O91: 100000 | P91: 31 | Q91: 1000 | R91: 416 | S91: 500 | T91: 1701 | U91: 50 | V91: 20187 | W91: 20 | X91: 24153 | Y91: 10 | Z91: 272639 | AA91: 5 | AB91: 300927 | AC91: 2.2 | AD91: 10 | AE91: 20000 | AF91: B 4264 0717,D 5034 5096,L 6286 9771,Q 4467 6175,I 4667 4632,A 7173 2906,H 4359 2539,J 7325 1161,Q 5541 3430,N 5449 9493 | AG91: 2433121 | AH91: eur
A92: 2019024 | B92: LUNDI | C92: 2019-02-25 | D92: 2019-04-27 | E92: 7 | F92: 44 | G92: 37 | H92: 48 | I92: 38 | J92: 7 | K92: 7-37-38-44-48+7 | L92: 0 | M92: 4000000 | N92: 0 | O92: 100000 | P92: 48 | Q92: 1000 | R92: 181 | S92: 500 | T92: 1732 | U92: 50 | V92: 9799 | W92: 20 | X92: 27734 | Y92: 10 | Z92: 151855 | AA92: 5 | AB92: 433301 | AC92: 2.2 | AD92: 10 | AE92: 20000 | AF92: R 3329 7084,J 3818 3823,A 1155 6066,P 3526 8298,W 0926 6084,R 2639 7097,S 2510 7376,O 2415 6017,Q 4947 7534,Q 1765 2471 | AG92: 5031606 | AH92: eur
A93: 2019023 | B93: SAMEDI | C93: 2019-02-23 | D93: 2019-04-25 | E93: 3 | F93: 45 | G93: 13 | H93: 4 | I93: 44 | J93: 5 | K93: 3-4-13-44-45+5 | L93: 0 | M93: 3000000 | N93: 1 | O93: 100000 | P93: 43 | Q93: 1000 | R93: 424 | S93: 500 | T93: 2668 | U93: 50 | V93: 22864 | W93: 20 | X93: 43244 | Y93: 10 | Z93: 347123 | AA93: 5 | AB93: 561341 | AC93: 2.2 | AD93: 10 | AE93: 20000 | AF93: V 3722 4561,T 8722 8794,A 0899 8395,U 4783 5650,K 9220 3658,T 8680 1405,F 4948 0825,L 2979 3225,J 8017 1246,F 5587 1083 | AG93: 6273343 | AH93: eur
A94: 2019022 | B94: MERCREDI | C94: 2019-02-20 | D94: 2019-04-22 | E94: 25 | F94: 29 | G94: 8 | H94: 34 | I94: 15 | J94: 1 | K94: 8-15-25-29-34+1 | L94: 0 | M94: 2000000 | N94: 2 | O94: 100000 | P94: 50 | Q94: 1000 | R94: 345 | S94: 500 | T94: 1413 | U94: 50 | V94: 17630 | W94: 20 | X94: 19886 | Y94: 10 | Z94: 253327 | AA94: 5 | AB94: 267697 | AC94: 2.2 | AD94: 10 | AE94: 20000 | AF94: E 0854 5739,C 5416 5180,R 5699 4408,I 2074 9007,S 8426 5361,E 0561 7072,N 6772 5129,V 3669 9978,G 1862 0238,I 7510 0730 | AG94: 6468700 | AH94: eur
A95: 2019021 | B95: LUNDI | C95: 2019-02-18 | D95: 2019-04-20 | E95: 18 | F95: 9 | G95: 11 | H95: 33 | I95: 7 | J95: 9 | K95: 7-9-11-18-33+9 | L95: 1 | M95: 2000000 | N95: 1 | O95: 100000 | P95: 70 | Q95: 1000 | R95: 649 | S95: 500 | T95: 2739 | U95: 50 | V95: 23747 | W95: 20 | X95: 29193 | Y95: 10 | Z95: 264322 | AA95: 5 | AB95: 262263 | AC95: 2.2 | AD95: 10 | AE95: 20000 | AF95: V 0522 2099,S 2381 5953,S 5274 8578,O 0853 0988,C 8855 7288,I 9261 6022,O 8833 1806,F 9999 6558,S 2575 6621,U 7966 7797 | AG95: 3153532 | AH95: eur
A96: 2019020 | B96: SAMEDI | C96: 2019-02-16 | D96: 2019-04-18 | E96: 8 | F96: 7 | G96: 25 | H96: 11 | I96: 46 | J96: 7 | K96: 7-8-11-25-46+7 | L96: 1 | M96: 14000000 | N96: 5 | O96: 100000 | P96: 156 | Q96: 1000 | R96: 817 | S96: 500 | T96: 6515 | U96: 50 | V96: 34375 | W96: 20 | X96: 81313 | Y96: 10 | Z96: 455336 | AA96: 5 | AB96: 850950 | AC96: 2.2 | AD96: 10 | AE96: 20000 | AF96: Q 7225 4367,H 9140 5005,G 3444 2061,M 3621 4955,S 8750 6676,L 7083 0767,Q 3148 7115,M 2192 4169,E 5353 9361,Q 6490 6033 | AG96: 2595166 | AH96: eur
A97: 2019019 | B97: MERCREDI | C97: 2019-02-13 | D97: 2019-04-15 | E97: 43 | F97: 41 | G97: 29 | H97: 14 | I97: 7 | J97: 3 | K97: 7-14-29-41-43+3 | L97: 0 | M97: 13000000 | N97: 0 | O97: 100000 | P97: 64 | Q97: 1000 | R97: 601 | S97: 500 | T97: 3019 | U97: 50 | V97: 24984 | W97: 20 | X97: 41664 | Y97: 10 | Z97: 352370 | AA97: 5 | AB97: 551455 | AC97: 2.2 | AD97: 10 | AE97: 20000 | AF97: C 7247 6135,G 4886 2894,N 2158 4042,W 0868 5368,R 9537 3189,I 5371 8427,E 0508 9099,Q 2809 8198,K 8947 9117,S 6776 4085 | AG97: 7250317 | AH97: eur
A98: 2019018 | B98: LUNDI | C98: 2019-02-11 | D98: 2019-04-13 | E98: 43 | F98: 15 | G98: 13 | H98: 48 | I98: 25 | J98: 5 | K98: 13-15-25-43-48+5 | L98: 0 | M98: 12000000 | N98: 0 | O98: 100000 | P98: 43 | Q98: 1000 | R98: 325 | S98: 500 | T98: 2154 | U98: 50 | V98: 15249 | W98: 20 | X98: 31735 | Y98: 10 | Z98: 230939 | AA98: 5 | AB98: 405580 | AC98: 2.2 | AD98: 10 | AE98: 20000 | AF98: M 7475 9609,H 6304 3503,O 1435 4278,U 1455 1866,O 9101 0325,C 7624 2630,E 4818 9892,E 9002 9432,S 2764 4064,N 5183 1462 | AG98: 1236337 | AH98: eur
A99: 2019017 | B99: SAMEDI | C99: 2019-02-09 | D99: 2019-04-11 | E99: 47 | F99: 40 | G99: 45 | H99: 42 | I99: 3 | J99: 9 | K99: 3-40-42-45-47+9 | L99: 0 | M99: 11000000 | N99: 1 | O99: 100000 | P99: 46 | Q99: 1000 | R99: 441 | S99: 500 | T99: 2063 | U99: 50 | V99: 18452 | W99: 20 | X99: 33605 | Y99: 10 | Z99: 296916 | AA99: 5 | AB99: 562233 | AC99: 2.2 | AD99: 10 | AE99: 20000 | AF99: A 0141 2768,O 1770 2986,L 8521 3914,W 0833 6901,R 0509 6234,F 5009 0581,I 8449 4132,A 8058 7365,I 7750 6717,N 1770 3317 | AG99: 5654040 | AH99: eur
A100: 2019016 | B100: MERCREDI | C100: 2019-02-06 | D100: 2019-04-08 | E100: 4 | F100: 15 | G100: 21 | H100: 26 | I100: 22 | J100: 10 | K100: 4-15-21-22-26+10 | L100: 0 | M100: 10000000 | N100: 3 | O100: 100000 | P100: 57 | Q100: 1000 | R100: 623 | S100: 500 | T100: 1958 | U100: 50 | V100: 24202 | W100: 20 | X100: 25925 | Y100: 10 | Z100: 314580 | AA100: 5 | AB100: 323617 | AC100: 2.2 | AD100: 10 | AE100: 20000 | AF100: D 6439 6661,S 2766 0716,N 1864 6967,V 3320 4330,C 2258 8718,K 3076 7015,L 7385 5033,B 6979 3462,H 9362 5083,S 6360 8097 | AG100: 1419901 | AH100: eur
A101: 2019015 | B101: LUNDI | C101: 2019-02-04 | D101: 2019-04-06 | E101: 40 | F101: 12 | G101: 37 | H101: 24 | I101: 42 | J101: 1 | K101: 12-24-37-40-42+1 | L101: 0 | M101: 9000000 | N101: 1 | O101: 100000 | P101: 36 | Q101: 1000 | R101: 368 | S101: 500 | T101: 1097 | U101: 50 | V101: 14148 | W101: 20 | X101: 16691 | Y101: 10 | Z101: 198606 | AA101: 5 | AB101: 260587 | AC101: 2.2 | AD101: 10 | AE101: 20000 | AF101: H 8057 8698,I 0570 5287,I 2833 4134,H 5249 5999,S 7444 8683,Q 9383 4000,G 2500 0624,S 7694 1367,K 3642 3971,C 1002 8501 | AG101: 0 482 859 | AH101: eur
A102: 2019014 | B102: SAMEDI | C102: 2019-02-02 | D102: 2019-04-04 | E102: 32 | F102: 27 | G102: 5 | H102: 7 | I102: 35 | J102: 3 | K102: 5-7-27-32-35+3 | L102: 0 | M102: 8000000 | N102: 0 | O102: 100000 | P102: 80 | Q102: 1000 | R102: 551 | S102: 500 | T102: 3012 | U102: 50 | V102: 25713 | W102: 20 | X102: 44607 | Y102: 10 | Z102: 382701 | AA102: 5 | AB102: 552412 | AC102: 2.2 | AD102: 10 | AE102: 20000 | AF102: D 1841 6479,B 2925 6204,I 1442 7909,P 6787 3943,D 0779 6119,K 2790 2800,B 8367 7068,O 7727 3921,L 9497 4209,B 5801 7711 | AG102: 3681283 | AH102: eur
A103: 2019013 | B103: MERCREDI | C103: 2019-01-30 | D103: 2019-04-01 | E103: 20 | F103: 47 | G103: 15 | H103: 11 | I103: 30 | J103: 9 | K103: 11-15-20-30-47+9 | L103: 0 | M103: 7000000 | N103: 1 | O103: 100000 | P103: 50 | Q103: 1000 | R103: 548 | S103: 500 | T103: 2108 | U103: 50 | V103: 21339 | W103: 20 | X103: 27638 | Y103: 10 | Z103: 266777 | AA103: 5 | AB103: 351021 | AC103: 2.2 | AD103: 10 | AE103: 20000 | AF103: V 7613 2188,O 9472 7651,B 4408 8807,G 3696 4736,C 6105 1117,H 7510 0073,G 9849 2776,E 5793 5117,F 0713 5930,I 8452 5767 | AG103: 2197524 | AH103: eur
A104: 2019012 | B104: LUNDI | C104: 2019-01-28 | D104: 2019-03-30 | E104: 37 | F104: 15 | G104: 30 | H104: 6 | I104: 47 | J104: 6 | K104: 6-15-30-37-47+6 | L104: 0 | M104: 6000000 | N104: 1 | O104: 100000 | P104: 18 | Q104: 1000 | R104: 242 | S104: 500 | T104: 1362 | U104: 50 | V104: 11595 | W104: 20 | X104: 20170 | Y104: 10 | Z104: 178606 | AA104: 5 | AB104: 272143 | AC104: 2.2 | AD104: 10 | AE104: 20000 | AF104: A 9928 7617,C 8199 0017,F 7697 3647,P 3046 3537,J 5630 3837,V 7167 4365,V 2597 5612,G 3022 6438,K 4977 8300,L 3765 2921 | AG104: 6031466 | AH104: eur
A105: 2019011 | B105: SAMEDI | C105: 2019-01-26 | D105: 2019-03-28 | E105: 30 | F105: 14 | G105: 12 | H105: 16 | I105: 42 | J105: 2 | K105: 12-14-16-30-42+2 | L105: 0 | M105: 5000000 | N105: 5 | O105: 100000 | P105: 48 | Q105: 1000 | R105: 588 | S105: 500 | T105: 2309 | U105: 50 | V105: 25517 | W105: 20 | X105: 32455 | Y105: 10 | Z105: 358764 | AA105: 5 | AB105: 411124 | AC105: 2.2 | AD105: 10 | AE105: 20000 | AF105: T 8066 5462,I 8177 2516,L 6676 3258,T 4791 0501,O 6781 3604,M 0930 0038,P 4647 9261,D 4035 0815,G 6617 9627,F 5705 0317 | AG105: 2328723 | AH105: eur
A106: 2019010 | B106: MERCREDI | C106: 2019-01-23 | D106: 2019-03-25 | E106: 25 | F106: 17 | G106: 41 | H106: 24 | I106: 38 | J106: 10 | K106: 17-24-25-38-41+10 | L106: 0 | M106: 4000000 | N106: 0 | O106: 100000 | P106: 32 | Q106: 1000 | R106: 368 | S106: 500 | T106: 1206 | U106: 50 | V106: 13963 | W106: 20 | X106: 17925 | Y106: 10 | Z106: 216232 | AA106: 5 | AB106: 272422 | AC106: 2.2 | AD106: 10 | AE106: 20000 | AF106: D 0630 2540,U 2851 3190,A 6713 0577,T 9878 9101,V 4096 1146,S 2458 1447,M 0892 5322,C 3917 7809,V 0141 0421,K 5611 2401 | AG106: 3620000 | AH106: eur
A107: 2019009 | B107: LUNDI | C107: 2019-01-21 | D107: 2019-03-23 | E107: 17 | F107: 26 | G107: 30 | H107: 47 | I107: 20 | J107: 6 | K107: 17-20-26-30-47+6 | L107: 0 | M107: 3000000 | N107: 0 | O107: 100000 | P107: 22 | Q107: 1000 | R107: 312 | S107: 500 | T107: 1421 | U107: 50 | V107: 13551 | W107: 20 | X107: 19450 | Y107: 10 | Z107: 192341 | AA107: 5 | AB107: 259423 | AC107: 2.2 | AD107: 10 | AE107: 20000 | AF107: E 7785 9019,M 1619 6863,I 8999 0486,K 8780 4678,L 9198 0505,M 4355 5652,H 7139 5555,P 0708 2541,N 2001 1271,G 4702 2001 | AG107: 3634914 | AH107: eur
A108: 2019008 | B108: SAMEDI | C108: 2019-01-19 | D108: 2019-03-21 | E108: 37 | F108: 10 | G108: 39 | H108: 16 | I108: 34 | J108: 7 | K108: 10-16-34-37-39+7 | L108: 0 | M108: 2000000 | N108: 0 | O108: 100000 | P108: 52 | Q108: 1000 | R108: 339 | S108: 500 | T108: 2603 | U108: 50 | V108: 15958 | W108: 20 | X108: 41548 | Y108: 10 | Z108: 256215 | AA108: 5 | AB108: 725406 | AC108: 2.2 | AD108: 10 | AE108: 20000 | AF108: B 6515 7075,Q 3465 9386,B 3345 7386,T 3551 4669,G 4872 8013,T 8551 2047,O 2060 3785,U 4625 9675,K 7751 6102,B 1615 2674 | AG108: 1324925 | AH108: eur
A109: 2019007 | B109: MERCREDI | C109: 2019-01-16 | D109: 2019-03-18 | E109: 15 | F109: 11 | G109: 10 | H109: 1 | I109: 31 | J109: 3 | K109: 1-10-11-15-31+3 | L109: 1 | M109: 5000000 | N109: 7 | O109: 100000 | P109: 86 | Q109: 1000 | R109: 807 | S109: 500 | T109: 3022 | U109: 50 | V109: 27632 | W109: 20 | X109: 35604 | Y109: 10 | Z109: 311536 | AA109: 5 | AB109: 377504 | AC109: 2.2 | AD109: 10 | AE109: 20000 | AF109: Q 8034 9783,R 4068 3981,F 5033 7588,K 9306 9286,F 9062 0790,U 6836 1369,K 0138 6625,E 7863 7472,A 2572 5957,T 4981 0885 | AG109: 7792414 | AH109: eur
A110: 2019006 | B110: LUNDI | C110: 2019-01-14 | D110: 2019-03-16 | E110: 35 | F110: 33 | G110: 44 | H110: 1 | I110: 11 | J110: 10 | K110: 1-11-33-35-44+10 | L110: 0 | M110: 4000000 | N110: 0 | O110: 100000 | P110: 30 | Q110: 1000 | R110: 366 | S110: 500 | T110: 1171 | U110: 50 | V110: 13199 | W110: 20 | X110: 17010 | Y110: 10 | Z110: 192496 | AA110: 5 | AB110: 233868 | AC110: 2.2 | AD110: 10 | AE110: 20000 | AF110: D 2302 1314,T 6717 9609,K 6252 7755,E 9384 0072,V 4892 4983,C 0644 3118,E 3463 6508,G 3113 2220,O 0638 1202,M 4281 6792 | AG110: 9007763 | AH110: eur
A111: 2019005 | B111: SAMEDI | C111: 2019-01-12 | D111: 2019-03-14 | E111: 19 | F111: 24 | G111: 11 | H111: 34 | I111: 25 | J111: 8 | K111: 11-19-24-25-34+8 | L111: 0 | M111: 3000000 | N111: 2 | O111: 100000 | P111: 60 | Q111: 1000 | R111: 526 | S111: 500 | T111: 2939 | U111: 50 | V111: 25864 | W111: 20 | X111: 41625 | Y111: 10 | Z111: 367813 | AA111: 5 | AB111: 515221 | AC111: 2.2 | AD111: 10 | AE111: 20000 | AF111: T 1571 9544,N 8540 2450,L 4552 0766,O 9460 9602,M 3964 3162,N 9801 9939,A 4497 7953,H 3238 6746,D 7951 9848,L 3692 2660 | AG111: 1833112 | AH111: eur
A112: 2019004 | B112: MERCREDI | C112: 2019-01-09 | D112: 2019-03-11 | E112: 6 | F112: 19 | G112: 46 | H112: 21 | I112: 15 | J112: 10 | K112: 6-15-19-21-46+10 | L112: 0 | M112: 2000000 | N112: 2 | O112: 100000 | P112: 44 | Q112: 1000 | R112: 469 | S112: 500 | T112: 1660 | U112: 50 | V112: 20264 | W112: 20 | X112: 21606 | Y112: 10 | Z112: 265476 | AA112: 5 | AB112: 271392 | AC112: 2.2 | AD112: 10 | AE112: 20000 | AF112: G 5271 6911,H 4241 8044,B 6532 1964,Q 9692 1940,V 1654 1072,L 2529 8014,L 1289 5423,M 9225 9151,R 8264 3080,T 9847 4549 | AG112: 1847919 | AH112: eur
A113: 2019003 | B113: LUNDI | C113: 2019-01-07 | D113: 2019-03-09 | E113: 1 | F113: 19 | G113: 12 | H113: 31 | I113: 7 | J113: 10 | K113: 1-7-12-19-31+10 | L113: 1 | M113: 3000000 | N113: 9 | O113: 100000 | P113: 92 | Q113: 1000 | R113: 1033 | S113: 500 | T113: 2326 | U113: 50 | V113: 29259 | W113: 20 | X113: 23077 | Y113: 10 | Z113: 286785 | AA113: 5 | AB113: 228358 | AC113: 2.2 | AD113: 10 | AE113: 20000 | AF113: W 0627 8777,M 1681 6872,B 1710 0736,J 7929 8015,Q 3784 4355,Q 7355 1292,C 9587 6497,U 0861 4615,I 2449 3168,F 8995 8756 | AG113: 2657641 | AH113: eur
A114: 2019002 | B114: SAMEDI | C114: 2019-01-05 | D114: 2019-03-07 | E114: 48 | F114: 18 | G114: 40 | H114: 7 | I114: 6 | J114: 7 | K114: 6-7-18-40-48+7 | L114: 0 | M114: 2000000 | N114: 0 | O114: 100000 | P114: 60 | Q114: 1000 | R114: 446 | S114: 500 | T114: 3529 | U114: 50 | V114: 21944 | W114: 20 | X114: 56703 | Y114: 10 | Z114: 331670 | AA114: 5 | AB114: 726220 | AC114: 2.2 | AD114: 10 | AE114: 20000 | AF114: U 2008 9147,U 7874 8531,S 5048 6792,B 1085 9248,P 0053 2804,G 5182 2263,Q 1458 7864,S 7722 2715,U 2996 4665,F 6308 1527 | AG114: 1690340 | AH114: eur
A115: 2019001 | B115: MERCREDI | C115: 2019-01-02 | D115: 2019-03-04 | E115: 36 | F115: 12 | G115: 29 | H115: 2 | I115: 26 | J115: 7 | K115: 2-12-26-29-36+7 | L115: 1 | M115: 11000000 | N115: 3 | O115: 100000 | P115: 81 | Q115: 1000 | R115: 487 | S115: 500 | T115: 3255 | U115: 50 | V115: 19290 | W115: 20 | X115: 45693 | Y115: 10 | Z115: 262176 | AA115: 5 | AB115: 580605 | AC115: 2.2 | AD115: 10 | AE115: 20000 | AF115: Q 1232 0444,D 6243 0817,O 3577 1075,C 3236 6226,U 1350 0198,G 1262 5228,F 6687 8074,D 9519 9668,R 9649 8942,J 7300 7661 | AG115: 2289928 | AH115: eur
A116: 2018157 | B116: LUNDI | C116: 2018-12-31 | D116: 2019-03-02 | E116: 43 | F116: 24 | G116: 34 | H116: 27 | I116: 14 | J116: 10 | K116: 14-24-27-34-43+10 | L116: 0 | M116: 10000000 | N116: 8 | O116: 100000 | P116: 73 | Q116: 1000 | R116: 990 | S116: 500 | T116: 3495 | U116: 50 | V116: 39851 | W116: 20 | X116: 48737 | Y116: 10 | Z116: 537142 | AA116: 5 | AB116: 696125 | AC116: 2.2 | AD116: 10 | AE116: 20000 | AF116: E 6202 3197,H 5428 1787,M 7494 7671,O 6670 3636,K 7908 9156,W 0668 9538,O 6177 5185,J 2126 1563,Q 3461 5980,A 7809 7379 | AG116: 4308773 | AH116: eur
A117: 2018156 | B117: SAMEDI | C117: 2018-12-29 | D117: 2019-02-28 | E117: 26 | F117: 30 | G117: 42 | H117: 38 | I117: 12 | J117: 5 | K117: 12-26-30-38-42+5 | L117: 0 | M117: 2000000 | N117: 3 | O117: 100000 | P117: 59 | Q117: 1000 | R117: 630 | S117: 500 | T117: 3105 | U117: 50 | V117: 23780 | W117: 20 | X117: 41941 | Y117: 10 | Z117: 329344 | AA117: 5 | AB117: 593794 | AC117: 2.2 | AD117: 10 | AE117: 20000 | AF117: P 9130 3828,B 9623 5462,M 6526 9250,C 3011 7744,M 3320 0408,G 2806 2479,N 5763 5887,R 8482 5613,N 1882 6686,G 3929 1328 | AG117: 1435695 | AH117: eur
A118: 2018155 | B118: MERCREDI | C118: 2018-12-26 | D118: 2019-02-25 | E118: 45 | F118: 9 | G118: 5 | H118: 24 | I118: 11 | J118: 10 | K118: 5-9-11-24-45+10 | L118: 2 | M118: 1000000 | N118: 3 | O118: 100000 | P118: 51 | Q118: 1000 | R118: 662 | S118: 500 | T118: 1970 | U118: 50 | V118: 26528 | W118: 20 | X118: 22825 | Y118: 10 | Z118: 295781 | AA118: 5 | AB118: 242665 | AC118: 2.2 | AD118: 10 | AE118: 20000 | AF118: R 3603 4953,U 2906 5397,C 4129 3357,G 1296 6635,F 6361 3651,E 6283 8269,J 6664 3219,T 5123 7141,L 5247 3322,D 4217 1429 | AG118: 3531459 | AH118: eur
A119: 2018154 | B119: LUNDI | C119: 2018-12-24 | D119: 2019-02-23 | E119: 10 | F119: 22 | G119: 34 | H119: 43 | I119: 46 | J119: 2 | K119: 10-22-34-43-46+2 | L119: 0 | M119: 2000000 | N119: 1 | O119: 100000 | P119: 33 | Q119: 1000 | R119: 345 | S119: 500 | T119: 1297 | U119: 50 | V119: 13088 | W119: 20 | X119: 18424 | Y119: 10 | Z119: 195222 | AA119: 5 | AB119: 281187 | AC119: 2.2 | AD119: 10 | AE119: 20000 | AF119: V 4103 0032,L 7028 4632,M 3441 2019,B 2329 0626,V 6152 2280,T 4065 7900,U 0131 6282,A 2358 5083,S 2938 2529,S 6575 4830 | AG119: 3155035 | AH119: eur
A120: 2018153 | B120: SAMEDI | C120: 2018-12-22 | D120: 2019-02-21 | E120: 44 | F120: 46 | G120: 31 | H120: 11 | I120: 22 | J120: 5 | K120: 11-22-31-44-46+5 | L120: 1 | M120: 2000000 | N120: 1 | O120: 100000 | P120: 77 | Q120: 1000 | R120: 515 | S120: 500 | T120: 2896 | U120: 50 | V120: 22065 | W120: 20 | X120: 38931 | Y120: 10 | Z120: 300234 | AA120: 5 | AB120: 544196 | AC120: 2.2 | AD120: 10 | AE120: 20000 | AF120: I 0626 6850,Q 2767 9155,K 6294 8045,S 9273 7059,O 7581 8568,U 5285 7427,R 6697 1298,Q 4294 9093,W 0604 8075,O 8535 6097 | AG120: 8467063 | AH120: eur
A121: 2018152 | B121: MERCREDI | C121: 2018-12-19 | D121: 2019-02-18 | E121: 21 | F121: 3 | G121: 25 | H121: 10 | I121: 11 | J121: 3 | K121: 3-10-11-21-25+3 | L121: 1 | M121: 8000000 | N121: 5 | O121: 100000 | P121: 109 | Q121: 1000 | R121: 848 | S121: 500 | T121: 3797 | U121: 50 | V121: 28310 | W121: 20 | X121: 40568 | Y121: 10 | Z121: 316732 | AA121: 5 | AB121: 377695 | AC121: 2.2 | AD121: 10 | AE121: 20000 | AF121: H 1347 4693,P 5248 0269,D 9106 9685,V 5616 1762,K 8992 8218,D 9020 7816,P 0755 9044,P 7421 1254,L 2970 3030,V 8188 4847 | AG121: 9489484 | AH121: eur
A122: 2018151 | B122: LUNDI | C122: 2018-12-17 | D122: 2019-02-16 | E122: 2 | F122: 9 | G122: 25 | H122: 35 | I122: 30 | J122: 9 | K122: 2-9-25-30-35+9 | L122: 0 | M122: 7000000 | N122: 0 | O122: 100000 | P122: 39 | Q122: 1000 | R122: 252 | S122: 500 | T122: 1511 | U122: 50 | V122: 13021 | W122: 20 | X122: 21981 | Y122: 10 | Z122: 196260 | AA122: 5 | AB122: 280707 | AC122: 2.2 | AD122: 10 | AE122: 20000 | AF122: W 0573 3689,M 5592 3074,R 7008 0528,C 8032 2559,K 4493 1452,U 3986 2202,B 1332 1463,C 1728 4771,T 9749 9047,A 3583 1191 | AG122: 3024881 | AH122: eur
A123: 2018150 | B123: SAMEDI | C123: 2018-12-15 | D123: 2019-02-14 | E123: 38 | F123: 1 | G123: 3 | H123: 32 | I123: 30 | J123: 6 | K123: 1-3-30-32-38+6 | L123: 0 | M123: 6000000 | N123: 0 | O123: 100000 | P123: 24 | Q123: 1000 | R123: 305 | S123: 500 | T123: 1752 | U123: 50 | V123: 17721 | W123: 20 | X123: 30227 | Y123: 10 | Z123: 299177 | AA123: 5 | AB123: 460462 | AC123: 2.2 | AD123: 10 | AE123: 20000 | AF123: Q 2944 6741,F 2593 6778,W 0570 7961,L 9356 8603,M 3223 1357,B 2219 2183,A 4279 2902,P 5493 3440,O 6733 6610,U 9794 6963 | AG123: 2723547 | AH123: eur
A124: 2018149 | B124: MERCREDI | C124: 2018-12-12 | D124: 2019-02-11 | E124: 39 | F124: 21 | G124: 45 | H124: 12 | I124: 44 | J124: 5 | K124: 12-21-39-44-45+5 | L124: 0 | M124: 5000000 | N124: 1 | O124: 100000 | P124: 31 | Q124: 1000 | R124: 282 | S124: 500 | T124: 1854 | U124: 50 | V124: 14250 | W124: 20 | X124: 27894 | Y124: 10 | Z124: 216380 | AA124: 5 | AB124: 420225 | AC124: 2.2 | AD124: 10 | AE124: 20000 | AF124: H 7572 4197,G 7604 8006,O 1449 4771,C 7298 5932,E 4103 0432,C 1457 4322,I 8276 7262,S 4699 9875,C 2317 6907,P 8015 1601 | AG124: 0 833 169 | AH124: eur
A125: 2018148 | B125: LUNDI | C125: 2018-12-10 | D125: 2019-02-09 | E125: 8 | F125: 34 | G125: 16 | H125: 13 | I125: 37 | J125: 10 | K125: 8-13-16-34-37+10 | L125: 0 | M125: 4000000 | N125: 2 | O125: 100000 | P125: 28 | Q125: 1000 | R125: 313 | S125: 500 | T125: 1100 | U125: 50 | V125: 13671 | W125: 20 | X125: 16349 | Y125: 10 | Z125: 199209 | AA125: 5 | AB125: 217403 | AC125: 2.2 | AD125: 10 | AE125: 20000 | AF125: R 7280 2157,D 3447 8753,R 4328 5704,C 8616 8560,M 0039 9644,F 8705 1619,F 3855 7712,B 0977 2345,I 7422 8999,R 6222 5446 | AG125: 0 666 918 | AH125: eur
A126: 2018147 | B126: SAMEDI | C126: 2018-12-08 | D126: 2019-02-07 | E126: 25 | F126: 38 | G126: 11 | H126: 29 | I126: 14 | J126: 8 | K126: 11-14-25-29-38+8 | L126: 0 | M126: 3000000 | N126: 3 | O126: 100000 | P126: 69 | Q126: 1000 | R126: 612 | S126: 500 | T126: 2920 | U126: 50 | V126: 24505 | W126: 20 | X126: 39300 | Y126: 10 | Z126: 334033 | AA126: 5 | AB126: 492733 | AC126: 2.2 | AD126: 10 | AE126: 20000 | AF126: A 8136 8966,B 4615 7171,I 8156 6406,O 6585 8854,B 8949 9547,N 9749 4194,A 9587 4102,E 7348 0140,N 6632 3543,N 6667 3867 | AG126: 5005548 | AH126: eur
A127: 2018146 | B127: MERCREDI | C127: 2018-12-05 | D127: 2019-02-04 | E127: 6 | F127: 19 | G127: 41 | H127: 17 | I127: 18 | J127: 9 | K127: 6-17-18-19-41+9 | L127: 0 | M127: 2000000 | N127: 0 | O127: 100000 | P127: 34 | Q127: 1000 | R127: 290 | S127: 500 | T127: 1707 | U127: 50 | V127: 16468 | W127: 20 | X127: 27022 | Y127: 10 | Z127: 249340 | AA127: 5 | AB127: 328384 | AC127: 2.2 | AD127: 10 | AE127: 20000 | AF127: K 4184 9540,T 3367 1869,M 9080 6789,E 4046 6431,V 1912 0915,K 2128 7783,S 9209 2056,E 8534 9547,A 6590 3761,D 2786 2083 | AG127: 2364715 | AH127: eur
A128: 2018145 | B128: LUNDI | C128: 2018-12-03 | D128: 2019-02-02 | E128: 1 | F128: 15 | G128: 9 | H128: 19 | I128: 39 | J128: 5 | K128: 1-9-15-19-39+5 | L128: 1 | M128: 5000000 | N128: 3 | O128: 100000 | P128: 48 | Q128: 1000 | R128: 426 | S128: 500 | T128: 2212 | U128: 50 | V128: 16639 | W128: 20 | X128: 27908 | Y128: 10 | Z128: 211907 | AA128: 5 | AB128: 323568 | AC128: 2.2 | AD128: 10 | AE128: 20000 | AF128: G 8032 6572,M 6913 4554,J 5329 9087,J 3451 7871,M 8245 8444,S 2065 7600,K 5928 8299,C 4708 8363,W 0533 7541,A 6076 2489 | AG128: 2129013 | AH128: eur
A129: 2018144 | B129: SAMEDI | C129: 2018-12-01 | D129: 2019-01-31 | E129: 15 | F129: 6 | G129: 3 | H129: 23 | I129: 39 | J129: 2 | K129: 3-6-15-23-39+2 | L129: 0 | M129: 4000000 | N129: 2 | O129: 100000 | P129: 59 | Q129: 1000 | R129: 619 | S129: 500 | T129: 2305 | U129: 50 | V129: 27014 | W129: 20 | X129: 31142 | Y129: 10 | Z129: 354973 | AA129: 5 | AB129: 390787 | AC129: 2.2 | AD129: 10 | AE129: 20000 | AF129: M 3233 6254,W 0526 3495,H 1437 8443,S 9575 8972,L 6716 1144,G 2765 4737,Q 7015 9094,S 1896 1618,C 0327 6283,V 7883 8801 | AG129: 4479702 | AH129: eur
A130: 2018143 | B130: MERCREDI | C130: 2018-11-28 | D130: 2019-01-28 | E130: 3 | F130: 38 | G130: 30 | H130: 10 | I130: 15 | J130: 6 | K130: 3-10-15-30-38+6 | L130: 0 | M130: 3000000 | N130: 1 | O130: 100000 | P130: 39 | Q130: 1000 | R130: 386 | S130: 500 | T130: 1735 | U130: 50 | V130: 18359 | W130: 20 | X130: 24327 | Y130: 10 | Z130: 244739 | AA130: 5 | AB130: 310595 | AC130: 2.2 | AD130: 10 | AE130: 20000 | AF130: Q 7344 7907,I 7656 9172,S 5536 6492,V 8124 4853,R 7104 7319,L 9327 5948,B 8906 6076,V 4480 8492,T 9176 5680,U 8954 9758 | AG130: 6578232 | AH130: eur
A131: 2018142 | B131: LUNDI | C131: 2018-11-26 | D131: 2019-01-26 | E131: 36 | F131: 30 | G131: 34 | H131: 14 | I131: 21 | J131: 2 | K131: 14-21-30-34-36+2 | L131: 0 | M131: 2000000 | N131: 0 | O131: 100000 | P131: 22 | Q131: 1000 | R131: 222 | S131: 500 | T131: 938 | U131: 50 | V131: 10211 | W131: 20 | X131: 13801 | Y131: 10 | Z131: 155362 | AA131: 5 | AB131: 219254 | AC131: 2.2 | AD131: 10 | AE131: 20000 | AF131: I 8638 6569,R 8760 0539,M 6211 0635,G 9653 3124,I 2938 4494,C 6885 0364,J 9103 7580,I 5871 8677,C 0755 6689,J 5853 3210 | AG131: 7437466 | AH131: eur
A132: 2018141 | B132: SAMEDI | C132: 2018-11-24 | D132: 2019-01-24 | E132: 15 | F132: 11 | G132: 5 | H132: 22 | I132: 10 | J132: 5 | K132: 5-10-11-15-22+5 | L132: 3 | M132: 4000000 | N132: 10 | O132: 100000 | P132: 234 | Q132: 1000 | R132: 1330 | S132: 500 | T132: 6877 | U132: 50 | V132: 43310 | W132: 20 | X132: 66079 | Y132: 10 | Z132: 465574 | AA132: 5 | AB132: 572435 | AC132: 2.2 | AD132: 10 | AE132: 20000 | AF132: E 3230 0242,V 4759 8008,J 5674 6998,O 1025 8943,C 1775 9851,N 5736 4895,I 7729 4509,G 8574 8574,H 3128 5494,T 7359 2178 | AG132: 1151179 | AH132: eur
A133: 2018140 | B133: MERCREDI | C133: 2018-11-21 | D133: 2019-01-21 | E133: 22 | F133: 45 | G133: 20 | H133: 21 | I133: 23 | J133: 10 | K133: 20-21-22-23-45+10 | L133: 0 | M133: 11000000 | N133: 1 | O133: 100000 | P133: 25 | Q133: 1000 | R133: 423 | S133: 500 | T133: 1534 | U133: 50 | V133: 15798 | W133: 20 | X133: 23270 | Y133: 10 | Z133: 260063 | AA133: 5 | AB133: 317332 | AC133: 2.2 | AD133: 10 | AE133: 20000 | AF133: A 4729 3389,R 9083 6316,M 9672 3756,E 9181 2330,G 6283 6004,W 0484 9779,D 4481 9800,C 2851 6502,S 2306 0729,O 7737 1865 | AG133: 3379978 | AH133: eur
A134: 2018139 | B134: LUNDI | C134: 2018-11-19 | D134: 2019-01-19 | E134: 33 | F134: 46 | G134: 21 | H134: 20 | I134: 28 | J134: 7 | K134: 20-21-28-33-46+7 | L134: 0 | M134: 10000000 | N134: 4 | O134: 100000 | P134: 22 | Q134: 1000 | R134: 245 | S134: 500 | T134: 1594 | U134: 50 | V134: 10612 | W134: 20 | X134: 28610 | Y134: 10 | Z134: 175010 | AA134: 5 | AB134: 448905 | AC134: 2.2 | AD134: 10 | AE134: 20000 | AF134: A 6632 5405,O 6381 7046,F 2776 2098,U 8902 6925,D 9287 2219,Q 1555 8452,I 3148 1883,G 9468 8994,K 8097 2898,F 1918 2277 | AG134: 4576968 | AH134: eur
A135: 2018138 | B135: SAMEDI | C135: 2018-11-17 | D135: 2019-01-17 | E135: 42 | F135: 20 | G135: 27 | H135: 22 | I135: 12 | J135: 7 | K135: 12-20-22-27-42+7 | L135: 0 | M135: 9000000 | N135: 4 | O135: 100000 | P135: 113 | Q135: 1000 | R135: 595 | S135: 500 | T135: 4800 | U135: 50 | V135: 27072 | W135: 20 | X135: 62713 | Y135: 10 | Z135: 358824 | AA135: 5 | AB135: 719538 | AC135: 2.2 | AD135: 10 | AE135: 20000 | AF135: G 1856 8724,T 9031 4084,W 0454 2572,R 5706 7139,M 5708 5563,O 4957 4863,U 4991 4100,S 9631 2975,G 6217 0352,V 4795 7185 | AG135: 6845048 | AH135: eur
A136: 2018137 | B136: MERCREDI | C136: 2018-11-14 | D136: 2019-01-14 | E136: 36 | F136: 41 | G136: 15 | H136: 49 | I136: 48 | J136: 5 | K136: 15-36-41-48-49+5 | L136: 0 | M136: 8000000 | N136: 1 | O136: 100000 | P136: 31 | Q136: 1000 | R136: 199 | S136: 500 | T136: 1655 | U136: 50 | V136: 12632 | W136: 20 | X136: 24951 | Y136: 10 | Z136: 193284 | AA136: 5 | AB136: 449977 | AC136: 2.2 | AD136: 10 | AE136: 20000 | AF136: T 6609 8252,E 1350 2475,F 5122 4564,D 4140 5012,H 2961 2683,J 4280 1740,A 5216 4560,G 4475 4113,D 8866 9226,G 8212 1382 | AG136: 7364609 | AH136: eur
A137: 2018136 | B137: LUNDI | C137: 2018-11-12 | D137: 2019-01-12 | E137: 13 | F137: 14 | G137: 37 | H137: 21 | I137: 15 | J137: 7 | K137: 13-14-15-21-37+7 | L137: 0 | M137: 7000000 | N137: 0 | O137: 100000 | P137: 42 | Q137: 1000 | R137: 246 | S137: 500 | T137: 2330 | U137: 50 | V137: 13735 | W137: 20 | X137: 36567 | Y137: 10 | Z137: 206514 | AA137: 5 | AB137: 432934 | AC137: 2.2 | AD137: 10 | AE137: 20000 | AF137: D 1307 5844,E 0158 9013,A 5580 7108,R 8274 5020,T 9669 8230,Q 1242 4691,H 7128 9050,O 0055 2121,F 2503 2299,V 8189 8515 | AG137: 9913131 | AH137: eur
A138: 2018135 | B138: SAMEDI | C138: 2018-11-10 | D138: 2019-01-10 | E138: 20 | F138: 43 | G138: 18 | H138: 44 | I138: 30 | J138: 7 | K138: 18-20-30-43-44+7 | L138: 0 | M138: 6000000 | N138: 1 | O138: 100000 | P138: 58 | Q138: 1000 | R138: 368 | S138: 500 | T138: 3075 | U138: 50 | V138: 20521 | W138: 20 | X138: 48945 | Y138: 10 | Z138: 309979 | AA138: 5 | AB138: 753959 | AC138: 2.2 | AD138: 10 | AE138: 20000 | AF138: L 5112 7474,I 5987 7092,U 9111 5696,S 2147 7591,F 5391 2100,S 0352 2492,P 7750 0730,B 0494 0752,K 8362 3545,J 2959 4870 | AG138: 1061318 | AH138: eur
A139: 2018134 | B139: MERCREDI | C139: 2018-11-07 | D139: 2019-01-07 | E139: 33 | F139: 27 | G139: 3 | H139: 20 | I139: 6 | J139: 8 | K139: 3-6-20-27-33+8 | L139: 0 | M139: 5000000 | N139: 4 | O139: 100000 | P139: 41 | Q139: 1000 | R139: 503 | S139: 500 | T139: 2125 | U139: 50 | V139: 21014 | W139: 20 | X139: 30485 | Y139: 10 | Z139: 279578 | AA139: 5 | AB139: 370161 | AC139: 2.2 | AD139: 10 | AE139: 20000 | AF139: T 9876 6925,U 6210 4151,A 0459 4788,E 2369 9766,C 4818 0637,I 2354 4407,E 7723 1625,V 2821 2810,J 6805 9340,I 9360 7772 | AG139: 3113492 | AH139: eur
A140: 2018133 | B140: LUNDI | C140: 2018-11-05 | D140: 2019-01-05 | E140: 9 | F140: 11 | G140: 39 | H140: 29 | I140: 32 | J140: 8 | K140: 9-11-29-32-39+8 | L140: 0 | M140: 4000000 | N140: 2 | O140: 100000 | P140: 40 | Q140: 1000 | R140: 287 | S140: 500 | T140: 1529 | U140: 50 | V140: 13872 | W140: 20 | X140: 21884 | Y140: 10 | Z140: 195932 | AA140: 5 | AB140: 293214 | AC140: 2.2 | AD140: 10 | AE140: 20000 | AF140: H 8326 2789,N 2469 5587,A 7129 2442,I 2267 9494,M 0231 7819,B 7618 5892,R 7068 3725,P 2589 8399,L 4774 1579,M 9697 8178 | AG140: 3836255 | AH140: eur
A141: 2018132 | B141: SAMEDI | C141: 2018-11-03 | D141: 2019-01-03 | E141: 6 | F141: 29 | G141: 8 | H141: 9 | I141: 39 | J141: 2 | K141: 6-8-9-29-39+2 | L141: 0 | M141: 3000000 | N141: 1 | O141: 100000 | P141: 45 | Q141: 1000 | R141: 506 | S141: 500 | T141: 2497 | U141: 50 | V141: 26561 | W141: 20 | X141: 33180 | Y141: 10 | Z141: 367194 | AA141: 5 | AB141: 396853 | AC141: 2.2 | AD141: 10 | AE141: 20000 | AF141: L 8083 5523,D 9624 6759,R 2654 5958,C 9750 2534,R 4582 7906,F 7504 8008,P 6532 1099,V 6528 3430,L 3661 1089,G 1353 2644 | AG141: 7126697 | AH141: eur
A142: 2018131 | B142: MERCREDI | C142: 2018-10-31 | D142: 2018-12-31 | E142: 34 | F142: 14 | G142: 2 | H142: 28 | I142: 38 | J142: 4 | K142: 2-14-28-34-38+4 | L142: 0 | M142: 2000000 | N142: 3 | O142: 100000 | P142: 32 | Q142: 1000 | R142: 253 | S142: 500 | T142: 1607 | U142: 50 | V142: 14081 | W142: 20 | X142: 23862 | Y142: 10 | Z142: 210813 | AA142: 5 | AB142: 346434 | AC142: 2.2 | AD142: 10 | AE142: 20000 | AF142: A 0311 5742,S 5789 9619,F 7051 7770,O 9320 2697,K 7230 8538,W 0376 3818,T 1126 5304,K 1073 2498,L 7683 8446,G 5794 2816 | AG142: 1300097 | AH142: eur
A143: 2018130 | B143: LUNDI | C143: 2018-10-29 | D143: 2018-12-29 | E143: 9 | F143: 42 | G143: 24 | H143: 43 | I143: 22 | J143: 7 | K143: 9-22-24-42-43+7 | L143: 1 | M143: 5000000 | N143: 1 | O143: 100000 | P143: 40 | Q143: 1000 | R143: 213 | S143: 500 | T143: 2002 | U143: 50 | V143: 11376 | W143: 20 | X143: 32172 | Y143: 10 | Z143: 178936 | AA143: 5 | AB143: 431811 | AC143: 2.2 | AD143: 10 | AE143: 20000 | AF143: F 5404 8134,P 3560 1165,Q 6658 0639,L 1004 1905,R 6255 7121,T 8321 1534,S 5995 1065,V 4574 3812,F 2918 2599,L 7847 0595 | AG143: 5697395 | AH143: eur
A144: 2018129 | B144: SAMEDI | C144: 2018-10-27 | D144: 2018-12-27 | E144: 26 | F144: 21 | G144: 36 | H144: 29 | I144: 35 | J144: 9 | K144: 21-26-29-35-36+9 | L144: 0 | M144: 4000000 | N144: 1 | O144: 100000 | P144: 35 | Q144: 1000 | R144: 308 | S144: 500 | T144: 1750 | U144: 50 | V144: 16170 | W144: 20 | X144: 30194 | Y144: 10 | Z144: 274984 | AA144: 5 | AB144: 487137 | AC144: 2.2 | AD144: 10 | AE144: 20000 | AF144: Q 5107 3436,M 3470 5463,E 3927 8574,R 9087 9579,N 2067 9171,K 8269 6210,S 7467 3966,A 0070 4352,P 9541 9695,U 5964 8211 | AG144: 3020818 | AH144: eur
A145: 2018128 | B145: MERCREDI | C145: 2018-10-24 | D145: 2018-12-24 | E145: 28 | F145: 45 | G145: 34 | H145: 36 | I145: 9 | J145: 6 | K145: 9-28-34-36-45+6 | L145: 0 | M145: 3000000 | N145: 0 | O145: 100000 | P145: 37 | Q145: 1000 | R145: 329 | S145: 500 | T145: 1499 | U145: 50 | V145: 14930 | W145: 20 | X145: 21045 | Y145: 10 | Z145: 205803 | AA145: 5 | AB145: 320139 | AC145: 2.2 | AD145: 10 | AE145: 20000 | AF145: M 7426 1424,M 9998 2405,N 8496 1803,F 7721 5638,S 5709 0383,F 7092 0156,L 8378 7196,C 7137 7133,A 5939 8015,O 4672 3852 | AG145: 4376991 | AH145: eur
A146: 2018127 | B146: LUNDI | C146: 2018-10-22 | D146: 2018-12-22 | E146: 10 | F146: 4 | G146: 29 | H146: 19 | I146: 47 | J146: 6 | K146: 4-10-19-29-47+6 | L146: 0 | M146: 2000000 | N146: 2 | O146: 100000 | P146: 38 | Q146: 1000 | R146: 413 | S146: 500 | T146: 1632 | U146: 50 | V146: 16290 | W146: 20 | X146: 21105 | Y146: 10 | Z146: 206531 | AA146: 5 | AB146: 252716 | AC146: 2.2 | AD146: 10 | AE146: 20000 | AF146: K 0011 5615,O 4246 4485,R 1607 7408,G 2495 1872,A 5491 4724,T 2049 7215,Q 6784 8877,S 1622 2771,L 4892 1600,K 2665 2957 | AG146: 2304053 | AH146: eur
A147: 2018126 | B147: SAMEDI | C147: 2018-10-20 | D147: 2018-12-20 | E147: 7 | F147: 17 | G147: 31 | H147: 12 | I147: 48 | J147: 8 | K147: 7-12-17-31-48+8 | L147: 1 | M147: 9000000 | N147: 3 | O147: 100000 | P147: 89 | Q147: 1000 | R147: 825 | S147: 500 | T147: 3631 | U147: 50 | V147: 32999 | W147: 20 | X147: 47683 | Y147: 10 | Z147: 417942 | AA147: 5 | AB147: 539829 | AC147: 2.2 | AD147: 10 | AE147: 20000 | AF147: T 0737 0035,L 7209 1099,N 8148 2722,M 9612 4850,N 0069 1765,D 1966 3318,Q 5036 4512,N 1429 6330,K 4281 3030,O 1625 3054 | AG147: 1700502 | AH147: eur
A148: 2018125 | B148: MERCREDI | C148: 2018-10-17 | D148: 2018-12-17 | E148: 33 | F148: 13 | G148: 7 | H148: 2 | I148: 41 | J148: 1 | K148: 2-7-13-33-41+1 | L148: 0 | M148: 8000000 | N148: 2 | O148: 100000 | P148: 53 | Q148: 1000 | R148: 730 | S148: 500 | T148: 2186 | U148: 50 | V148: 24967 | W148: 20 | X148: 25794 | Y148: 10 | Z148: 303076 | AA148: 5 | AB148: 289847 | AC148: 2.2 | AD148: 10 | AE148: 20000 | AF148: R 5562 7881,K 9394 3432,A 2129 6670,V 0022 9726,B 7096 3655,H 9237 2066,I 4753 4328,Q 8282 8020,U 1970 9079,R 9381 7554 | AG148: 0 128 859 | AH148: eur
A149: 2018124 | B149: LUNDI | C149: 2018-10-15 | D149: 2018-12-15 | E149: 8 | F149: 14 | G149: 25 | H149: 19 | I149: 49 | J149: 5 | K149: 8-14-19-25-49+5 | L149: 0 | M149: 7000000 | N149: 5 | O149: 100000 | P149: 66 | Q149: 1000 | R149: 482 | S149: 500 | T149: 2316 | U149: 50 | V149: 17089 | W149: 20 | X149: 29542 | Y149: 10 | Z149: 222530 | AA149: 5 | AB149: 345717 | AC149: 2.2 | AD149: 10 | AE149: 20000 | AF149: G 2170 4280,H 7697 1928,T 8864 7574,H 8663 0242,U 4204 1217,G 6227 5763,M 2100 4162,Q 1300 5134,K 6783 1699,S 7788 6792 | AG149: 2472541 | AH149: eur
A150: 2018123 | B150: SAMEDI | C150: 2018-10-13 | D150: 2018-12-13 | E150: 1 | F150: 36 | G150: 45 | H150: 4 | I150: 22 | J150: 8 | K150: 1-4-22-36-45+8 | L150: 0 | M150: 6000000 | N150: 5 | O150: 100000 | P150: 53 | Q150: 1000 | R150: 439 | S150: 500 | T150: 2412 | U150: 50 | V150: 21439 | W150: 20 | X150: 36886 | Y150: 10 | Z150: 329784 | AA150: 5 | AB150: 532318 | AC150: 2.2 | AD150: 10 | AE150: 20000 | AF150: O 0326 4151,U 6936 0228,S 1962 5403,T 8258 4257,A 7103 1001,P 1823 2033,W 0300 6837,N 8065 3250,L 1860 7564,Q 3840 9609 | AG150: 5558780 | AH150: eur
A151: 2018122 | B151: MERCREDI | C151: 2018-10-10 | D151: 2018-12-10 | E151: 5 | F151: 24 | G151: 38 | H151: 29 | I151: 4 | J151: 3 | K151: 4-5-24-29-38+3 | L151: 0 | M151: 5000000 | N151: 2 | O151: 100000 | P151: 34 | Q151: 1000 | R151: 366 | S151: 500 | T151: 1852 | U151: 50 | V151: 17255 | W151: 20 | X151: 28879 | Y151: 10 | Z151: 258717 | AA151: 5 | AB151: 384480 | AC151: 2.2 | AD151: 10 | AE151: 20000 | AF151: J 4078 1407,Q 7817 8862,N 7442 6451,L 8189 7521,O 4448 8920,Q 3615 7304,S 6922 6568,F 4531 6831,V 7163 4147,M 6772 9886 | AG151: 1205334 | AH151: eur
A152: 2018121 | B152: LUNDI | C152: 2018-10-08 | D152: 2018-12-08 | E152: 46 | F152: 1 | G152: 4 | H152: 23 | I152: 24 | J152: 2 | K152: 1-4-23-24-46+2 | L152: 0 | M152: 4000000 | N152: 2 | O152: 100000 | P152: 25 | Q152: 1000 | R152: 262 | S152: 500 | T152: 1160 | U152: 50 | V152: 13311 | W152: 20 | X152: 17422 | Y152: 10 | Z152: 196685 | AA152: 5 | AB152: 241696 | AC152: 2.2 | AD152: 10 | AE152: 20000 | AF152: P 7832 7633,S 2666 0929,V 1221 9582,N 8954 7631,N 8131 7529,E 9858 7629,A 7406 4861,T 9845 5219,R 1537 7574,I 2243 2740 | AG152: 7935351 | AH152: eur
A153: 2018120 | B153: SAMEDI | C153: 2018-10-06 | D153: 2018-12-06 | E153: 49 | F153: 39 | G153: 8 | H153: 48 | I153: 1 | J153: 9 | K153: 1-8-39-48-49+9 | L153: 0 | M153: 3000000 | N153: 0 | O153: 100000 | P153: 37 | Q153: 1000 | R153: 415 | S153: 500 | T153: 2211 | U153: 50 | V153: 20138 | W153: 20 | X153: 33092 | Y153: 10 | Z153: 301656 | AA153: 5 | AB153: 478609 | AC153: 2.2 | AD153: 10 | AE153: 20000 | AF153: I 3824 1689,C 6995 4442,Q 7671 5090,C 3573 3456,L 8590 3310,P 4445 7153,F 2027 3790,B 6612 8746,T 6613 3775,C 8787 2493 | AG153: 8904059 | AH153: eur
A154: 2018119 | B154: MERCREDI | C154: 2018-10-03 | D154: 2018-12-03 | E154: 31 | F154: 24 | G154: 11 | H154: 20 | I154: 32 | J154: 8 | K154: 11-20-24-31-32+8 | L154: 0 | M154: 2000000 | N154: 1 | O154: 100000 | P154: 43 | Q154: 1000 | R154: 311 | S154: 500 | T154: 1849 | U154: 50 | V154: 15590 | W154: 20 | X154: 26490 | Y154: 10 | Z154: 230520 | AA154: 5 | AB154: 355128 | AC154: 2.2 | AD154: 10 | AE154: 20000 | AF154: L 8242 6516,I 6636 9312,J 4002 2424,I 1030 0336,A 9943 0817,Q 6967 5694,K 1691 5906,L 2706 4386,P 2174 9277,S 5690 1173 | AG154: 0 192 612 | AH154: eur
A155: 2018118 | B155: LUNDI | C155: 2018-10-01 | D155: 2018-12-01 | E155: 6 | F155: 1 | G155: 40 | H155: 7 | I155: 2 | J155: 4 | K155: 1-2-6-7-40+4 | L155: 1 | M155: 2000000 | N155: 0 | O155: 100000 | P155: 33 | Q155: 1000 | R155: 359 | S155: 500 | T155: 1440 | U155: 50 | V155: 15110 | W155: 20 | X155: 21002 | Y155: 10 | Z155: 205973 | AA155: 5 | AB155: 257777 | AC155: 2.2 | AD155: 10 | AE155: 20000 | AF155: L 9270 5180,I 5144 4399,A 3098 6600,A 8474 9894,P 5432 1783,O 6805 5428,F 6163 0071,H 1662 0850,E 9717 3772,A 9981 5562 | AG155: 9042400 | AH155: eur
A156: 2018117 | B156: SAMEDI | C156: 2018-09-29 | D156: 2018-11-29 | E156: 31 | F156: 7 | G156: 15 | H156: 10 | I156: 17 | J156: 4 | K156: 7-10-15-17-31+4 | L156: 1 | M156: 4000000 | N156: 4 | O156: 100000 | P156: 75 | Q156: 1000 | R156: 945 | S156: 500 | T156: 3614 | U156: 50 | V156: 34152 | W156: 20 | X156: 43027 | Y156: 10 | Z156: 407874 | AA156: 5 | AB156: 468272 | AC156: 2.2 | AD156: 10 | AE156: 20000 | AF156: V 3110 2465,O 2379 3760,I 2421 0350,G 0041 8158,P 8079 7616,U 5208 5475,H 9560 8326,Q 1493 8117,O 4772 9276,D 2798 1535 | AG156: 7006129 | AH156: eur
A157: 2018116 | B157: MERCREDI | C157: 2018-09-26 | D157: 2018-11-26 | E157: 40 | F157: 18 | G157: 15 | H157: 36 | I157: 10 | J157: 3 | K157: 10-15-18-36-40+3 | L157: 0 | M157: 3000000 | N157: 0 | O157: 100000 | P157: 40 | Q157: 1000 | R157: 298 | S157: 500 | T157: 1564 | U157: 50 | V157: 14438 | W157: 20 | X157: 24499 | Y157: 10 | Z157: 216011 | AA157: 5 | AB157: 351288 | AC157: 2.2 | AD157: 10 | AE157: 20000 | AF157: T 8218 8910,M 0020 3857,W 0257 1705,J 3594 6603,Q 1011 1745,E 0066 6721,G 6428 7164,B 5789 3530,F 7884 9332,J 3414 9284 | AG157: 5603197 | AH157: eur
A158: 2018115 | B158: LUNDI | C158: 2018-09-24 | D158: 2018-11-24 | E158: 12 | F158: 30 | G158: 17 | H158: 8 | I158: 6 | J158: 3 | K158: 6-8-12-17-30+3 | L158: 0 | M158: 2000000 | N158: 7 | O158: 100000 | P158: 80 | Q158: 1000 | R158: 654 | S158: 500 | T158: 2573 | U158: 50 | V158: 21128 | W158: 20 | X158: 26783 | Y158: 10 | Z158: 227822 | AA158: 5 | AB158: 261240 | AC158: 2.2 | AD158: 10 | AE158: 20000 | AF158: D 7853 6560,V 0996 3162,I 2886 2886,T 8003 2054,Q 1519 7806,F 1966 0042,H 9893 7811,O 1069 5287,P 5266 3506,H 2319 2231 | AG158: 9878922 | AH158: eur
A159: 2018114 | B159: SAMEDI | C159: 2018-09-22 | D159: 2018-11-22 | E159: 14 | F159: 37 | G159: 39 | H159: 18 | I159: 38 | J159: 9 | K159: 14-18-37-38-39+9 | L159: 1 | M159: 4000000 | N159: 4 | O159: 100000 | P159: 33 | Q159: 1000 | R159: 375 | S159: 500 | T159: 2016 | U159: 50 | V159: 17941 | W159: 20 | X159: 30283 | Y159: 10 | Z159: 268486 | AA159: 5 | AB159: 479735 | AC159: 2.2 | AD159: 10 | AE159: 20000 | AF159: M 3448 7807,G 7020 3577,L 4879 1992,A 4183 1344,N 1126 8412,P 9556 1039,N 7010 8792,C 8668 2905,F 5406 8889,O 0718 9287 | AG159: 8559256 | AH159: eur
A160: 2018113 | B160: MERCREDI | C160: 2018-09-19 | D160: 2018-11-19 | E160: 15 | F160: 42 | G160: 4 | H160: 27 | I160: 25 | J160: 5 | K160: 4-15-25-27-42+5 | L160: 0 | M160: 3000000 | N160: 2 | O160: 100000 | P160: 49 | Q160: 1000 | R160: 383 | S160: 500 | T160: 2205 | U160: 50 | V160: 16765 | W160: 20 | X160: 30702 | Y160: 10 | Z160: 232854 | AA160: 5 | AB160: 389459 | AC160: 2.2 | AD160: 10 | AE160: 20000 | AF160: L 3372 7843,E 8523 1881,S 5316 5420,J 0545 7071,B 4812 6546,B 4862 5593,J 7599 6069,D 9511 0475,K 4020 7572,C 7046 5791 | AG160: 1844034 | AH160: eur
A161: 2018112 | B161: LUNDI | C161: 2018-09-17 | D161: 2018-11-17 | E161: 43 | F161: 42 | G161: 8 | H161: 15 | I161: 26 | J161: 5 | K161: 8-15-26-42-43+5 | L161: 0 | M161: 2000000 | N161: 0 | O161: 100000 | P161: 36 | Q161: 1000 | R161: 224 | S161: 500 | T161: 1361 | U161: 50 | V161: 11043 | W161: 20 | X161: 21542 | Y161: 10 | Z161: 167809 | AA161: 5 | AB161: 308583 | AC161: 2.2 | AD161: 10 | AE161: 20000 | AF161: L 1696 8474,B 9529 7466,V 7058 7564,P 1552 5112,R 7314 0656,L 0510 1458,L 9207 9881,V 0963 6843,E 1934 0233,K 0795 3957 | AG161: 1344507 | AH161: eur
A162: 2018111 | B162: SAMEDI | C162: 2018-09-15 | D162: 2018-11-15 | E162: 11 | F162: 26 | G162: 1 | H162: 46 | I162: 13 | J162: 5 | K162: 1-11-13-26-46+5 | L162: 1 | M162: 2000000 | N162: 2 | O162: 100000 | P162: 89 | Q162: 1000 | R162: 706 | S162: 500 | T162: 3559 | U162: 50 | V162: 28277 | W162: 20 | X162: 46902 | Y162: 10 | Z162: 363045 | AA162: 5 | AB162: 530992 | AC162: 2.2 | AD162: 10 | AE162: 20000 | AF162: M 9679 4552,B 7895 6822,A 6768 0495,K 2442 9240,S 9569 3846,G 2930 6729,H 9722 4759,B 9948 3354,J 7788 0472,C 2351 3699 | AG162: 2892232 | AH162: eur
A163: 2018110 | B163: MERCREDI | C163: 2018-09-12 | D163: 2018-11-12 | E163: 11 | F163: 33 | G163: 24 | H163: 35 | I163: 4 | J163: 9 | K163: 4-11-24-33-35+9 | L163: 0 | M163: 9000000 | N163: 3 | O163: 100000 | P163: 45 | Q163: 1000 | R163: 402 | S163: 500 | T163: 1900 | U163: 50 | V163: 17548 | W163: 20 | X163: 27870 | Y163: 10 | Z163: 252461 | AA163: 5 | AB163: 377986 | AC163: 2.2 | AD163: 10 | AE163: 20000 | AF163: K 1992 5649,C 4235 6779,C 3249 2384,O 7784 0426,P 1757 6452,C 4506 7778,V 4772 0178,N 5589 8652,N 1310 1345,H 6994 5244 | AG163: 3348551 | AH163: eur
A164: 2018109 | B164: LUNDI | C164: 2018-09-10 | D164: 2018-11-10 | E164: 27 | F164: 20 | G164: 19 | H164: 46 | I164: 38 | J164: 10 | K164: 19-20-27-38-46+10 | L164: 0 | M164: 8000000 | N164: 1 | O164: 100000 | P164: 20 | Q164: 1000 | R164: 296 | S164: 500 | T164: 1142 | U164: 50 | V164: 12710 | W164: 20 | X164: 16057 | Y164: 10 | Z164: 190458 | AA164: 5 | AB164: 230679 | AC164: 2.2 | AD164: 10 | AE164: 20000 | AF164: H 0385 8340,Q 7120 3771,F 5964 0460,Q 2897 0874,G 8502 0601,T 3190 7109,L 4159 8159,U 2187 9084,I 8868 5387,K 2422 7827 | AG164: 2033652 | AH164: eur
A165: 2018108 | B165: SAMEDI | C165: 2018-09-08 | D165: 2018-11-08 | E165: 6 | F165: 19 | G165: 22 | H165: 34 | I165: 20 | J165: 10 | K165: 6-19-20-22-34+10 | L165: 0 | M165: 7000000 | N165: 4 | O165: 100000 | P165: 48 | Q165: 1000 | R165: 556 | S165: 500 | T165: 1995 | U165: 50 | V165: 25287 | W165: 20 | X165: 30141 | Y165: 10 | Z165: 362494 | AA165: 5 | AB165: 390389 | AC165: 2.2 | AD165: 10 | AE165: 20000 | AF165: J 7638 0395,M 6249 4903,F 3869 0425,B 0135 7591,S 2397 9262,N 1165 1112,J 4124 9915,K 3997 7036,M 8817 0370,Q 8571 5788 | AG165: 1957520 | AH165: eur
A166: 2018107 | B166: MERCREDI | C166: 2018-09-05 | D166: 2018-11-05 | E166: 7 | F166: 39 | G166: 34 | H166: 6 | I166: 15 | J166: 1 | K166: 6-7-15-34-39+1 | L166: 0 | M166: 6000000 | N166: 0 | O166: 100000 | P166: 19 | Q166: 1000 | R166: 213 | S166: 500 | T166: 1243 | U166: 50 | V166: 14682 | W166: 20 | X166: 20469 | Y166: 10 | Z166: 246573 | AA166: 5 | AB166: 276679 | AC166: 2.2 | AD166: 10 | AE166: 20000 | AF166: H 7735 2044,G 7821 3734,L 6651 4560,U 7630 7939,M 0121 0215,S 7059 4430,C 1033 7375,A 5870 3500,T 2783 7018,C 5447 8464 | AG166: 5206774 | AH166: eur
A167: 2018106 | B167: LUNDI | C167: 2018-09-03 | D167: 2018-11-03 | E167: 18 | F167: 2 | G167: 15 | H167: 1 | I167: 41 | J167: 10 | K167: 1-2-15-18-41+10 | L167: 0 | M167: 5000000 | N167: 1 | O167: 100000 | P167: 24 | Q167: 1000 | R167: 225 | S167: 500 | T167: 1133 | U167: 50 | V167: 12764 | W167: 20 | X167: 17009 | Y167: 10 | Z167: 197855 | AA167: 5 | AB167: 217450 | AC167: 2.2 | AD167: 10 | AE167: 20000 | AF167: G 5429 1151,H 4379 6083,D 9865 0113,R 9313 4948,S 6660 0967,L 8589 8571,W 0180 9984,R 5092 4996,C 0007 8888,F 1898 9600 | AG167: 2464208 | AH167: eur
A168: 2018105 | B168: SAMEDI | C168: 2018-09-01 | D168: 2018-11-01 | E168: 32 | F168: 35 | G168: 11 | H168: 41 | I168: 42 | J168: 6 | K168: 11-32-35-41-42+6 | L168: 0 | M168: 4000000 | N168: 2 | O168: 100000 | P168: 31 | Q168: 1000 | R168: 293 | S168: 500 | T168: 1729 | U168: 50 | V168: 16257 | W168: 20 | X168: 27830 | Y168: 10 | Z168: 260008 | AA168: 5 | AB168: 450464 | AC168: 2.2 | AD168: 10 | AE168: 20000 | AF168: N 8726 2189,C 2458 9230,H 7201 9336,J 1965 9605,S 2212 3014,I 4681 9421,N 8547 3353,G 8578 8684,T 4295 6364,C 6041 7893 | AG168: 9197169 | AH168: eur
A169: 2018104 | B169: MERCREDI | C169: 2018-08-29 | D169: 2018-10-29 | E169: 17 | F169: 45 | G169: 19 | H169: 40 | I169: 31 | J169: 1 | K169: 17-19-31-40-45+1 | L169: 0 | M169: 3000000 | N169: 2 | O169: 100000 | P169: 16 | Q169: 1000 | R169: 328 | S169: 500 | T169: 1156 | U169: 50 | V169: 13761 | W169: 20 | X169: 17688 | Y169: 10 | Z169: 216421 | AA169: 5 | AB169: 266932 | AC169: 2.2 | AD169: 10 | AE169: 20000 | AF169: U 8698 6931,B 1301 3634,A 6082 4147,U 9446 5334,L 6570 6244,K 7277 3682,L 2963 8377,T 5238 9229,Q 6258 8232,I 5642 7921 | AG169: 3815198 | AH169: eur
A170: 2018103 | B170: LUNDI | C170: 2018-08-27 | D170: 2018-10-27 | E170: 40 | F170: 17 | G170: 24 | H170: 18 | I170: 10 | J170: 2 | K170: 10-17-18-24-40+2 | L170: 0 | M170: 2000000 | N170: 1 | O170: 100000 | P170: 16 | Q170: 1000 | R170: 310 | S170: 500 | T170: 1291 | U170: 50 | V170: 14070 | W170: 20 | X170: 17952 | Y170: 10 | Z170: 201186 | AA170: 5 | AB170: 224166 | AC170: 2.2 | AD170: 10 | AE170: 20000 | AF170: C 9085 4410,B 8301 3083,S 7292 0396,Q 8736 8220,L 4616 9728,W 0164 0844,S 6216 9480,S 0661 7479,G 4296 0026,I 0886 0870 | AG170: 1187326 | AH170: eur
A171: 2018102 | B171: SAMEDI | C171: 2018-08-25 | D171: 2018-10-25 | E171: 29 | F171: 6 | G171: 15 | H171: 44 | I171: 16 | J171: 3 | K171: 6-15-16-29-44+3 | L171: 1 | M171: 2000000 | N171: 0 | O171: 100000 | P171: 57 | Q171: 1000 | R171: 521 | S171: 500 | T171: 2571 | U171: 50 | V171: 22477 | W171: 20 | X171: 36085 | Y171: 10 | Z171: 318376 | AA171: 5 | AB171: 482064 | AC171: 2.2 | AD171: 10 | AE171: 20000 | AF171: J 9050 5401,F 7696 5050,I 3918 4574,B 1116 6627,T 0456 5552,E 0893 6520,L 6572 8527,S 3890 0518,P 2219 1432,H 9628 7080 | AG171: 3285934 | AH171: eur
A172: 2018101 | B172: MERCREDI | C172: 2018-08-22 | D172: 2018-10-22 | E172: 16 | F172: 42 | G172: 12 | H172: 6 | I172: 40 | J172: 3 | K172: 6-12-16-40-42+3 | L172: 1 | M172: 5000000 | N172: 1 | O172: 100000 | P172: 35 | Q172: 1000 | R172: 337 | S172: 500 | T172: 1876 | U172: 50 | V172: 17008 | W172: 20 | X172: 27983 | Y172: 10 | Z172: 246564 | AA172: 5 | AB172: 365643 | AC172: 2.2 | AD172: 10 | AE172: 20000 | AF172: A 7275 6702,T 0794 3409,O 9366 7393,E 9166 7322,Q 9187 4841,I 2275 6003,S 7649 4536,B 7246 5506,L 8601 5357,Q 1127 7456 | AG172: 7213794 | AH172: eur
A173: 2018100 | B173: LUNDI | C173: 2018-08-20 | D173: 2018-10-20 | E173: 15 | F173: 48 | G173: 42 | H173: 18 | I173: 40 | J173: 10 | K173: 15-18-40-42-48+10 | L173: 0 | M173: 4000000 | N173: 1 | O173: 100000 | P173: 10 | Q173: 1000 | R173: 181 | S173: 500 | T173: 928 | U173: 50 | V173: 10383 | W173: 20 | X173: 14123 | Y173: 10 | Z173: 159925 | AA173: 5 | AB173: 213059 | AC173: 2.2 | AD173: 10 | AE173: 20000 | AF173: U 6798 8878,Q 8750 1596,O 2524 9604,J 3770 3951,S 7688 2645,S 0046 0631,T 0489 5017,H 7720 9441,U 3820 5027,C 0618 2905 | AG173: 4417229 | AH173: eur
A174: 2018099 | B174: SAMEDI | C174: 2018-08-18 | D174: 2018-10-18 | E174: 33 | F174: 37 | G174: 31 | H174: 16 | I174: 49 | J174: 8 | K174: 16-31-33-37-49+8 | L174: 0 | M174: 3000000 | N174: 1 | O174: 100000 | P174: 38 | Q174: 1000 | R174: 319 | S174: 500 | T174: 1843 | U174: 50 | V174: 17187 | W174: 20 | X174: 28990 | Y174: 10 | Z174: 254949 | AA174: 5 | AB174: 478653 | AC174: 2.2 | AD174: 10 | AE174: 20000 | AF174: M 2130 1775,K 6836 6906,K 7960 0633,I 7196 6341,N 2341 2905,B 7789 6719,Q 4300 2229,J 4236 0125,K 0871 0712,C 4570 2951 | AG174: 3511402 | AH174: eur
A175: 2018098 | B175: MERCREDI | C175: 2018-08-15 | D175: 2018-10-15 | E175: 40 | F175: 21 | G175: 47 | H175: 27 | I175: 6 | J175: 8 | K175: 6-21-27-40-47+8 | L175: 0 | M175: 2000000 | N175: 0 | O175: 100000 | P175: 27 | Q175: 1000 | R175: 251 | S175: 500 | T175: 1302 | U175: 50 | V175: 12099 | W175: 20 | X175: 21094 | Y175: 10 | Z175: 189867 | AA175: 5 | AB175: 317624 | AC175: 2.2 | AD175: 10 | AE175: 20000 | AF175: S 0570 6984,B 6257 1574,G 6903 4580,C 8344 1523,B 2522 6300,K 9566 1505,V 2911 8752,F 6280 4241,N 4438 6941,S 1973 1871 | AG175: 8754361 | AH175: eur
A176: 2018097 | B176: LUNDI | C176: 2018-08-13 | D176: 2018-10-13 | E176: 10 | F176: 19 | G176: 21 | H176: 2 | I176: 40 | J176: 6 | K176: 2-10-19-21-40+6 | L176: 1 | M176: 11000000 | N176: 5 | O176: 100000 | P176: 47 | Q176: 1000 | R176: 427 | S176: 500 | T176: 1799 | U176: 50 | V176: 17664 | W176: 20 | X176: 23487 | Y176: 10 | Z176: 231546 | AA176: 5 | AB176: 291876 | AC176: 2.2 | AD176: 10 | AE176: 20000 | AF176: C 3177 3674,O 2691 5897,Q 8207 6544,J 1153 9704,L 2624 4305,R 5414 3270,T 9827 3980,O 2847 2578,L 7731 3240,B 4481 7682 | AG176: 5226825 | AH176: eur
A177: 2018096 | B177: SAMEDI | C177: 2018-08-11 | D177: 2018-10-11 | E177: 41 | F177: 27 | G177: 44 | H177: 46 | I177: 14 | J177: 5 | K177: 14-27-41-44-46+5 | L177: 0 | M177: 10000000 | N177: 2 | O177: 100000 | P177: 50 | Q177: 1000 | R177: 441 | S177: 500 | T177: 2516 | U177: 50 | V177: 19996 | W177: 20 | X177: 37824 | Y177: 10 | Z177: 296813 | AA177: 5 | AB177: 612646 | AC177: 2.2 | AD177: 10 | AE177: 20000 | AF177: Q 3111 3334,C 9253 2055,A 9351 6824,M 8142 1428,O 2541 9955,N 8286 5145,O 2416 5101,C 5365 3799,C 6967 2767,K 7117 3597 | AG177: 0 909 494 | AH177: eur
A178: 2018095 | B178: MERCREDI | C178: 2018-08-08 | D178: 2018-10-08 | E178: 5 | F178: 19 | G178: 29 | H178: 15 | I178: 24 | J178: 8 | K178: 5-15-19-24-29+8 | L178: 0 | M178: 9000000 | N178: 3 | O178: 100000 | P178: 80 | Q178: 1000 | R178: 720 | S178: 500 | T178: 2865 | U178: 50 | V178: 25622 | W178: 20 | X178: 35115 | Y178: 10 | Z178: 300901 | AA178: 5 | AB178: 388077 | AC178: 2.2 | AD178: 10 | AE178: 20000 | AF178: O 1550 8877,A 4551 5950,J 2591 1209,P 8349 2268,H 2353 1902,V 5408 5852,I 7183 7416,S 4183 2433,Q 0195 8975,P 2673 2594 | AG178: 9392844 | AH178: eur
A179: 2018094 | B179: LUNDI | C179: 2018-08-06 | D179: 2018-10-06 | E179: 30 | F179: 4 | G179: 37 | H179: 32 | I179: 23 | J179: 6 | K179: 4-23-30-32-37+6 | L179: 0 | M179: 8000000 | N179: 0 | O179: 100000 | P179: 23 | Q179: 1000 | R179: 194 | S179: 500 | T179: 1133 | U179: 50 | V179: 11062 | W179: 20 | X179: 18477 | Y179: 10 | Z179: 173662 | AA179: 5 | AB179: 276098 | AC179: 2.2 | AD179: 10 | AE179: 20000 | AF179: I 5216 9337,S 5883 1768,W 0088 0829,A 9923 4550,G 1981 1338,S 5738 2652,K 2013 7312,F 4040 0483,S 3981 0931,P 0316 5524 | AG179: 6238337 | AH179: eur
A180: 2018093 | B180: SAMEDI | C180: 2018-08-04 | D180: 2018-10-04 | E180: 41 | F180: 23 | G180: 9 | H180: 32 | I180: 38 | J180: 3 | K180: 9-23-32-38-41+3 | L180: 0 | M180: 7000000 | N180: 4 | O180: 100000 | P180: 67 | Q180: 1000 | R180: 466 | S180: 500 | T180: 2332 | U180: 50 | V180: 20721 | W180: 20 | X180: 33666 | Y180: 10 | Z180: 290638 | AA180: 5 | AB180: 505671 | AC180: 2.2 | AD180: 10 | AE180: 20000 | AF180: J 0006 2259,L 2547 3711,Q 2878 1404,L 1770 8629,S 7024 3350,G 3878 4056,H 8207 9818,B 0892 6202,A 2172 1986,R 7694 8791 | AG180: 2552739 | AH180: eur
A181: 2018092 | B181: MERCREDI | C181: 2018-08-01 | D181: 2018-10-01 | E181: 47 | F181: 15 | G181: 45 | H181: 35 | I181: 17 | J181: 4 | K181: 15-17-35-45-47+4 | L181: 0 | M181: 6000000 | N181: 0 | O181: 100000 | P181: 35 | Q181: 1000 | R181: 284 | S181: 500 | T181: 1381 | U181: 50 | V181: 13267 | W181: 20 | X181: 21676 | Y181: 10 | Z181: 203841 | AA181: 5 | AB181: 355016 | AC181: 2.2 | AD181: 10 | AE181: 20000 | AF181: O 0375 7185,W 0073 5530,E 3405 0827,Q 2194 6447,U 6437 5983,E 8434 9090,K 2415 4754,V 8027 9402,V 8022 9590,B 4044 3330 | AG181: 0 322 515 | AH181: eur
A182: 2018091 | B182: LUNDI | C182: 2018-07-30 | D182: 2018-09-29 | E182: 33 | F182: 7 | G182: 13 | H182: 41 | I182: 43 | J182: 2 | K182: 7-13-33-41-43+2 | L182: 0 | M182: 5000000 | N182: 2 | O182: 100000 | P182: 32 | Q182: 1000 | R182: 501 | S182: 500 | T182: 1377 | U182: 50 | V182: 18314 | W182: 20 | X182: 17652 | Y182: 10 | Z182: 209468 | AA182: 5 | AB182: 240752 | AC182: 2.2 | AD182: 10 | AE182: 20000 | AF182: K 4721 5384,I 4042 9972,H 3179 2746,R 2599 1226,P 6899 2689,G 3429 7357,M 3766 9916,F 5462 8699,B 3694 4690,C 0012 0220 | AG182: 8733691 | AH182: eur
A183: 2018090 | B183: SAMEDI | C183: 2018-07-28 | D183: 2018-09-27 | E183: 7 | F183: 23 | G183: 13 | H183: 18 | I183: 21 | J183: 10 | K183: 7-13-18-21-23+10 | L183: 0 | M183: 4000000 | N183: 10 | O183: 100000 | P183: 112 | Q183: 1000 | R183: 1409 | S183: 500 | T183: 3207 | U183: 50 | V183: 43734 | W183: 20 | X183: 36023 | Y183: 10 | Z183: 457334 | AA183: 5 | AB183: 364856 | AC183: 2.2 | AD183: 10 | AE183: 20000 | AF183: H 7520 9332,B 8174 3151,D 3332 5080,Q 5173 1872,M 1605 8261,S 9010 0000,B 0749 0576,W 0059 7176,A 8813 3065,S 6366 0160 | AG183: 0 040 696 | AH183: eur
A184: 2018089 | B184: MERCREDI | C184: 2018-07-25 | D184: 2018-09-24 | E184: 35 | F184: 27 | G184: 22 | H184: 20 | I184: 30 | J184: 3 | K184: 20-22-27-30-35+3 | L184: 0 | M184: 3000000 | N184: 0 | O184: 100000 | P184: 45 | Q184: 1000 | R184: 259 | S184: 500 | T184: 1661 | U184: 50 | V184: 14124 | W184: 20 | X184: 25536 | Y184: 10 | Z184: 220160 | AA184: 5 | AB184: 349995 | AC184: 2.2 | AD184: 10 | AE184: 20000 | AF184: M 7611 0702,H 4673 7585,T 7440 8904,S 2643 2330,M 9540 6053,U 0251 4366,Q 4586 7725,S 5217 6990,J 1930 9814,M 2980 0960 | AG184: 9242089 | AH184: eur
A185: 2018088 | B185: LUNDI | C185: 2018-07-23 | D185: 2018-09-22 | E185: 7 | F185: 20 | G185: 41 | H185: 40 | I185: 11 | J185: 6 | K185: 7-11-20-40-41+6 | L185: 0 | M185: 2000000 | N185: 0 | O185: 100000 | P185: 46 | Q185: 1000 | R185: 280 | S185: 500 | T185: 1254 | U185: 50 | V185: 13278 | W185: 20 | X185: 19635 | Y185: 10 | Z185: 193575 | AA185: 5 | AB185: 257102 | AC185: 2.2 | AD185: 10 | AE185: 20000 | AF185: R 7083 9216,F 6923 7034,L 1538 0747,H 6165 5302,B 0889 4025,A 1058 1074,F 4850 9259,A 5382 4353,E 9278 8418,O 0454 4851 | AG185: 9170152 | AH185: eur
A186: 2018087 | B186: SAMEDI | C186: 2018-07-21 | D186: 2018-09-20 | E186: 44 | F186: 18 | G186: 9 | H186: 28 | I186: 1 | J186: 10 | K186: 1-9-18-28-44+10 | L186: 2 | M186: 8500000 | N186: 5 | O186: 100000 | P186: 94 | Q186: 1000 | R186: 831 | S186: 500 | T186: 2839 | U186: 50 | V186: 33147 | W186: 20 | X186: 37999 | Y186: 10 | Z186: 442238 | AA186: 5 | AB186: 448518 | AC186: 2.2 | AD186: 10 | AE186: 20000 | AF186: F 7069 4873,E 2769 8375,K 2611 6179,Q 7763 3347,E 0297 7859,O 4310 3656,L 7982 8955,K 5402 9685,G 2252 0807,J 3673 5319 | AG186: 5431544 | AH186: eur
A187: 2018086 | B187: MERCREDI | C187: 2018-07-18 | D187: 2018-09-17 | E187: 18 | F187: 26 | G187: 27 | H187: 43 | I187: 35 | J187: 7 | K187: 18-26-27-35-43+7 | L187: 0 | M187: 16000000 | N187: 3 | O187: 100000 | P187: 71 | Q187: 1000 | R187: 514 | S187: 500 | T187: 3030 | U187: 50 | V187: 18607 | W187: 20 | X187: 43494 | Y187: 10 | Z187: 255863 | AA187: 5 | AB187: 640461 | AC187: 2.2 | AD187: 10 | AE187: 20000 | AF187: F 3797 3715,Q 1913 4391,J 8463 7445,N 5586 1963,H 3600 0183,O 6673 7779,V 0984 3975,C 0707 6913,L 1422 4745,D 1430 5913 | AG187: 6282766 | AH187: eur
A188: 2018085 | B188: LUNDI | C188: 2018-07-16 | D188: 2018-09-15 | E188: 36 | F188: 31 | G188: 9 | H188: 16 | I188: 3 | J188: 1 | K188: 3-9-16-31-36+1 | L188: 0 | M188: 15000000 | N188: 2 | O188: 100000 | P188: 38 | Q188: 1000 | R188: 368 | S188: 500 | T188: 1490 | U188: 50 | V188: 16824 | W188: 20 | X188: 20004 | Y188: 10 | Z188: 235532 | AA188: 5 | AB188: 253647 | AC188: 2.2 | AD188: 10 | AE188: 20000 | AF188: T 6707 3179,Q 0041 2460,M 6819 0957,R 2727 5538,O 1035 3733,K 4254 7944,U 4808 6739,U 5014 7368,P 5273 6285,Q 2109 2122 | AG188: 4159786 | AH188: eur
A189: 2018084 | B189: SAMEDI | C189: 2018-07-14 | D189: 2018-09-13 | E189: 47 | F189: 37 | G189: 45 | H189: 3 | I189: 20 | J189: 3 | K189: 3-20-37-45-47+3 | L189: 0 | M189: 14000000 | N189: 3 | O189: 100000 | P189: 37 | Q189: 1000 | R189: 294 | S189: 500 | T189: 2028 | U189: 50 | V189: 16434 | W189: 20 | X189: 32647 | Y189: 10 | Z189: 267677 | AA189: 5 | AB189: 496656 | AC189: 2.2 | AD189: 10 | AE189: 20000 | AF189: V 9992 6565,J 9556 9287,H 5097 0615,Q 6592 5704,P 7876 5413,U 1289 0455,S 1706 1313,T 7796 1272,V 4763 0405,V 4620 2123 | AG189: 4452382 | AH189: eur
A190: 2018083 | B190: MERCREDI | C190: 2018-07-11 | D190: 2018-09-10 | E190: 11 | F190: 46 | G190: 1 | H190: 22 | I190: 42 | J190: 4 | K190: 1-11-22-42-46+4 | L190: 0 | M190: 8000000 | N190: 1 | O190: 100000 | P190: 45 | Q190: 1000 | R190: 416 | S190: 500 | T190: 1969 | U190: 50 | V190: 17856 | W190: 20 | X190: 26372 | Y190: 10 | Z190: 245848 | AA190: 5 | AB190: 340005 | AC190: 2.2 | AD190: 10 | AE190: 20000 | AF190: B 8693 2074,A 5864 5844,Q 0367 5588,F 9725 4428,Q 4396 7350,L 8733 9554,Q 1491 8002,C 1395 5443,U 7742 9553,V 9976 9716 | AG190: 6672041 | AH190: eur
A191: 2018082 | B191: LUNDI | C191: 2018-07-09 | D191: 2018-09-08 | E191: 9 | F191: 21 | G191: 19 | H191: 36 | I191: 40 | J191: 1 | K191: 9-19-21-36-40+1 | L191: 0 | M191: 7000000 | N191: 2 | O191: 100000 | P191: 26 | Q191: 1000 | R191: 270 | S191: 500 | T191: 1061 | U191: 50 | V191: 12655 | W191: 20 | X191: 15800 | Y191: 10 | Z191: 189421 | AA191: 5 | AB191: 216891 | AC191: 2.2 | AD191: 10 | AE191: 20000 | AF191: H 3813 0403,N 4298 8326,N 9840 2079,S 3048 6065,P 8603 5879,P 1330 1834,G 5763 5085,B 8917 7764,V 8146 7148,H 2840 7229 | AG191: 3329154 | AH191: eur
A192: 2018081 | B192: SAMEDI | C192: 2018-07-07 | D192: 2018-09-06 | E192: 41 | F192: 3 | G192: 34 | H192: 11 | I192: 10 | J192: 10 | K192: 3-10-11-34-41+10 | L192: 0 | M192: 6000000 | N192: 0 | O192: 100000 | P192: 49 | Q192: 1000 | R192: 399 | S192: 500 | T192: 1856 | U192: 50 | V192: 21961 | W192: 20 | X192: 28345 | Y192: 10 | Z192: 334295 | AA192: 5 | AB192: 364005 | AC192: 2.2 | AD192: 10 | AE192: 20000 | AF192: K 1747 4415,V 0246 3041,V 2488 8780,I 0527 3711,U 8237 9295,P 3462 5865,J 7944 2737,A 2783 7889,V 1123 4497,I 3226 4813 | AG192: 2412557 | AH192: eur
A193: 2018080 | B193: MERCREDI | C193: 2018-07-04 | D193: 2018-09-03 | E193: 41 | F193: 23 | G193: 16 | H193: 20 | I193: 45 | J193: 5 | K193: 16-20-23-41-45+5 | L193: 0 | M193: 5000000 | N193: 1 | O193: 100000 | P193: 42 | Q193: 1000 | R193: 276 | S193: 500 | T193: 1821 | U193: 50 | V193: 13304 | W193: 20 | X193: 27910 | Y193: 10 | Z193: 207093 | AA193: 5 | AB193: 402200 | AC193: 2.2 | AD193: 10 | AE193: 20000 | AF193: O 8849 0478,U 4176 1783,G 4781 4324,M 2521 2919,U 7763 0271,T 2325 8884,Q 3262 1831,M 5842 4331,S 4456 6888,C 1299 9143 | AG193: 3490331 | AH193: eur
A194: 2018079 | B194: LUNDI | C194: 2018-07-02 | D194: 2018-09-01 | E194: 48 | F194: 38 | G194: 36 | H194: 45 | I194: 16 | J194: 8 | K194: 16-36-38-45-48+8 | L194: 0 | M194: 4000000 | N194: 1 | O194: 100000 | P194: 32 | Q194: 1000 | R194: 382 | S194: 500 | T194: 1081 | U194: 50 | V194: 9377 | W194: 20 | X194: 15932 | Y194: 10 | Z194: 135106 | AA194: 5 | AB194: 275238 | AC194: 2.2 | AD194: 10 | AE194: 20000 | AF194: G 3417 0364,F 8209 0286,N 2897 5881,Q 1530 7800,C 0285 1166,T 9211 9308,T 3677 4416,F 7090 3695,Q 2850 7593,G 0743 0109 | AG194: 4609058 | AH194: eur
A195: 2018078 | B195: SAMEDI | C195: 2018-06-30 | D195: 2018-08-30 | E195: 5 | F195: 36 | G195: 23 | H195: 29 | I195: 45 | J195: 7 | K195: 5-23-29-36-45+7 | L195: 0 | M195: 3000000 | N195: 0 | O195: 100000 | P195: 83 | Q195: 1000 | R195: 459 | S195: 500 | T195: 3369 | U195: 50 | V195: 19194 | W195: 20 | X195: 49051 | Y195: 10 | Z195: 276597 | AA195: 5 | AB195: 693777 | AC195: 2.2 | AD195: 10 | AE195: 20000 | AF195: V 1124 8738,B 3612 9030,S 5236 2748,B 8459 4722,L 6048 8609,C 6066 0161,M 5628 2077,Q 0435 2412,E 7885 4873,T 8334 3926 | AG195: 7357203 | AH195: eur
A196: 2018077 | B196: MERCREDI | C196: 2018-06-27 | D196: 2018-08-27 | E196: 26 | F196: 11 | G196: 9 | H196: 41 | I196: 8 | J196: 10 | K196: 8-9-11-26-41+10 | L196: 0 | M196: 2000000 | N196: 3 | O196: 100000 | P196: 29 | Q196: 1000 | R196: 427 | S196: 500 | T196: 1470 | U196: 50 | V196: 19565 | W196: 20 | X196: 19593 | Y196: 10 | Z196: 263771 | AA196: 5 | AB196: 233403 | AC196: 2.2 | AD196: 10 | AE196: 20000 | AF196: A 5000 5665,Q 1699 1951,J 4816 1145,V 6385 1058,C 1851 4676,R 9074 4987,V 1207 7203,F 4728 0487,U 1183 2750,P 3850 5055 | AG196: 0 947 708 | AH196: eur
A197: 2018076 | B197: LUNDI | C197: 2018-06-25 | D197: 2018-08-25 | E197: 14 | F197: 9 | G197: 21 | H197: 13 | I197: 32 | J197: 5 | K197: 9-13-14-21-32+5 | L197: 2 | M197: 2000000 | N197: 4 | O197: 100000 | P197: 45 | Q197: 1000 | R197: 331 | S197: 500 | T197: 2012 | U197: 50 | V197: 14765 | W197: 20 | X197: 27348 | Y197: 10 | Z197: 201699 | AA197: 5 | AB197: 309799 | AC197: 2.2 | AD197: 10 | AE197: 20000 | AF197: U 5683 6893,L 5371 4975,G 0497 3414,I 4057 2199,P 8411 5026,C 3059 9638,T 0465 5182,S 8886 4009,V 2632 1798,A 4851 3056 | AG197: 9279938 | AH197: eur
A198: 2018075 | B198: SAMEDI | C198: 2018-06-23 | D198: 2018-08-23 | E198: 41 | F198: 32 | G198: 49 | H198: 10 | I198: 36 | J198: 10 | K198: 10-32-36-41-49+10 | L198: 0 | M198: 3000000 | N198: 3 | O198: 100000 | P198: 36 | Q198: 1000 | R198: 300 | S198: 500 | T198: 1497 | U198: 50 | V198: 14917 | W198: 20 | X198: 22989 | Y198: 10 | Z198: 244515 | AA198: 5 | AB198: 349798 | AC198: 2.2 | AD198: 10 | AE198: 20000 | AF198: E 5394 5340,F 4150 0950,M 9546 2568,O 2384 0195,M 4722 4701,E 4591 3965,J 5973 1040,M 5811 0860,J 0487 0790,L 3691 9927 | AG198: 0 079 612 | AH198: eur
A199: 2018074 | B199: MERCREDI | C199: 2018-06-20 | D199: 2018-08-20 | E199: 43 | F199: 33 | G199: 8 | H199: 30 | I199: 6 | J199: 3 | K199: 6-8-30-33-43+3 | L199: 0 | M199: 2000000 | N199: 3 | O199: 100000 | P199: 41 | Q199: 1000 | R199: 254 | S199: 500 | T199: 1745 | U199: 50 | V199: 13580 | W199: 20 | X199: 25921 | Y199: 10 | Z199: 214135 | AA199: 5 | AB199: 354721 | AC199: 2.2 | AD199: 10 | AE199: 20000 | AF199: K 2429 5307,H 4314 6729,J 8495 4089,K 8408 4105,V 9916 9121,O 0384 3430,K 2104 3448,F 7813 2430,N 9565 2162,B 4598 1345 | AG199: 0 986 874 | AH199: eur
A200: 2018073 | B200: LUNDI | C200: 2018-06-18 | D200: 2018-08-18 | E200: 34 | F200: 2 | G200: 7 | H200: 13 | I200: 44 | J200: 8 | K200: 2-7-13-34-44+8 | L200: 1 | M200: 2000000 | N200: 0 | O200: 100000 | P200: 45 | Q200: 1000 | R200: 320 | S200: 500 | T200: 1601 | U200: 50 | V200: 15260 | W200: 20 | X200: 22193 | Y200: 10 | Z200: 200832 | AA200: 5 | AB200: 266625 | AC200: 2.2 | AD200: 10 | AE200: 20000 | AF200: C 5624 1895,O 4770 4925,Q 3270 4093,U 0914 1410,A 2098 8385,K 1384 1380,I 0406 7531,L 5759 8160,A 5600 6766,F 7263 3717 | AG200: 4598059 | AH200: eur
A201: 2018072 | B201: SAMEDI | C201: 2018-06-16 | D201: 2018-08-16 | E201: 35 | F201: 17 | G201: 8 | H201: 43 | I201: 19 | J201: 9 | K201: 8-17-19-35-43+9 | L201: 1 | M201: 4000000 | N201: 3 | O201: 100000 | P201: 66 | Q201: 1000 | R201: 492 | S201: 500 | T201: 2398 | U201: 50 | V201: 22581 | W201: 20 | X201: 34636 | Y201: 10 | Z201: 325152 | AA201: 5 | AB201: 471733 | AC201: 2.2 | AD201: 10 | AE201: 20000 | AF201: K 9363 6570,H 4980 8799,B 1731 7877,M 3149 5754,Q 4495 2046,M 2771 4610,N 3237 1016,L 2490 4570,H 9695 6144,C 4431 2102 | AG201: 2296690 | AH201: eur
... 1517 more rows
